{"text_format":"1","workbook":"xlsx","n_sheets":1,"sheets":["FD vs Debt Fund Volatility"],"not_rendered":{"charts":0,"images":0,"macros":1,"external_links":0,"defined_names":24,"comments":0,"pivot_tables":0},"unopened":[],"bounds":{"document_bytes":16777216,"sheet_cells":100000,"rows_first":2000,"rows_last":500,"rows_between":2000,"halvings":0,"cell_chars":16384,"cell_head_chars":4096},"cells_cut":0,"cells_raw":0,"read":"whole","date_system":"1900"}

{"sheet":"FD vs Debt Fund Volatility","index":0,"n_rows":1003,"n_cols":45,"rows_kept":1003,"cut":false,"hidden":false,"merged":[[24,0,24,5],[25,0,25,5],[32,3,32,5],[8,6,8,7],[20,0,20,3],[19,0,19,3],[0,0,0,6],[0,9,0,10],[0,15,0,23],[12,0,12,5],[13,4,13,5]]}
["Comparison between a lumpsum investment in a Fixed deposit & a debt mutual fund",null,null,null,null,null,null,null,null,"Fixed Deposit",null,null,null,"Debt Fund",null,"Post-tax Returns",null,null,null,null,null,null,null,null,null,0,{"$f":"ROUND(MAX(F15:F23),2)","v":0.06},null,{"$f":"(PRODUCT(AB4:AB53))^(1/tenure)-1","v":6.8020687875244068E-2},{"$f":"rated-AD2","v":4.3653389655143253E-2},{"$f":"rated+AD2","v":5.6346610344856753E-2},{"$f":"rated","v":0.05},{"$f":"volatility","v":0.02},{"$f":"AG1-AG2","v":1.6666666666666666E-2},{"$f":"AG1+AG2","v":2.3333333333333334E-2},null,"Trial","Fdfy","DebtNOI","DebtWI"]
["fill only cells in green",null,null,null,null,null,null,null,"Year","Sum at","Sum at","Debt fund",{"$f":"IF(Table134[[#This Row],[Column1]]=tenure,Table134[[#This Row],[Column3]],\"\")","v":""},"Sum at","Sum at",null,null,"Debt fund","Debt fund","Year","FD","Sum at","Sum at",null,null,0.1,{"$f":"ROUND(MIN(F15:F23),2)-1%","v":4.9999999999999996E-2},null,{"$f":"STDEV(AC4:AC53)","v":2.0069744111334043E-2},{"$f":"AC2/SQRT(AC3)","v":6.3466103448567525E-3},"SE",{"$f":"1/SQRT(AC3-1)","v":0.33333333333333331},{"$f":"AF2/100","v":3.3333333333333331E-3},null,null,null,1,1,1.9052779533346165E-3,0.10529275180028552,null,{"$f":"MAX(AM2:AN2)","v":0.10529275180028552},{"$f":"IF(MAX(AM2:AN2)>fdfy,1,0)","v":1},{"$f":"IF(MAX(AM2:AN2)>fdcash,1,0)","v":1},{"$f":"IF(AQ2+AR2=2,1,0)","v":1}]
["Lump sum investment",null,null,null,null,1000000,null,null,null,"year start","year end","Return",{"$f":"IF(Table134[[#This Row],[Column1]]=tenure,Table134[[#This Row],[Column3]],\"\")","v":""},"year start","year end",null,"FD","without indexation","with indexation",null,"Tax deferred","year start","year end",null,null,0.2,null,null,{"$f":"COUNT(AC4:AC53)","v":10},{"$f":"EXP(STDEV(AD4:AD53)+AVERAGE(AD4:AD53))-1","v":8.8393802776404629E-2},"GSD",{"$f":"AC1*(1-AD3)","v":6.2008080606484363E-2},{"$f":"AC1*(1+AD3)","v":7.4033295144003766E-2},null,null,null,2,0,4.2264915993837526E-2,9.8014233085581992E-2,null,{"$f":"MAX(AM3:AN3)","v":9.8014233085581992E-2},1,1,{"$f":"IF(AQ3+AR3=2,1,0)","v":1}]
["Duration of investment (years)",null,null,null,null,10,null,null,1,{"$f":"F3","v":1000000},{"$f":"J4*((1+rate*(1-IF(tax=10%,10.3%,IF(tax=20%,20.6%,IF(tax=30%,30.9%))))))","v":1055280},{"$f":"IF(I4<=tenure,(rated+SQRT(-2*LN(RAND()))*COS(2*PI()*RAND())*volatility),\"\")","v":5.2079001827375265E-2},{"$f":"IF(Table134[[#This Row],[Column1]]=tenure,Table134[[#This Row],[Column3]],\"\")","v":""},{"$f":"F3","v":1000000},{"$f":"N4*((1+Table134[[#This Row],[Column13]]))","v":1052079.0018273753},{"$f":"IF(Table134[[#This Row],[Column1]]=tenure,IF(corpnoindex<corpindex,corpnoindex,corpindex),NA())","v":{"$error":"#N/A"}},5.5279999999999996E-2,5.1113038242345477E-2,5.6880415601213929E-2,1,5.6977440000000046E-2,{"$f":"F3","v":1000000},{"$f":"V4*((1+rate*(1-10.3%)))","v":1071760},{"$f":"IF(Table134[[#This Row],[Column1]]=tenure,fdcashposttax,NA())","v":{"$error":"#N/A"}},{"$f":"IF(I4<=tenure,Table134[[#This Row],[Column13]],\"\")","v":5.2079001827375265E-2},0.3,null,{"$f":"IF(Table134[[#This Row],[Column15]]=\"\",1,(1+Table134[[#This Row],[Column15]]))","v":1.0520790018273753},{"$f":"IF(Table134[[#This Row],[Column15]]=\"\",\"\",(1+Table134[[#This Row],[Column15]]))","v":1.0520790018273753},{"$f":"IF(Table134[[#This Row],[Column15]]=\"\",\"\",LN(AC4))","v":5.0768208289978072E-2},{"$f":"IF(AC1>AD1,IF(AC1<AE1,1,0),0)","v":0},null,null,null,null,null,3,1,1.0216632274172577E-2,0.13126521934575108,null,0.13126521934575108,1,1,1]
["Interest rate of fixed deposit",null,null,null,null,0.08,null,null,{"$f":"IF(I4<tenure,I4+1,\"\")","v":2},{"$f":"IF(I5<=tenure,K4,\"\")","v":1055280},{"$f":"IF(I5<=tenure,J5*((1+rate*(1-IF(tax=10%,10.3%,IF(tax=20%,20.6%,IF(tax=30%,30.9%)))))),NA())","v":1113615.8784},2.808173047932859E-2,{"$f":"IF(Table134[[#This Row],[Column1]]=tenure,Table134[[#This Row],[Column3]],\"\")","v":""},{"$f":"IF(I5<=tenure,O4,\"\")","v":1052079.0018273753},{"$f":"N5*((1+Table134[[#This Row],[Column13]]))","v":1081623.2007996526},{"$f":"IF(Table134[[#This Row],[Column1]]=tenure,IF(corpnoindex<corpindex,corpnoindex,corpindex),NA())","v":{"$error":"#N/A"}},5.5279999999999996E-2,7.1533776142463035E-2,4.8830262436213578E-2,2,5.7375799370498193E-2,{"$f":"IF(I5<=tenure,W4,\"\")","v":1071760},{"$f":"IF(I5<=tenure,V5*((1+rate*(1-10.3%))),NA())","v":1148669.4976000001},{"$f":"IF(Table134[[#This Row],[Column1]]=tenure,fdcashposttax,NA())","v":{"$error":"#N/A"}},{"$f":"IF(I5<=tenure,Table134[[#This Row],[Column13]],\"\")","v":2.808173047932859E-2},null,null,{"$f":"IF(Table134[[#This Row],[Column15]]=\"\",1,(1+Table134[[#This Row],[Column15]]))","v":1.0280817304793286},{"$f":"IF(Table134[[#This Row],[Column15]]=\"\",\"\",(1+Table134[[#This Row],[Column15]]))","v":1.0280817304793286},{"$f":"IF(Table134[[#This Row],[Column15]]=\"\",\"\",LN(AC5))","v":2.7694668229992996E-2},{"$f":"IF(AC2>AH1,IF(AC2<AI1,1,0),0)","v":1},null,null,null,null,null,4,0,9.4526703423536196E-2,-5.5940792218728275E-3,null,9.4526703423536196E-2,1,1,1]
["approx. expected Interest rate (CAGR) of debt fund (eg. Income fund)",null,null,null,null,0.05,"conservative estimate based on funds history",null,3,1113615.8784,1175176.5641579521,9.492812368468978E-2,{"$f":"IF(Table134[[#This Row],[Column1]]=tenure,Table134[[#This Row],[Column3]],\"\")","v":""},1081623.2007996526,{"$f":"N6*((1+Table134[[#This Row],[Column13]]))","v":1184299.6617853921},{"$f":"IF(Table134[[#This Row],[Column1]]=tenure,IF(corpnoindex<corpindex,corpnoindex,corpindex),NA())","v":{"$error":"#N/A"}},5.5279999999999996E-2,4.5893541332520105E-2,6.3606699087013219E-2,3,5.7763120959328562E-2,1148669.4976000001,1231098.0207477761,{"$f":"IF(Table134[[#This Row],[Column1]]=tenure,fdcashposttax,NA())","v":{"$error":"#N/A"}},{"$f":"IF(I6<=tenure,Table134[[#This Row],[Column13]],\"\")","v":9.492812368468978E-2},null,null,{"$f":"IF(Table134[[#This Row],[Column15]]=\"\",1,(1+Table134[[#This Row],[Column15]]))","v":1.0949281236846897},{"$f":"IF(Table134[[#This Row],[Column15]]=\"\",\"\",(1+Table134[[#This Row],[Column15]]))","v":1.0949281236846897},{"$f":"IF(Table134[[#This Row],[Column15]]=\"\",\"\",LN(AC6))","v":9.0688720643431184E-2},{"$f":"IF(AC1>AD1,IF(AC1<AE1,1,0),0)+IF(AC2>AH1,IF(AC2<AI1,1,0),0)","v":1},null,null,null,null,null,5,1,1.9993788395640255E-3,7.5803604640065192E-2,null,7.5803604640065192E-2,1,1,1]
["Approx. volatility (standard deviation) in debt fund returns",null,null,null,null,0.02,"get data from fund card of VR online",null,4,1175176.5641579521,1240140.3246246036,5.1583439230194282E-2,{"$f":"IF(Table134[[#This Row],[Column1]]=tenure,Table134[[#This Row],[Column3]],\"\")","v":""},1184299.6617853921,{"$f":"N7*((1+Table134[[#This Row],[Column13]]))","v":1245389.9114194387},{"$f":"IF(Table134[[#This Row],[Column1]]=tenure,IF(corpnoindex<corpindex,corpnoindex,corpindex),NA())","v":{"$error":"#N/A"}},5.5279999999999996E-2,5.7334383510918352E-2,5.6304131490721776E-2,4,5.8139481994261999E-2,1231098.0207477761,1319441.6147166367,{"$f":"IF(Table134[[#This Row],[Column1]]=tenure,fdcashposttax,NA())","v":{"$error":"#N/A"}},{"$f":"IF(I7<=tenure,Table134[[#This Row],[Column13]],\"\")","v":5.1583439230194282E-2},null,null,{"$f":"IF(Table134[[#This Row],[Column15]]=\"\",1,(1+Table134[[#This Row],[Column15]]))","v":1.0515834392301944},{"$f":"IF(Table134[[#This Row],[Column15]]=\"\",\"\",(1+Table134[[#This Row],[Column15]]))","v":1.0515834392301944},{"$f":"IF(Table134[[#This Row],[Column15]]=\"\",\"\",LN(AC7))","v":5.0297065585068877E-2},null,null,null,null,null,null,6,0,8.0505122262423345E-2,7.5332493559889802E-3,null,8.0505122262423345E-2,1,1,1]
["No of trials you will like to run the simulation for (max. 500)",null,null,null,null,500,"More than 500 is better. However 500 is",null,5,1240140.3246246036,1308695.2817698517,7.4390498598653612E-2,{"$f":"IF(Table134[[#This Row],[Column1]]=tenure,Table134[[#This Row],[Column3]],\"\")","v":""},1245389.9114194387,{"$f":"N8*((1+Table134[[#This Row],[Column13]]))","v":1338035.0878796638},{"$f":"IF(Table134[[#This Row],[Column1]]=tenure,IF(corpnoindex<corpindex,corpnoindex,corpindex),NA())","v":{"$error":"#N/A"}},5.5279999999999996E-2,6.0398782113414651E-2,5.4984015704911959E-2,5,5.8504984579643038E-2,1319441.6147166367,1414124.7449887027,{"$f":"IF(Table134[[#This Row],[Column1]]=tenure,fdcashposttax,NA())","v":{"$error":"#N/A"}},{"$f":"IF(I8<=tenure,Table134[[#This Row],[Column13]],\"\")","v":7.4390498598653612E-2},null,null,{"$f":"IF(Table134[[#This Row],[Column15]]=\"\",1,(1+Table134[[#This Row],[Column15]]))","v":1.0743904985986537},{"$f":"IF(Table134[[#This Row],[Column15]]=\"\",\"\",(1+Table134[[#This Row],[Column15]]))","v":1.0743904985986537},{"$f":"IF(Table134[[#This Row],[Column15]]=\"\",\"\",LN(AC8))","v":7.1753522739028547E-2},null,null,null,null,null,null,7,0,-1.4612233697278598E-2,5.6808090193330107E-2,null,5.6808090193330107E-2,1,0,0]
["Choose applicable tax slab for Fixed Deposit",null,null,null,null,0.3,"enough to get an idea",null,6,1308695.2817698517,1381039.9569460892,7.5418760912263919E-2,{"$f":"IF(Table134[[#This Row],[Column1]]=tenure,Table134[[#This Row],[Column3]],\"\")","v":""},1338035.0878796638,{"$f":"N9*((1+Table134[[#This Row],[Column13]]))","v":1438948.0362646801},{"$f":"IF(Table134[[#This Row],[Column1]]=tenure,IF(corpnoindex<corpindex,corpnoindex,corpindex),NA())","v":{"$error":"#N/A"}},5.5279999999999996E-2,5.2406915584381597E-2,5.9885235182298713E-2,6,5.8859753396917291E-2,1414124.7449887027,1515602.336689092,{"$f":"IF(Table134[[#This Row],[Column1]]=tenure,fdcashposttax,NA())","v":{"$error":"#N/A"}},{"$f":"IF(I9<=tenure,Table134[[#This Row],[Column13]],\"\")","v":7.5418760912263919E-2},null,null,{"$f":"IF(Table134[[#This Row],[Column15]]=\"\",1,(1+Table134[[#This Row],[Column15]]))","v":1.0754187609122638},{"$f":"IF(Table134[[#This Row],[Column15]]=\"\",\"\",(1+Table134[[#This Row],[Column15]]))","v":1.0754187609122638},{"$f":"IF(Table134[[#This Row],[Column15]]=\"\",\"\",LN(AC9))","v":7.2710130761321282E-2},null,null,null,null,null,null,8,0,6.2398575367623721E-3,3.8062831640649497E-2,null,3.8062831640649497E-2,0,0,0]
["Debt Fund: Taxation is deferred until redemption and is either ",null,null,null,null,null,null,null,7,1381039.9569460892,1457383.8457660689,6.8969836397363704E-2,{"$f":"IF(Table134[[#This Row],[Column1]]=tenure,Table134[[#This Row],[Column3]],\"\")","v":""},1438948.0362646801,{"$f":"N10*((1+Table134[[#This Row],[Column13]]))","v":1538192.0469101628},{"$f":"IF(Table134[[#This Row],[Column1]]=tenure,IF(corpnoindex<corpindex,corpnoindex,corpindex),NA())","v":{"$error":"#N/A"}},5.5279999999999996E-2,5.7356787551555266E-2,6.4857943756358782E-2,7,5.9203933430405975E-2,1515602.336689092,1624361.9603699013,{"$f":"IF(Table134[[#This Row],[Column1]]=tenure,fdcashposttax,NA())","v":{"$error":"#N/A"}},{"$f":"IF(I10<=tenure,Table134[[#This Row],[Column13]],\"\")","v":6.8969836397363704E-2},null,null,{"$f":"IF(Table134[[#This Row],[Column15]]=\"\",1,(1+Table134[[#This Row],[Column15]]))","v":1.0689698363973636},{"$f":"IF(Table134[[#This Row],[Column15]]=\"\",\"\",(1+Table134[[#This Row],[Column15]]))","v":1.0689698363973636},{"$f":"IF(Table134[[#This Row],[Column15]]=\"\",\"\",LN(AC10))","v":6.6695414991268964E-2},null,null,null,null,null,null,9,1,0.16398500738831934,-0.13048883174158421,null,0.16398500738831934,1,1,1]
["10% or 20% with indexation (based on cost inflation index)",null,null,null,null,null,null,null,8,1457383.8457660689,1537948.0247600172,8.7478540196238186E-2,{"$f":"IF(Table134[[#This Row],[Column1]]=tenure,Table134[[#This Row],[Column3]],\"\")","v":""},1538192.0469101628,{"$f":"N11*((1+Table134[[#This Row],[Column13]]))","v":1672750.8417153272},{"$f":"IF(Table134[[#This Row],[Column1]]=tenure,IF(corpnoindex<corpindex,corpnoindex,corpindex),NA())","v":{"$error":"#N/A"}},5.5279999999999996E-2,5.4129152369493116E-2,5.3401517064301407E-2,8,5.9537687741514356E-2,1624361.9603699013,1740926.1746460455,{"$f":"IF(Table134[[#This Row],[Column1]]=tenure,fdcashposttax,NA())","v":{"$error":"#N/A"}},{"$f":"IF(I11<=tenure,Table134[[#This Row],[Column13]],\"\")","v":8.7478540196238186E-2},null,null,{"$f":"IF(Table134[[#This Row],[Column15]]=\"\",1,(1+Table134[[#This Row],[Column15]]))","v":1.0874785401962381},{"$f":"IF(Table134[[#This Row],[Column15]]=\"\",\"\",(1+Table134[[#This Row],[Column15]]))","v":1.0874785401962381},{"$f":"IF(Table134[[#This Row],[Column15]]=\"\",\"\",LN(AC11))","v":8.3861750633116405E-2},null,null,null,null,null,null,10,1,0.14222201238545584,0.12446132293049805,null,0.14222201238545584,1,1,1]
["Rate of annual increase in cost inflation index (5% is good no)",null,null,null,null,0.05,null,null,9,1537948.0247600172,1622965.791568751,6.3924721784120259E-2,{"$f":"IF(Table134[[#This Row],[Column1]]=tenure,Table134[[#This Row],[Column3]],\"\")","v":""},1672750.8417153272,{"$f":"N12*((1+Table134[[#This Row],[Column13]]))","v":1779680.9738861327},{"$f":"IF(Table134[[#This Row],[Column1]]=tenure,IF(corpnoindex<corpindex,corpnoindex,corpindex),NA())","v":{"$error":"#N/A"}},5.5279999999999996E-2,5.9367730988229894E-2,5.9338215812453354E-2,9,5.9861195310990656E-2,1740926.1746460455,1865855.0369386459,{"$f":"IF(Table134[[#This Row],[Column1]]=tenure,fdcashposttax,NA())","v":{"$error":"#N/A"}},{"$f":"IF(I12<=tenure,Table134[[#This Row],[Column13]],\"\")","v":6.3924721784120259E-2},null,null,{"$f":"IF(Table134[[#This Row],[Column15]]=\"\",1,(1+Table134[[#This Row],[Column15]]))","v":1.0639247217841203},{"$f":"IF(Table134[[#This Row],[Column15]]=\"\",\"\",(1+Table134[[#This Row],[Column15]]))","v":1.0639247217841203},{"$f":"IF(Table134[[#This Row],[Column15]]=\"\",\"\",LN(AC12))","v":6.1964638213644563E-2},null,null,null,null,null,null,11,1,8.2839263709388433E-2,1.6047993938723693E-2,null,8.2839263709388433E-2,1,1,1]
["FD Taxation method: Mercantile basis. Tax paid each FY",null,null,null,null,null,null,null,10,1622965.791568751,1712683.3405266716,8.506185014986431E-2,{"$f":"IF(Table134[[#This Row],[Column1]]=tenure,Table134[[#This Row],[Column3]],\"\")","v":1931063.9302013996},1779680.9738861327,{"$f":"N13*((1+Table134[[#This Row],[Column13]]))","v":1931063.9302013996},{"$f":"IF(Table134[[#This Row],[Column1]]=tenure,IF(corpnoindex<corpindex,corpnoindex,corpindex),NA())","v":1835164.3453906553},5.5279999999999996E-2,5.4066785329230926E-2,5.7794449571078044E-2,10,6.0174648965376498E-2,1865855.0369386459,1999748.7943893631,{"$f":"IF(Table134[[#This Row],[Column1]]=tenure,fdcashposttax,NA())","v":1793800.5427451539},{"$f":"IF(I13<=tenure,Table134[[#This Row],[Column13]],\"\")","v":8.506185014986431E-2},null,null,{"$f":"IF(Table134[[#This Row],[Column15]]=\"\",1,(1+Table134[[#This Row],[Column15]]))","v":1.0850618501498643},{"$f":"IF(Table134[[#This Row],[Column15]]=\"\",\"\",(1+Table134[[#This Row],[Column15]]))","v":1.0850618501498643},{"$f":"IF(Table134[[#This Row],[Column15]]=\"\",\"\",LN(AC13))","v":8.1636990114132807E-2},null,null,null,null,null,null,12,0,0.12756823467161027,-3.1768158366182631E-2,null,0.12756823467161027,1,1,1]
[null,null,null,null,"Post-tax Returns",null,null,null,"","",{"$error":"#N/A"},"",{"$f":"IF(Table134[[#This Row],[Column1]]=tenure,Table134[[#This Row],[Column3]],\"\")","v":""},"",{"$f":"N14*((1+Table134[[#This Row],[Column13]]))","v":{"$error":"#VALUE!"}},{"$f":"IF(Table134[[#This Row],[Column1]]=tenure,IF(corpnoindex<corpindex,corpnoindex,corpindex),NA())","v":{"$error":"#N/A"}},5.5279999999999996E-2,5.7675613743217724E-2,5.9619506884487583E-2,11,6.0478253400499504E-2,"",{"$error":"#N/A"},{"$f":"IF(Table134[[#This Row],[Column1]]=tenure,fdcashposttax,NA())","v":{"$error":"#N/A"}},{"$f":"IF(I14<=tenure,Table134[[#This Row],[Column13]],\"\")","v":""},null,null,{"$f":"IF(Table134[[#This Row],[Column15]]=\"\",1,(1+Table134[[#This Row],[Column15]]))","v":1},{"$f":"IF(Table134[[#This Row],[Column15]]=\"\",\"\",(1+Table134[[#This Row],[Column15]]))","v":""},{"$f":"IF(Table134[[#This Row],[Column15]]=\"\",\"\",LN(AC14))","v":""},null,null,null,null,null,null,13,0,5.901548381016597E-2,-3.3390044000893626E-2,null,5.901548381016597E-2,1,0,0]
["Corpus from fixed deposit (post-tax)",null,null,{"$f":"sum*((1+rate*(1-IF(tax=10%,10.3%,IF(tax=20%,20.6%,IF(tax=30%,30.9%))))))^tenure","v":1712683.3405266723},null,{"$f":"(D15/F3)^(1/tenure)-1","v":5.5279999999999996E-2},null,null,"","",{"$error":"#N/A"},"",{"$f":"IF(Table134[[#This Row],[Column1]]=tenure,Table134[[#This Row],[Column3]],\"\")","v":""},"",{"$f":"N15*((1+Table134[[#This Row],[Column13]]))","v":{"$error":"#VALUE!"}},{"$f":"IF(Table134[[#This Row],[Column1]]=tenure,IF(corpnoindex<corpindex,corpnoindex,corpindex),NA())","v":{"$error":"#N/A"}},5.5279999999999996E-2,5.7797052127890547E-2,5.4685257583164004E-2,12,6.0772223311796658E-2,"",{"$error":"#N/A"},{"$f":"IF(Table134[[#This Row],[Column1]]=tenure,fdcashposttax,NA())","v":{"$error":"#N/A"}},{"$f":"IF(I15<=tenure,Table134[[#This Row],[Column13]],\"\")","v":""},null,null,{"$f":"IF(Table134[[#This Row],[Column15]]=\"\",1,(1+Table134[[#This Row],[Column15]]))","v":1},{"$f":"IF(Table134[[#This Row],[Column15]]=\"\",\"\",(1+Table134[[#This Row],[Column15]]))","v":""},{"$f":"IF(Table134[[#This Row],[Column15]]=\"\",\"\",LN(AC15))","v":""},null,null,null,null,null,null,14,1,1.4896439227823244E-2,0.12501572160042729,null,0.12501572160042729,1,1,1]
["Corpus from debt fund (pre-tax)",null,null,{"$f":"MAX(M4:M53)","v":1931063.9302013996},null,null,null,null,"","",{"$error":"#N/A"},"",{"$f":"IF(Table134[[#This Row],[Column1]]=tenure,Table134[[#This Row],[Column3]],\"\")","v":""},"",{"$f":"N16*((1+Table134[[#This Row],[Column13]]))","v":{"$error":"#VALUE!"}},{"$f":"IF(Table134[[#This Row],[Column1]]=tenure,IF(corpnoindex<corpindex,corpnoindex,corpindex),NA())","v":{"$error":"#N/A"}},5.5279999999999996E-2,5.6115805963339316E-2,5.8789827714908149E-2,13,6.1056781638452184E-2,"",{"$error":"#N/A"},{"$f":"IF(Table134[[#This Row],[Column1]]=tenure,fdcashposttax,NA())","v":{"$error":"#N/A"}},{"$f":"IF(I16<=tenure,Table134[[#This Row],[Column13]],\"\")","v":""},null,null,{"$f":"IF(Table134[[#This Row],[Column15]]=\"\",1,(1+Table134[[#This Row],[Column15]]))","v":1},{"$f":"IF(Table134[[#This Row],[Column15]]=\"\",\"\",(1+Table134[[#This Row],[Column15]]))","v":""},{"$f":"IF(Table134[[#This Row],[Column15]]=\"\",\"\",LN(AC16))","v":""},null,null,null,null,null,null,15,1,0.139764433941447,7.4595507306451703E-2,null,0.139764433941447,1,1,1]
["Post-tax debt fund corpus without indexation",null,null,{"$f":"D16-(D16-F3)*10.3%","v":1835164.3453906553},null,{"$f":"(corpnoindex/F3)^(1/tenure)-1","v":6.259433515316104E-2},null,null,"","",{"$error":"#N/A"},"",{"$f":"IF(Table134[[#This Row],[Column1]]=tenure,Table134[[#This Row],[Column3]],\"\")","v":""},"",{"$f":"N17*((1+Table134[[#This Row],[Column13]]))","v":{"$error":"#VALUE!"}},{"$f":"IF(Table134[[#This Row],[Column1]]=tenure,IF(corpnoindex<corpindex,corpnoindex,corpindex),NA())","v":{"$error":"#N/A"}},5.5279999999999996E-2,5.307800332566659E-2,5.8019009411713007E-2,14,6.1332157925827246E-2,"",{"$error":"#N/A"},{"$f":"IF(Table134[[#This Row],[Column1]]=tenure,fdcashposttax,NA())","v":{"$error":"#N/A"}},{"$f":"IF(I17<=tenure,Table134[[#This Row],[Column13]],\"\")","v":""},null,null,{"$f":"IF(Table134[[#This Row],[Column15]]=\"\",1,(1+Table134[[#This Row],[Column15]]))","v":1},{"$f":"IF(Table134[[#This Row],[Column15]]=\"\",\"\",(1+Table134[[#This Row],[Column15]]))","v":""},{"$f":"IF(Table134[[#This Row],[Column15]]=\"\",\"\",LN(AC17))","v":""},null,null,null,null,null,null,16,0,2.3258671302841538E-2,6.7748877195335844E-2,null,{"$f":"MAX(AM17:AN17)","v":6.7748877195335844E-2},1,1,1]
["Post-tax debt fund corpus with indexation",null,null,{"$f":"IF(D16-F3*(1+F12)^tenure>0,D16-(D16-F3*(1+F12)^tenure)*20.6%,D16)","v":1868817.0536960643},null,{"$f":"(corpindex/F3)^(1/tenure)-1","v":6.4526994526797665E-2},null,null,"","",{"$error":"#N/A"},"",{"$f":"IF(Table134[[#This Row],[Column1]]=tenure,Table134[[#This Row],[Column3]],\"\")","v":""},"",{"$f":"N18*((1+Table134[[#This Row],[Column13]]))","v":{"$error":"#VALUE!"}},{"$f":"IF(Table134[[#This Row],[Column1]]=tenure,IF(corpnoindex<corpindex,corpnoindex,corpindex),NA())","v":{"$error":"#N/A"}},5.5279999999999996E-2,5.2854138865146894E-2,5.6927879693309702E-2,15,6.1598586808438771E-2,"",{"$error":"#N/A"},{"$f":"IF(Table134[[#This Row],[Column1]]=tenure,fdcashposttax,NA())","v":{"$error":"#N/A"}},{"$f":"IF(I18<=tenure,Table134[[#This Row],[Column13]],\"\")","v":""},null,null,{"$f":"IF(Table134[[#This Row],[Column15]]=\"\",1,(1+Table134[[#This Row],[Column15]]))","v":1},{"$f":"IF(Table134[[#This Row],[Column15]]=\"\",\"\",(1+Table134[[#This Row],[Column15]]))","v":""},{"$f":"IF(Table134[[#This Row],[Column15]]=\"\",\"\",LN(AC18))","v":""},null,null,null,null,null,null,17,1,0.11797122423677053,0.10661685985632574,null,0.11797122423677053,1,1,1]
[null,null,null,null,null,null,null,null,"","",{"$error":"#N/A"},"",{"$f":"IF(Table134[[#This Row],[Column1]]=tenure,Table134[[#This Row],[Column3]],\"\")","v":""},"",{"$f":"N19*((1+Table134[[#This Row],[Column13]]))","v":{"$error":"#VALUE!"}},{"$f":"IF(Table134[[#This Row],[Column1]]=tenure,IF(corpnoindex<corpindex,corpnoindex,corpindex),NA())","v":{"$error":"#N/A"}},5.5279999999999996E-2,5.6600137364442027E-2,5.9060955095547651E-2,16,6.1856306613832901E-2,"",{"$error":"#N/A"},{"$f":"IF(Table134[[#This Row],[Column1]]=tenure,fdcashposttax,NA())","v":{"$error":"#N/A"}},{"$f":"IF(I19<=tenure,Table134[[#This Row],[Column13]],\"\")","v":""},null,null,{"$f":"IF(Table134[[#This Row],[Column15]]=\"\",1,(1+Table134[[#This Row],[Column15]]))","v":1},{"$f":"IF(Table134[[#This Row],[Column15]]=\"\",\"\",(1+Table134[[#This Row],[Column15]]))","v":""},{"$f":"IF(Table134[[#This Row],[Column15]]=\"\",\"\",LN(AC19))","v":""},null,null,null,null,null,null,18,0,7.8484502965597613E-2,6.4708750359830702E-2,null,7.8484502965597613E-2,1,1,1]
["FD Taxation method: Cash basis. Tds paid each FY ",null,null,null,null,null,null,null,"","",{"$error":"#N/A"},"",{"$f":"IF(Table134[[#This Row],[Column1]]=tenure,Table134[[#This Row],[Column3]],\"\")","v":""},"",{"$f":"N20*((1+Table134[[#This Row],[Column13]]))","v":{"$error":"#VALUE!"}},{"$f":"IF(Table134[[#This Row],[Column1]]=tenure,IF(corpnoindex<corpindex,corpnoindex,corpindex),NA())","v":{"$error":"#N/A"}},5.5279999999999996E-2,5.5580396327292725E-2,6.1642089075706119E-2,17,6.2105558086069435E-2,"",{"$error":"#N/A"},{"$f":"IF(Table134[[#This Row],[Column1]]=tenure,fdcashposttax,NA())","v":{"$error":"#N/A"}},{"$f":"IF(I20<=tenure,Table134[[#This Row],[Column13]],\"\")","v":""},null,null,{"$f":"IF(Table134[[#This Row],[Column15]]=\"\",1,(1+Table134[[#This Row],[Column15]]))","v":1},{"$f":"IF(Table134[[#This Row],[Column15]]=\"\",\"\",(1+Table134[[#This Row],[Column15]]))","v":""},{"$f":"IF(Table134[[#This Row],[Column15]]=\"\",\"\",LN(AC20))","v":""},null,null,null,null,null,null,19,1,0.12630115380000739,-2.1481884778315141E-2,null,0.12630115380000739,1,1,1]
["but rest of the tax paid on maturity",null,null,null,"Post-tax Returns",null,null,null,"","",{"$error":"#N/A"},"",{"$f":"IF(Table134[[#This Row],[Column1]]=tenure,Table134[[#This Row],[Column3]],\"\")","v":""},"",{"$f":"N21*((1+Table134[[#This Row],[Column13]]))","v":{"$error":"#VALUE!"}},{"$f":"IF(Table134[[#This Row],[Column1]]=tenure,IF(corpnoindex<corpindex,corpnoindex,corpindex),NA())","v":{"$error":"#N/A"}},5.5279999999999996E-2,5.7648839259644813E-2,5.7527937441834931E-2,18,6.2346583226174479E-2,"",{"$error":"#N/A"},{"$f":"IF(Table134[[#This Row],[Column1]]=tenure,fdcashposttax,NA())","v":{"$error":"#N/A"}},{"$f":"IF(I21<=tenure,Table134[[#This Row],[Column13]],\"\")","v":""},null,null,{"$f":"IF(Table134[[#This Row],[Column15]]=\"\",1,(1+Table134[[#This Row],[Column15]]))","v":1},{"$f":"IF(Table134[[#This Row],[Column15]]=\"\",\"\",(1+Table134[[#This Row],[Column15]]))","v":""},{"$f":"IF(Table134[[#This Row],[Column15]]=\"\",\"\",LN(AC21))","v":""},null,null,null,null,null,null,20,1,2.8339788639542896E-2,-6.7153046665582861E-2,null,2.8339788639542896E-2,0,0,0]
["Corpus from fixed deposit (post-tds)",null,null,{"$f":"sum*((1+rate*(1-10.3%)))^tenure","v":1999748.7943893627},null,null,null,null,"","",{"$error":"#N/A"},"",{"$f":"IF(Table134[[#This Row],[Column1]]=tenure,Table134[[#This Row],[Column3]],\"\")","v":""},"",{"$f":"N22*((1+Table134[[#This Row],[Column13]]))","v":{"$error":"#VALUE!"}},{"$f":"IF(Table134[[#This Row],[Column1]]=tenure,IF(corpnoindex<corpindex,corpnoindex,corpindex),NA())","v":{"$error":"#N/A"}},5.5279999999999996E-2,6.0314069335963394E-2,5.9409324165060839E-2,19,6.2579624245830745E-2,"",{"$error":"#N/A"},{"$f":"IF(Table134[[#This Row],[Column1]]=tenure,fdcashposttax,NA())","v":{"$error":"#N/A"}},{"$f":"IF(I22<=tenure,Table134[[#This Row],[Column13]],\"\")","v":""},null,null,{"$f":"IF(Table134[[#This Row],[Column15]]=\"\",1,(1+Table134[[#This Row],[Column15]]))","v":1},{"$f":"IF(Table134[[#This Row],[Column15]]=\"\",\"\",(1+Table134[[#This Row],[Column15]]))","v":""},{"$f":"IF(Table134[[#This Row],[Column15]]=\"\",\"\",LN(AC22))","v":""},null,null,null,null,null,null,21,1,3.0972447595923658E-2,0.16247075173612235,null,0.16247075173612235,1,1,1]
["Corpus from fixed deposit (post-tax)",null,null,{"$f":"D22-((D22-F3)*(IF((IF(tax=10%,10.3%,IF(tax=20%,20.6%,IF(tax=30%,30.9%)))-10.3%)<0,0,(IF(tax=10%,10.3%,IF(tax=20%,20.6%,IF(tax=30%,30.9%)))-10.3%))))","v":1793800.5427451539},null,{"$f":"(D23/F3)^(1/tenure)-1","v":6.0174648965376498E-2},null,null,"","",{"$error":"#N/A"},"",{"$f":"IF(Table134[[#This Row],[Column1]]=tenure,Table134[[#This Row],[Column3]],\"\")","v":""},"",{"$f":"N23*((1+Table134[[#This Row],[Column13]]))","v":{"$error":"#VALUE!"}},{"$f":"IF(Table134[[#This Row],[Column1]]=tenure,IF(corpnoindex<corpindex,corpnoindex,corpindex),NA())","v":{"$error":"#N/A"}},5.5279999999999996E-2,5.753966810716582E-2,5.5109183646442794E-2,20,6.2804922629700943E-2,"",{"$error":"#N/A"},{"$f":"IF(Table134[[#This Row],[Column1]]=tenure,fdcashposttax,NA())","v":{"$error":"#N/A"}},{"$f":"IF(I23<=tenure,Table134[[#This Row],[Column13]],\"\")","v":""},null,null,{"$f":"IF(Table134[[#This Row],[Column15]]=\"\",1,(1+Table134[[#This Row],[Column15]]))","v":1},{"$f":"IF(Table134[[#This Row],[Column15]]=\"\",\"\",(1+Table134[[#This Row],[Column15]]))","v":""},{"$f":"IF(Table134[[#This Row],[Column15]]=\"\",\"\",LN(AC23))","v":""},null,null,null,null,null,null,22,1,-2.419856226866357E-3,6.5722071493055978E-2,null,6.5722071493055978E-2,1,1,1]
[null,null,null,null,null,null,null,null,"","",{"$error":"#N/A"},"",{"$f":"IF(Table134[[#This Row],[Column1]]=tenure,Table134[[#This Row],[Column3]],\"\")","v":""},"",{"$f":"N24*((1+Table134[[#This Row],[Column13]]))","v":{"$error":"#VALUE!"}},{"$f":"IF(Table134[[#This Row],[Column1]]=tenure,IF(corpnoindex<corpindex,corpnoindex,corpindex),NA())","v":{"$error":"#N/A"}},5.5279999999999996E-2,5.748936606050159E-2,5.8520741320000846E-2,21,6.3022718301133374E-2,"",{"$error":"#N/A"},{"$f":"IF(Table134[[#This Row],[Column1]]=tenure,fdcashposttax,NA())","v":{"$error":"#N/A"}},{"$f":"IF(I24<=tenure,Table134[[#This Row],[Column13]],\"\")","v":""},null,null,{"$f":"IF(Table134[[#This Row],[Column15]]=\"\",1,(1+Table134[[#This Row],[Column15]]))","v":1},{"$f":"IF(Table134[[#This Row],[Column15]]=\"\",\"\",(1+Table134[[#This Row],[Column15]]))","v":""},{"$f":"IF(Table134[[#This Row],[Column15]]=\"\",\"\",LN(AC24))","v":""},null,null,null,null,null,null,23,1,8.4436542296801864E-2,5.3775798292037491E-2,null,8.4436542296801864E-2,1,1,1]
["Results of the simulation",null,null,null,null,null,null,null,"","",{"$error":"#N/A"},"",{"$f":"IF(Table134[[#This Row],[Column1]]=tenure,Table134[[#This Row],[Column3]],\"\")","v":""},"",{"$f":"N25*((1+Table134[[#This Row],[Column13]]))","v":{"$error":"#VALUE!"}},{"$f":"IF(Table134[[#This Row],[Column1]]=tenure,IF(corpnoindex<corpindex,corpnoindex,corpindex),NA())","v":{"$error":"#N/A"}},5.5279999999999996E-2,5.7246177488524674E-2,5.5225374395043492E-2,22,6.3233248885524729E-2,"",{"$error":"#N/A"},{"$f":"IF(Table134[[#This Row],[Column1]]=tenure,fdcashposttax,NA())","v":{"$error":"#N/A"}},{"$f":"IF(I25<=tenure,Table134[[#This Row],[Column13]],\"\")","v":""},null,null,{"$f":"IF(Table134[[#This Row],[Column15]]=\"\",1,(1+Table134[[#This Row],[Column15]]))","v":1},{"$f":"IF(Table134[[#This Row],[Column15]]=\"\",\"\",(1+Table134[[#This Row],[Column15]]))","v":""},{"$f":"IF(Table134[[#This Row],[Column15]]=\"\",\"\",LN(AC25))","v":""},null,null,null,null,null,null,24,0,7.4068086013175272E-2,4.6217608955142708E-2,null,7.4068086013175272E-2,1,1,1]
[null,null,null,null,null,null,null,null,"","",{"$error":"#N/A"},"",{"$f":"IF(Table134[[#This Row],[Column1]]=tenure,Table134[[#This Row],[Column3]],\"\")","v":""},"",{"$f":"N26*((1+Table134[[#This Row],[Column13]]))","v":{"$error":"#VALUE!"}},{"$f":"IF(Table134[[#This Row],[Column1]]=tenure,IF(corpnoindex<corpindex,corpnoindex,corpindex),NA())","v":{"$error":"#N/A"}},5.5279999999999996E-2,5.714452373283474E-2,5.7027409978912313E-2,23,6.3436749065312492E-2,"",{"$error":"#N/A"},{"$f":"IF(Table134[[#This Row],[Column1]]=tenure,fdcashposttax,NA())","v":{"$error":"#N/A"}},{"$f":"IF(I26<=tenure,Table134[[#This Row],[Column13]],\"\")","v":""},null,null,{"$f":"IF(Table134[[#This Row],[Column15]]=\"\",1,(1+Table134[[#This Row],[Column15]]))","v":1},{"$f":"IF(Table134[[#This Row],[Column15]]=\"\",\"\",(1+Table134[[#This Row],[Column15]]))","v":""},{"$f":"IF(Table134[[#This Row],[Column15]]=\"\",\"\",LN(AC26))","v":""},null,null,null,null,null,null,25,1,-8.3658482581898674E-3,0.10200715674111338,null,0.10200715674111338,1,1,1]
["out of ",{"$f":"trials","v":500},"trials, the debt fund has a ",null,{"$f":"SUM(AQ2:AQ504)/trials","v":0.8},"chance of achieving",null,null,"","",{"$error":"#N/A"},"",{"$f":"IF(Table134[[#This Row],[Column1]]=tenure,Table134[[#This Row],[Column3]],\"\")","v":""},"",{"$f":"N27*((1+Table134[[#This Row],[Column13]]))","v":{"$error":"#VALUE!"}},{"$f":"IF(Table134[[#This Row],[Column1]]=tenure,IF(corpnoindex<corpindex,corpnoindex,corpindex),NA())","v":{"$error":"#N/A"}},5.5279999999999996E-2,5.4282197903971818E-2,5.7865405777320911E-2,24,6.3633450020401439E-2,"",{"$error":"#N/A"},{"$f":"IF(Table134[[#This Row],[Column1]]=tenure,fdcashposttax,NA())","v":{"$error":"#N/A"}},{"$f":"IF(I27<=tenure,Table134[[#This Row],[Column13]],\"\")","v":""},null,null,{"$f":"IF(Table134[[#This Row],[Column15]]=\"\",1,(1+Table134[[#This Row],[Column15]]))","v":1},{"$f":"IF(Table134[[#This Row],[Column15]]=\"\",\"\",(1+Table134[[#This Row],[Column15]]))","v":""},{"$f":"IF(Table134[[#This Row],[Column15]]=\"\",\"\",LN(AC27))","v":""},null,null,null,null,null,null,26,1,2.9202629359377674E-2,8.2076541545119452E-2,null,8.2076541545119452E-2,1,1,1]
["higher post-tax returns compared to a fixed deposit for which tax is paid each FY",null,null,null,null,null,null,null,"","",{"$error":"#N/A"},"",{"$f":"IF(Table134[[#This Row],[Column1]]=tenure,Table134[[#This Row],[Column3]],\"\")","v":""},"",{"$f":"N28*((1+Table134[[#This Row],[Column13]]))","v":{"$error":"#VALUE!"}},{"$f":"IF(Table134[[#This Row],[Column1]]=tenure,IF(corpnoindex<corpindex,corpnoindex,corpindex),NA())","v":{"$error":"#N/A"}},5.5279999999999996E-2,5.5442000780979717E-2,5.7370861918055516E-2,25,6.3823578947775461E-2,"",{"$error":"#N/A"},{"$f":"IF(Table134[[#This Row],[Column1]]=tenure,fdcashposttax,NA())","v":{"$error":"#N/A"}},{"$f":"IF(I28<=tenure,Table134[[#This Row],[Column13]],\"\")","v":""},null,null,{"$f":"IF(Table134[[#This Row],[Column15]]=\"\",1,(1+Table134[[#This Row],[Column15]]))","v":1},{"$f":"IF(Table134[[#This Row],[Column15]]=\"\",\"\",(1+Table134[[#This Row],[Column15]]))","v":""},{"$f":"IF(Table134[[#This Row],[Column15]]=\"\",\"\",LN(AC28))","v":""},null,null,null,null,null,null,27,1,3.28502416303591E-2,9.6634839618120028E-2,null,9.6634839618120028E-2,1,1,1]
[null,null,null,null,null,null,null,null,"","",{"$error":"#N/A"},"",{"$f":"IF(Table134[[#This Row],[Column1]]=tenure,Table134[[#This Row],[Column3]],\"\")","v":""},"",{"$f":"N29*((1+Table134[[#This Row],[Column13]]))","v":{"$error":"#VALUE!"}},{"$f":"IF(Table134[[#This Row],[Column1]]=tenure,IF(corpnoindex<corpindex,corpnoindex,corpindex),NA())","v":{"$error":"#N/A"}},5.5279999999999996E-2,5.6516450717271738E-2,5.6014388240752888E-2,26,6.4007358654097013E-2,"",{"$error":"#N/A"},{"$f":"IF(Table134[[#This Row],[Column1]]=tenure,fdcashposttax,NA())","v":{"$error":"#N/A"}},{"$f":"IF(I29<=tenure,Table134[[#This Row],[Column13]],\"\")","v":""},null,null,{"$f":"IF(Table134[[#This Row],[Column15]]=\"\",1,(1+Table134[[#This Row],[Column15]]))","v":1},{"$f":"IF(Table134[[#This Row],[Column15]]=\"\",\"\",(1+Table134[[#This Row],[Column15]]))","v":""},{"$f":"IF(Table134[[#This Row],[Column15]]=\"\",\"\",LN(AC29))","v":""},null,null,null,null,null,null,28,1,4.632025294268205E-2,9.1807623222458723E-2,null,9.1807623222458723E-2,1,1,1]
["out of ",{"$f":"trials","v":500},"trials, the debt fund has a ",null,{"$f":"SUM(AR2:AR504)/trials","v":0.746},"chance of achieving",null,null,"","",{"$error":"#N/A"},"",{"$f":"IF(Table134[[#This Row],[Column1]]=tenure,Table134[[#This Row],[Column3]],\"\")","v":""},"",{"$f":"N30*((1+Table134[[#This Row],[Column13]]))","v":{"$error":"#VALUE!"}},{"$f":"IF(Table134[[#This Row],[Column1]]=tenure,IF(corpnoindex<corpindex,corpnoindex,corpindex),NA())","v":{"$error":"#N/A"}},5.5279999999999996E-2,5.4589963062213309E-2,5.9668420566334479E-2,27,6.4185007215218359E-2,"",{"$error":"#N/A"},{"$f":"IF(Table134[[#This Row],[Column1]]=tenure,fdcashposttax,NA())","v":{"$error":"#N/A"}},{"$f":"IF(I30<=tenure,Table134[[#This Row],[Column13]],\"\")","v":""},null,null,{"$f":"IF(Table134[[#This Row],[Column15]]=\"\",1,(1+Table134[[#This Row],[Column15]]))","v":1},{"$f":"IF(Table134[[#This Row],[Column15]]=\"\",\"\",(1+Table134[[#This Row],[Column15]]))","v":""},{"$f":"IF(Table134[[#This Row],[Column15]]=\"\",\"\",LN(AC30))","v":""},null,null,null,null,null,null,29,0,0.19690432258531398,-1.1196909995906168E-2,null,0.19690432258531398,1,1,1]
["higher post-tax returns compared to a fixed deposit for which tax* is paid on maturity",null,null,null,null,null,null,null,"","",{"$error":"#N/A"},"",{"$f":"IF(Table134[[#This Row],[Column1]]=tenure,Table134[[#This Row],[Column3]],\"\")","v":""},"",{"$f":"N31*((1+Table134[[#This Row],[Column13]]))","v":{"$error":"#VALUE!"}},{"$f":"IF(Table134[[#This Row],[Column1]]=tenure,IF(corpnoindex<corpindex,corpnoindex,corpindex),NA())","v":{"$error":"#N/A"}},5.5279999999999996E-2,5.5997654673379804E-2,6.0509448170958713E-2,28,6.4356737696716459E-2,"",{"$error":"#N/A"},{"$f":"IF(Table134[[#This Row],[Column1]]=tenure,fdcashposttax,NA())","v":{"$error":"#N/A"}},{"$f":"IF(I31<=tenure,Table134[[#This Row],[Column13]],\"\")","v":""},null,null,{"$f":"IF(Table134[[#This Row],[Column15]]=\"\",1,(1+Table134[[#This Row],[Column15]]))","v":1},{"$f":"IF(Table134[[#This Row],[Column15]]=\"\",\"\",(1+Table134[[#This Row],[Column15]]))","v":""},{"$f":"IF(Table134[[#This Row],[Column15]]=\"\",\"\",LN(AC31))","v":""},null,null,null,null,null,null,30,1,5.7118629698546641E-2,2.3701821995042227E-2,null,5.7118629698546641E-2,1,0,0]
["* tax except tds. TDS is paid each FY",null,null,null,null,null,null,null,"","",{"$error":"#N/A"},"",{"$f":"IF(Table134[[#This Row],[Column1]]=tenure,Table134[[#This Row],[Column3]],\"\")","v":""},"",{"$f":"N32*((1+Table134[[#This Row],[Column13]]))","v":{"$error":"#VALUE!"}},{"$f":"IF(Table134[[#This Row],[Column1]]=tenure,IF(corpnoindex<corpindex,corpnoindex,corpindex),NA())","v":{"$error":"#N/A"}},5.5279999999999996E-2,6.0711767209872036E-2,6.0040326805434807E-2,29,6.4522757929800667E-2,"",{"$error":"#N/A"},{"$f":"IF(Table134[[#This Row],[Column1]]=tenure,fdcashposttax,NA())","v":{"$error":"#N/A"}},{"$f":"IF(I32<=tenure,Table134[[#This Row],[Column13]],\"\")","v":""},null,null,{"$f":"IF(Table134[[#This Row],[Column15]]=\"\",1,(1+Table134[[#This Row],[Column15]]))","v":1},{"$f":"IF(Table134[[#This Row],[Column15]]=\"\",\"\",(1+Table134[[#This Row],[Column15]]))","v":""},{"$f":"IF(Table134[[#This Row],[Column15]]=\"\",\"\",LN(AC32))","v":""},null,null,null,null,null,null,31,1,9.8795687149693112E-2,6.5100188136007375E-2,null,9.8795687149693112E-2,1,1,1]
[null,null,null,null,null,null,null,null,"","",{"$error":"#N/A"},"",{"$f":"IF(Table134[[#This Row],[Column1]]=tenure,Table134[[#This Row],[Column3]],\"\")","v":""},"",{"$f":"N33*((1+Table134[[#This Row],[Column13]]))","v":{"$error":"#VALUE!"}},{"$f":"IF(Table134[[#This Row],[Column1]]=tenure,IF(corpnoindex<corpindex,corpnoindex,corpindex),NA())","v":{"$error":"#N/A"}},5.5279999999999996E-2,5.4075902576439683E-2,5.9101526539768967E-2,30,6.4683270337209997E-2,"",{"$error":"#N/A"},{"$f":"IF(Table134[[#This Row],[Column1]]=tenure,fdcashposttax,NA())","v":{"$error":"#N/A"}},{"$f":"IF(I33<=tenure,Table134[[#This Row],[Column13]],\"\")","v":""},null,null,{"$f":"IF(Table134[[#This Row],[Column15]]=\"\",1,(1+Table134[[#This Row],[Column15]]))","v":1},{"$f":"IF(Table134[[#This Row],[Column15]]=\"\",\"\",(1+Table134[[#This Row],[Column15]]))","v":""},{"$f":"IF(Table134[[#This Row],[Column15]]=\"\",\"\",LN(AC33))","v":""},null,null,null,null,null,null,32,1,4.0496917215476325E-2,-2.8810655665455154E-2,null,4.0496917215476325E-2,0,0,0]
["Note that deferring tax on FD is possible only when someone consistently chooses to",null,null,null,null,null,null,null,"","",{"$error":"#N/A"},"",{"$f":"IF(Table134[[#This Row],[Column1]]=tenure,Table134[[#This Row],[Column3]],\"\")","v":""},"",{"$f":"N34*((1+Table134[[#This Row],[Column13]]))","v":{"$error":"#VALUE!"}},{"$f":"IF(Table134[[#This Row],[Column1]]=tenure,IF(corpnoindex<corpindex,corpnoindex,corpindex),NA())","v":{"$error":"#N/A"}},null,null,null,null,null,"",{"$error":"#N/A"},{"$f":"IF(Table134[[#This Row],[Column1]]=tenure,fdcashposttax,NA())","v":{"$error":"#N/A"}},{"$f":"IF(I34<=tenure,Table134[[#This Row],[Column13]],\"\")","v":""},null,null,{"$f":"IF(Table134[[#This Row],[Column15]]=\"\",1,(1+Table134[[#This Row],[Column15]]))","v":1},{"$f":"IF(Table134[[#This Row],[Column15]]=\"\",\"\",(1+Table134[[#This Row],[Column15]]))","v":""},{"$f":"IF(Table134[[#This Row],[Column15]]=\"\",\"\",LN(AC34))","v":""},null,null,null,null,null,null,33,0,0.10436044642425291,9.6257187258451449E-2,null,0.10436044642425291,1,1,1]
["follow this procedure. If you have already paid FD tax each FY then you cannot ",null,null,null,null,null,null,null,"","",{"$error":"#N/A"},"",{"$f":"IF(Table134[[#This Row],[Column1]]=tenure,Table134[[#This Row],[Column3]],\"\")","v":""},"",{"$f":"N35*((1+Table134[[#This Row],[Column13]]))","v":{"$error":"#VALUE!"}},{"$f":"IF(Table134[[#This Row],[Column1]]=tenure,IF(corpnoindex<corpindex,corpnoindex,corpindex),NA())","v":{"$error":"#N/A"}},null,null,null,null,null,"",{"$error":"#N/A"},{"$f":"IF(Table134[[#This Row],[Column1]]=tenure,fdcashposttax,NA())","v":{"$error":"#N/A"}},{"$f":"IF(I35<=tenure,Table134[[#This Row],[Column13]],\"\")","v":""},null,null,{"$f":"IF(Table134[[#This Row],[Column15]]=\"\",1,(1+Table134[[#This Row],[Column15]]))","v":1},{"$f":"IF(Table134[[#This Row],[Column15]]=\"\",\"\",(1+Table134[[#This Row],[Column15]]))","v":""},{"$f":"IF(Table134[[#This Row],[Column15]]=\"\",\"\",LN(AC35))","v":""},null,null,null,null,null,null,34,1,7.3395687288806188E-2,5.1322680293723666E-2,null,7.3395687288806188E-2,1,1,1]
["change the tax payment method!",null,null,null,null,null,null,null,"","",{"$error":"#N/A"},{"$f":"IF(I36<=tenure,(rated+SQRT(-2*LN(RAND()))*COS(2*PI()*RAND())*volatility),\"\")","v":""},{"$f":"IF(Table134[[#This Row],[Column1]]=tenure,Table134[[#This Row],[Column3]],\"\")","v":""},"",{"$f":"N36*((1+Table134[[#This Row],[Column13]]))","v":{"$error":"#VALUE!"}},{"$f":"IF(Table134[[#This Row],[Column1]]=tenure,IF(corpnoindex<corpindex,corpnoindex,corpindex),NA())","v":{"$error":"#N/A"}},null,null,null,null,null,"",{"$error":"#N/A"},{"$f":"IF(Table134[[#This Row],[Column1]]=tenure,fdcashposttax,NA())","v":{"$error":"#N/A"}},{"$f":"IF(I36<=tenure,Table134[[#This Row],[Column13]],\"\")","v":""},null,null,{"$f":"IF(Table134[[#This Row],[Column15]]=\"\",1,(1+Table134[[#This Row],[Column15]]))","v":1},{"$f":"IF(Table134[[#This Row],[Column15]]=\"\",\"\",(1+Table134[[#This Row],[Column15]]))","v":""},{"$f":"IF(Table134[[#This Row],[Column15]]=\"\",\"\",LN(AC36))","v":""},null,null,null,null,null,null,35,1,4.9547391300724497E-2,9.7766196046971343E-2,null,9.7766196046971343E-2,1,1,1]
[null,null,null,null,null,null,null,null,{"$f":"IF(I36<tenure,I36+1,\"\")","v":""},{"$f":"IF(I37<=tenure,K36,\"\")","v":""},{"$f":"IF(I37<=tenure,J37*((1+rate*(1-IF(tax=10%,10.3%,IF(tax=20%,20.6%,IF(tax=30%,30.9%)))))),NA())","v":{"$error":"#N/A"}},"",{"$f":"IF(Table134[[#This Row],[Column1]]=tenure,Table134[[#This Row],[Column3]],\"\")","v":""},{"$f":"IF(I37<=tenure,O36,\"\")","v":""},{"$f":"N37*((1+Table134[[#This Row],[Column13]]))","v":{"$error":"#VALUE!"}},{"$f":"IF(Table134[[#This Row],[Column1]]=tenure,IF(corpnoindex<corpindex,corpnoindex,corpindex),NA())","v":{"$error":"#N/A"}},null,null,null,null,null,{"$f":"IF(I37<=tenure,W36,\"\")","v":""},{"$f":"IF(I37<=tenure,V37*((1+rate*(1-10.3%))),NA())","v":{"$error":"#N/A"}},{"$f":"IF(Table134[[#This Row],[Column1]]=tenure,fdcashposttax,NA())","v":{"$error":"#N/A"}},{"$f":"IF(I37<=tenure,Table134[[#This Row],[Column13]],\"\")","v":""},null,null,{"$f":"IF(Table134[[#This Row],[Column15]]=\"\",1,(1+Table134[[#This Row],[Column15]]))","v":1},{"$f":"IF(Table134[[#This Row],[Column15]]=\"\",\"\",(1+Table134[[#This Row],[Column15]]))","v":""},{"$f":"IF(Table134[[#This Row],[Column15]]=\"\",\"\",LN(AC37))","v":""},null,null,null,null,null,null,36,0,0.1315696375556199,0.16765216694835772,null,0.16765216694835772,1,1,1]
[null,null,null,null,null,null,null,null,"","",{"$error":"#N/A"},"",{"$f":"IF(Table134[[#This Row],[Column1]]=tenure,Table134[[#This Row],[Column3]],\"\")","v":""},"",{"$f":"N38*((1+Table134[[#This Row],[Column13]]))","v":{"$error":"#VALUE!"}},{"$f":"IF(Table134[[#This Row],[Column1]]=tenure,IF(corpnoindex<corpindex,corpnoindex,corpindex),NA())","v":{"$error":"#N/A"}},null,null,null,null,null,"",{"$error":"#N/A"},{"$f":"IF(Table134[[#This Row],[Column1]]=tenure,fdcashposttax,NA())","v":{"$error":"#N/A"}},{"$f":"IF(I38<=tenure,Table134[[#This Row],[Column13]],\"\")","v":""},null,null,{"$f":"IF(Table134[[#This Row],[Column15]]=\"\",1,(1+Table134[[#This Row],[Column15]]))","v":1},{"$f":"IF(Table134[[#This Row],[Column15]]=\"\",\"\",(1+Table134[[#This Row],[Column15]]))","v":""},{"$f":"IF(Table134[[#This Row],[Column15]]=\"\",\"\",LN(AC38))","v":""},null,null,null,null,null,null,37,1,-9.4141113166266166E-3,6.9001877961033076E-2,null,6.9001877961033076E-2,1,1,1]
[null,null,null,null,null,null,null,null,"","",{"$error":"#N/A"},"",{"$f":"IF(Table134[[#This Row],[Column1]]=tenure,Table134[[#This Row],[Column3]],\"\")","v":""},"",{"$f":"N39*((1+Table134[[#This Row],[Column13]]))","v":{"$error":"#VALUE!"}},{"$f":"IF(Table134[[#This Row],[Column1]]=tenure,IF(corpnoindex<corpindex,corpnoindex,corpindex),NA())","v":{"$error":"#N/A"}},null,null,null,null,null,"",{"$error":"#N/A"},{"$f":"IF(Table134[[#This Row],[Column1]]=tenure,fdcashposttax,NA())","v":{"$error":"#N/A"}},{"$f":"IF(I39<=tenure,Table134[[#This Row],[Column13]],\"\")","v":""},null,null,{"$f":"IF(Table134[[#This Row],[Column15]]=\"\",1,(1+Table134[[#This Row],[Column15]]))","v":1},{"$f":"IF(Table134[[#This Row],[Column15]]=\"\",\"\",(1+Table134[[#This Row],[Column15]]))","v":""},{"$f":"IF(Table134[[#This Row],[Column15]]=\"\",\"\",LN(AC39))","v":""},null,null,null,null,null,null,38,1,0.14360584922789665,0.15383992627928156,null,0.15383992627928156,1,1,1]
[null,null,null,null,null,null,null,null,"","",{"$error":"#N/A"},"",{"$f":"IF(Table134[[#This Row],[Column1]]=tenure,Table134[[#This Row],[Column3]],\"\")","v":""},"",{"$f":"N40*((1+Table134[[#This Row],[Column13]]))","v":{"$error":"#VALUE!"}},{"$f":"IF(Table134[[#This Row],[Column1]]=tenure,IF(corpnoindex<corpindex,corpnoindex,corpindex),NA())","v":{"$error":"#N/A"}},null,null,null,null,null,"",{"$error":"#N/A"},{"$f":"IF(Table134[[#This Row],[Column1]]=tenure,fdcashposttax,NA())","v":{"$error":"#N/A"}},{"$f":"IF(I40<=tenure,Table134[[#This Row],[Column13]],\"\")","v":""},null,null,{"$f":"IF(Table134[[#This Row],[Column15]]=\"\",1,(1+Table134[[#This Row],[Column15]]))","v":1},{"$f":"IF(Table134[[#This Row],[Column15]]=\"\",\"\",(1+Table134[[#This Row],[Column15]]))","v":""},{"$f":"IF(Table134[[#This Row],[Column15]]=\"\",\"\",LN(AC40))","v":""},null,null,null,null,null,null,39,1,-2.74195435122363E-2,5.6069059108315722E-2,null,5.6069059108315722E-2,1,0,0]
[null,null,null,null,null,null,null,null,"","",{"$error":"#N/A"},"",{"$f":"IF(Table134[[#This Row],[Column1]]=tenure,Table134[[#This Row],[Column3]],\"\")","v":""},"",{"$f":"N41*((1+Table134[[#This Row],[Column13]]))","v":{"$error":"#VALUE!"}},{"$f":"IF(Table134[[#This Row],[Column1]]=tenure,IF(corpnoindex<corpindex,corpnoindex,corpindex),NA())","v":{"$error":"#N/A"}},null,null,null,null,null,"",{"$error":"#N/A"},{"$f":"IF(Table134[[#This Row],[Column1]]=tenure,fdcashposttax,NA())","v":{"$error":"#N/A"}},{"$f":"IF(I41<=tenure,Table134[[#This Row],[Column13]],\"\")","v":""},null,null,{"$f":"IF(Table134[[#This Row],[Column15]]=\"\",1,(1+Table134[[#This Row],[Column15]]))","v":1},{"$f":"IF(Table134[[#This Row],[Column15]]=\"\",\"\",(1+Table134[[#This Row],[Column15]]))","v":""},{"$f":"IF(Table134[[#This Row],[Column15]]=\"\",\"\",LN(AC41))","v":""},null,null,null,null,null,null,40,2,0.14314799218991148,0.13343787133542429,null,0.14314799218991148,1,1,1]
[null,null,null,null,null,null,null,null,"","",{"$error":"#N/A"},"",{"$f":"IF(Table134[[#This Row],[Column1]]=tenure,Table134[[#This Row],[Column3]],\"\")","v":""},"",{"$f":"N42*((1+Table134[[#This Row],[Column13]]))","v":{"$error":"#VALUE!"}},{"$f":"IF(Table134[[#This Row],[Column1]]=tenure,IF(corpnoindex<corpindex,corpnoindex,corpindex),NA())","v":{"$error":"#N/A"}},null,null,null,null,null,"",{"$error":"#N/A"},{"$f":"IF(Table134[[#This Row],[Column1]]=tenure,fdcashposttax,NA())","v":{"$error":"#N/A"}},{"$f":"IF(I42<=tenure,Table134[[#This Row],[Column13]],\"\")","v":""},null,null,{"$f":"IF(Table134[[#This Row],[Column15]]=\"\",1,(1+Table134[[#This Row],[Column15]]))","v":1},{"$f":"IF(Table134[[#This Row],[Column15]]=\"\",\"\",(1+Table134[[#This Row],[Column15]]))","v":""},{"$f":"IF(Table134[[#This Row],[Column15]]=\"\",\"\",LN(AC42))","v":""},null,null,null,null,null,null,41,1,0.14898479436495471,-1.8257381911689241E-2,null,0.14898479436495471,1,1,1]
[null,null,null,null,null,null,null,null,"","",{"$error":"#N/A"},"",{"$f":"IF(Table134[[#This Row],[Column1]]=tenure,Table134[[#This Row],[Column3]],\"\")","v":""},"",{"$f":"N43*((1+Table134[[#This Row],[Column13]]))","v":{"$error":"#VALUE!"}},{"$f":"IF(Table134[[#This Row],[Column1]]=tenure,IF(corpnoindex<corpindex,corpnoindex,corpindex),NA())","v":{"$error":"#N/A"}},null,null,null,null,null,"",{"$error":"#N/A"},{"$f":"IF(Table134[[#This Row],[Column1]]=tenure,fdcashposttax,NA())","v":{"$error":"#N/A"}},{"$f":"IF(I43<=tenure,Table134[[#This Row],[Column13]],\"\")","v":""},null,null,{"$f":"IF(Table134[[#This Row],[Column15]]=\"\",1,(1+Table134[[#This Row],[Column15]]))","v":1},{"$f":"IF(Table134[[#This Row],[Column15]]=\"\",\"\",(1+Table134[[#This Row],[Column15]]))","v":""},{"$f":"IF(Table134[[#This Row],[Column15]]=\"\",\"\",LN(AC43))","v":""},null,null,null,null,null,null,42,1,-3.8679611446720275E-2,1.4501260977133779E-2,null,1.4501260977133779E-2,0,0,0]
[null,null,null,null,null,null,null,null,"","",{"$error":"#N/A"},"",{"$f":"IF(Table134[[#This Row],[Column1]]=tenure,Table134[[#This Row],[Column3]],\"\")","v":""},"",{"$f":"N44*((1+Table134[[#This Row],[Column13]]))","v":{"$error":"#VALUE!"}},{"$f":"IF(Table134[[#This Row],[Column1]]=tenure,IF(corpnoindex<corpindex,corpnoindex,corpindex),NA())","v":{"$error":"#N/A"}},null,null,null,null,null,"",{"$error":"#N/A"},{"$f":"IF(Table134[[#This Row],[Column1]]=tenure,fdcashposttax,NA())","v":{"$error":"#N/A"}},{"$f":"IF(I44<=tenure,Table134[[#This Row],[Column13]],\"\")","v":""},null,null,{"$f":"IF(Table134[[#This Row],[Column15]]=\"\",1,(1+Table134[[#This Row],[Column15]]))","v":1},{"$f":"IF(Table134[[#This Row],[Column15]]=\"\",\"\",(1+Table134[[#This Row],[Column15]]))","v":""},{"$f":"IF(Table134[[#This Row],[Column15]]=\"\",\"\",LN(AC44))","v":""},null,null,null,null,null,null,43,0,8.0090379595336048E-2,5.6163011219051429E-2,null,8.0090379595336048E-2,1,1,1]
[null,null,null,null,null,null,null,null,"","",{"$error":"#N/A"},"",{"$f":"IF(Table134[[#This Row],[Column1]]=tenure,Table134[[#This Row],[Column3]],\"\")","v":""},"",{"$f":"N45*((1+Table134[[#This Row],[Column13]]))","v":{"$error":"#VALUE!"}},{"$f":"IF(Table134[[#This Row],[Column1]]=tenure,IF(corpnoindex<corpindex,corpnoindex,corpindex),NA())","v":{"$error":"#N/A"}},null,null,null,null,null,"",{"$error":"#N/A"},{"$f":"IF(Table134[[#This Row],[Column1]]=tenure,fdcashposttax,NA())","v":{"$error":"#N/A"}},{"$f":"IF(I45<=tenure,Table134[[#This Row],[Column13]],\"\")","v":""},null,null,{"$f":"IF(Table134[[#This Row],[Column15]]=\"\",1,(1+Table134[[#This Row],[Column15]]))","v":1},{"$f":"IF(Table134[[#This Row],[Column15]]=\"\",\"\",(1+Table134[[#This Row],[Column15]]))","v":""},{"$f":"IF(Table134[[#This Row],[Column15]]=\"\",\"\",LN(AC45))","v":""},null,null,null,null,null,null,44,1,6.9502382613689573E-2,4.8759612773768168E-2,null,6.9502382613689573E-2,1,1,1]
[null,null,null,null,null,null,null,null,"","",{"$error":"#N/A"},"",{"$f":"IF(Table134[[#This Row],[Column1]]=tenure,Table134[[#This Row],[Column3]],\"\")","v":""},"",{"$f":"N46*((1+Table134[[#This Row],[Column13]]))","v":{"$error":"#VALUE!"}},{"$f":"IF(Table134[[#This Row],[Column1]]=tenure,IF(corpnoindex<corpindex,corpnoindex,corpindex),NA())","v":{"$error":"#N/A"}},null,null,null,null,null,"",{"$error":"#N/A"},{"$f":"IF(Table134[[#This Row],[Column1]]=tenure,fdcashposttax,NA())","v":{"$error":"#N/A"}},{"$f":"IF(I46<=tenure,Table134[[#This Row],[Column13]],\"\")","v":""},null,null,{"$f":"IF(Table134[[#This Row],[Column15]]=\"\",1,(1+Table134[[#This Row],[Column15]]))","v":1},{"$f":"IF(Table134[[#This Row],[Column15]]=\"\",\"\",(1+Table134[[#This Row],[Column15]]))","v":""},{"$f":"IF(Table134[[#This Row],[Column15]]=\"\",\"\",LN(AC46))","v":""},null,null,null,null,null,null,45,1,2.3215524112100816E-2,-2.4631475389742308E-2,null,2.3215524112100816E-2,0,0,0]
[null,null,null,null,null,null,null,null,"","",{"$error":"#N/A"},"",{"$f":"IF(Table134[[#This Row],[Column1]]=tenure,Table134[[#This Row],[Column3]],\"\")","v":""},"",{"$f":"N47*((1+Table134[[#This Row],[Column13]]))","v":{"$error":"#VALUE!"}},{"$f":"IF(Table134[[#This Row],[Column1]]=tenure,IF(corpnoindex<corpindex,corpnoindex,corpindex),NA())","v":{"$error":"#N/A"}},null,null,null,null,null,"",{"$error":"#N/A"},{"$f":"IF(Table134[[#This Row],[Column1]]=tenure,fdcashposttax,NA())","v":{"$error":"#N/A"}},{"$f":"IF(I47<=tenure,Table134[[#This Row],[Column13]],\"\")","v":""},null,null,{"$f":"IF(Table134[[#This Row],[Column15]]=\"\",1,(1+Table134[[#This Row],[Column15]]))","v":1},{"$f":"IF(Table134[[#This Row],[Column15]]=\"\",\"\",(1+Table134[[#This Row],[Column15]]))","v":""},{"$f":"IF(Table134[[#This Row],[Column15]]=\"\",\"\",LN(AC47))","v":""},null,null,null,null,null,null,46,1,8.1069419195540782E-3,3.817365306066578E-2,null,3.817365306066578E-2,0,0,0]
[null,null,null,null,null,null,null,null,"","",{"$error":"#N/A"},"",{"$f":"IF(Table134[[#This Row],[Column1]]=tenure,Table134[[#This Row],[Column3]],\"\")","v":""},"",{"$f":"N48*((1+Table134[[#This Row],[Column13]]))","v":{"$error":"#VALUE!"}},{"$f":"IF(Table134[[#This Row],[Column1]]=tenure,IF(corpnoindex<corpindex,corpnoindex,corpindex),NA())","v":{"$error":"#N/A"}},null,null,null,null,null,"",{"$error":"#N/A"},{"$f":"IF(Table134[[#This Row],[Column1]]=tenure,fdcashposttax,NA())","v":{"$error":"#N/A"}},{"$f":"IF(I48<=tenure,Table134[[#This Row],[Column13]],\"\")","v":""},null,null,{"$f":"IF(Table134[[#This Row],[Column15]]=\"\",1,(1+Table134[[#This Row],[Column15]]))","v":1},{"$f":"IF(Table134[[#This Row],[Column15]]=\"\",\"\",(1+Table134[[#This Row],[Column15]]))","v":""},{"$f":"IF(Table134[[#This Row],[Column15]]=\"\",\"\",LN(AC48))","v":""},null,null,null,null,null,null,47,1,0.10069139964263574,6.7792124512712215E-2,null,0.10069139964263574,1,1,1]
[null,null,null,null,null,null,null,null,"","",{"$error":"#N/A"},"",{"$f":"IF(Table134[[#This Row],[Column1]]=tenure,Table134[[#This Row],[Column3]],\"\")","v":""},"",{"$f":"N49*((1+Table134[[#This Row],[Column13]]))","v":{"$error":"#VALUE!"}},{"$f":"IF(Table134[[#This Row],[Column1]]=tenure,IF(corpnoindex<corpindex,corpnoindex,corpindex),NA())","v":{"$error":"#N/A"}},null,null,null,null,null,"",{"$error":"#N/A"},{"$f":"IF(Table134[[#This Row],[Column1]]=tenure,fdcashposttax,NA())","v":{"$error":"#N/A"}},{"$f":"IF(I49<=tenure,Table134[[#This Row],[Column13]],\"\")","v":""},null,null,{"$f":"IF(Table134[[#This Row],[Column15]]=\"\",1,(1+Table134[[#This Row],[Column15]]))","v":1},{"$f":"IF(Table134[[#This Row],[Column15]]=\"\",\"\",(1+Table134[[#This Row],[Column15]]))","v":""},{"$f":"IF(Table134[[#This Row],[Column15]]=\"\",\"\",LN(AC49))","v":""},null,null,null,null,null,null,48,1,-3.2210684816485813E-2,-3.3632900070955762E-2,null,-3.2210684816485813E-2,0,0,0]
[null,null,null,null,null,null,null,null,"","",{"$error":"#N/A"},"",{"$f":"IF(Table134[[#This Row],[Column1]]=tenure,Table134[[#This Row],[Column3]],\"\")","v":""},"",{"$f":"N50*((1+Table134[[#This Row],[Column13]]))","v":{"$error":"#VALUE!"}},{"$f":"IF(Table134[[#This Row],[Column1]]=tenure,IF(corpnoindex<corpindex,corpnoindex,corpindex),NA())","v":{"$error":"#N/A"}},null,null,null,null,null,"",{"$error":"#N/A"},{"$f":"IF(Table134[[#This Row],[Column1]]=tenure,fdcashposttax,NA())","v":{"$error":"#N/A"}},{"$f":"IF(I50<=tenure,Table134[[#This Row],[Column13]],\"\")","v":""},null,null,{"$f":"IF(Table134[[#This Row],[Column15]]=\"\",1,(1+Table134[[#This Row],[Column15]]))","v":1},{"$f":"IF(Table134[[#This Row],[Column15]]=\"\",\"\",(1+Table134[[#This Row],[Column15]]))","v":""},{"$f":"IF(Table134[[#This Row],[Column15]]=\"\",\"\",LN(AC50))","v":""},null,null,null,null,null,null,49,0,-1.2630554398485927E-2,3.4056697062807784E-2,null,3.4056697062807784E-2,0,0,0]
[null,null,null,null,null,null,null,null,"","",{"$error":"#N/A"},"",{"$f":"IF(Table134[[#This Row],[Column1]]=tenure,Table134[[#This Row],[Column3]],\"\")","v":""},"",{"$f":"N51*((1+Table134[[#This Row],[Column13]]))","v":{"$error":"#VALUE!"}},{"$f":"IF(Table134[[#This Row],[Column1]]=tenure,IF(corpnoindex<corpindex,corpnoindex,corpindex),NA())","v":{"$error":"#N/A"}},null,null,null,null,null,"",{"$error":"#N/A"},{"$f":"IF(Table134[[#This Row],[Column1]]=tenure,fdcashposttax,NA())","v":{"$error":"#N/A"}},{"$f":"IF(I51<=tenure,Table134[[#This Row],[Column13]],\"\")","v":""},null,null,{"$f":"IF(Table134[[#This Row],[Column15]]=\"\",1,(1+Table134[[#This Row],[Column15]]))","v":1},{"$f":"IF(Table134[[#This Row],[Column15]]=\"\",\"\",(1+Table134[[#This Row],[Column15]]))","v":""},{"$f":"IF(Table134[[#This Row],[Column15]]=\"\",\"\",LN(AC51))","v":""},null,null,null,null,null,null,50,2,6.7135838927030678E-2,5.032378999863707E-2,null,6.7135838927030678E-2,1,1,1]
[null,null,null,null,null,null,null,null,"","",{"$error":"#N/A"},"",{"$f":"IF(Table134[[#This Row],[Column1]]=tenure,Table134[[#This Row],[Column3]],\"\")","v":""},"",{"$f":"N52*((1+Table134[[#This Row],[Column13]]))","v":{"$error":"#VALUE!"}},{"$f":"IF(Table134[[#This Row],[Column1]]=tenure,IF(corpnoindex<corpindex,corpnoindex,corpindex),NA())","v":{"$error":"#N/A"}},null,null,null,null,null,"",{"$error":"#N/A"},{"$f":"IF(Table134[[#This Row],[Column1]]=tenure,fdcashposttax,NA())","v":{"$error":"#N/A"}},{"$f":"IF(I52<=tenure,Table134[[#This Row],[Column13]],\"\")","v":""},null,null,{"$f":"IF(Table134[[#This Row],[Column15]]=\"\",1,(1+Table134[[#This Row],[Column15]]))","v":1},{"$f":"IF(Table134[[#This Row],[Column15]]=\"\",\"\",(1+Table134[[#This Row],[Column15]]))","v":""},{"$f":"IF(Table134[[#This Row],[Column15]]=\"\",\"\",LN(AC52))","v":""},null,null,null,null,null,null,51,0,6.9477283278698954E-2,6.8874798285066818E-2,null,6.9477283278698954E-2,1,1,1]
[null,null,null,null,null,null,null,null,"","",{"$error":"#N/A"},"",{"$f":"IF(Table134[[#This Row],[Column1]]=tenure,Table134[[#This Row],[Column3]],\"\")","v":""},"",{"$f":"N53*((1+Table134[[#This Row],[Column13]]))","v":{"$error":"#VALUE!"}},{"$f":"IF(Table134[[#This Row],[Column1]]=tenure,IF(corpnoindex<corpindex,corpnoindex,corpindex),NA())","v":{"$error":"#N/A"}},null,null,null,null,null,"",{"$error":"#N/A"},{"$f":"IF(Table134[[#This Row],[Column1]]=tenure,fdcashposttax,NA())","v":{"$error":"#N/A"}},{"$f":"IF(I53<=tenure,Table134[[#This Row],[Column13]],\"\")","v":""},null,null,{"$f":"IF(Table134[[#This Row],[Column15]]=\"\",1,(1+Table134[[#This Row],[Column15]]))","v":1},{"$f":"IF(Table134[[#This Row],[Column15]]=\"\",\"\",(1+Table134[[#This Row],[Column15]]))","v":""},{"$f":"IF(Table134[[#This Row],[Column15]]=\"\",\"\",LN(AC53))","v":""},null,null,null,null,null,null,52,1,5.6389602399794958E-2,9.641507298104468E-2,null,9.641507298104468E-2,1,1,1]
[null,null,null,null,null,null,null,null,null,null,null,null,null,null,null,null,null,null,null,null,null,null,null,null,null,null,null,null,null,null,null,null,null,null,null,null,53,1,6.6237051361321519E-2,6.7896004829864687E-2,null,6.7896004829864687E-2,1,1,1]
[null,null,null,null,null,null,null,null,null,null,null,null,null,null,null,null,null,null,null,null,null,null,null,null,null,null,null,null,null,null,null,null,null,null,null,null,54,0,7.1904522891685696E-2,4.8365082378154511E-5,null,7.1904522891685696E-2,1,1,1]
[null,null,null,null,null,null,null,null,null,null,null,null,null,null,null,null,null,null,null,null,null,null,null,null,null,null,null,null,null,null,null,null,null,null,null,null,55,1,2.752002525997943E-3,2.8153212157845164E-2,null,2.8153212157845164E-2,0,0,0]
[null,null,null,null,null,null,null,null,null,null,null,null,null,null,null,null,null,null,null,null,null,null,null,null,null,null,null,null,null,null,null,null,null,null,null,null,56,1,4.7198122544840126E-2,4.7317663895644513E-2,null,4.7317663895644513E-2,0,0,0]
[null,null,null,null,null,null,null,null,null,null,null,null,null,null,null,null,null,null,null,null,null,null,null,null,null,null,null,null,null,null,null,null,null,null,null,null,57,0,6.318289231027685E-2,8.4506453342570564E-2,null,8.4506453342570564E-2,1,1,1]
[null,null,null,null,null,null,null,null,null,null,null,null,null,null,null,null,null,null,null,null,null,null,null,null,null,null,null,null,null,null,null,null,null,null,null,null,58,1,-4.9329087225913892E-2,0.1400127482115141,null,0.1400127482115141,1,1,1]
[null,null,null,null,null,null,null,null,null,null,null,null,null,null,null,null,null,null,null,null,null,null,null,null,null,null,null,null,null,null,null,null,null,null,null,null,59,0,-5.1718851912510355E-2,0.16056622782967356,null,0.16056622782967356,1,1,1]
[null,null,null,null,null,null,null,null,null,null,null,null,null,null,null,null,null,null,null,null,null,null,null,null,null,null,null,null,null,null,null,null,null,null,null,null,60,1,6.0014697698830055E-2,1.5375824428861984E-2,null,6.0014697698830055E-2,1,0,0]
[null,null,null,null,null,null,null,null,null,null,null,null,null,null,null,null,null,null,null,null,null,null,null,null,null,null,null,null,null,null,null,null,null,null,null,null,61,0,0.13876019077446244,0.11682245769535848,null,0.13876019077446244,1,1,1]
[null,null,null,null,null,null,null,null,null,null,null,null,null,null,null,null,null,null,null,null,null,null,null,null,null,null,null,null,null,null,null,null,null,null,null,null,62,1,0.13033236985410812,4.2669255068112255E-2,null,0.13033236985410812,1,1,1]
[null,null,null,null,null,null,null,null,null,null,null,null,null,null,null,null,null,null,null,null,null,null,null,null,null,null,null,null,null,null,null,null,null,null,null,null,63,1,2.2004879149097212E-2,8.4586376393418483E-2,null,8.4586376393418483E-2,1,1,1]
[null,null,null,null,null,null,null,null,null,null,null,null,null,null,null,null,null,null,null,null,null,null,null,null,null,null,null,null,null,null,null,null,null,null,null,null,64,2,3.609133288242683E-2,0.11557617848424506,null,0.11557617848424506,1,1,1]
[null,null,null,null,null,null,null,null,null,null,null,null,null,null,null,null,null,null,null,null,null,null,null,null,null,null,null,null,null,null,null,null,null,null,null,null,65,1,2.8099809275337062E-3,6.1127261192441829E-3,null,6.1127261192441829E-3,{"$f":"IF(MAX(AM66:AN66)>fdfy,1,0)","v":0},{"$f":"IF(MAX(AM66:AN66)>fdcash,1,0)","v":0},0]
[null,null,null,null,null,null,null,null,null,null,null,null,null,null,null,null,null,null,null,null,null,null,null,null,null,null,null,null,null,null,null,null,null,null,null,null,66,2,9.6528871932827442E-2,-4.8202633767859715E-2,null,9.6528871932827442E-2,1,1,{"$f":"IF(AQ67+AR67=2,1,0)","v":1}]
[null,null,null,null,null,null,null,null,null,null,null,null,null,null,null,null,null,null,null,null,null,null,null,null,null,null,null,null,null,null,null,null,null,null,null,null,67,0,3.2044395031624706E-2,0.10359126065569679,null,0.10359126065569679,1,1,1]
[null,null,null,null,null,null,null,null,null,null,null,null,null,null,null,null,null,null,null,null,null,null,null,null,null,null,null,null,null,null,null,null,null,null,null,null,68,1,-1.9407082488091532E-2,7.4058985215523121E-2,null,7.4058985215523121E-2,1,1,1]
[null,null,null,null,null,null,null,null,null,null,null,null,null,null,null,null,null,null,null,null,null,null,null,null,null,null,null,null,null,null,null,null,null,null,null,null,69,1,6.2034792454917165E-2,0.10496538202234262,null,0.10496538202234262,1,1,1]
[null,null,null,null,null,null,null,null,null,null,null,null,null,null,null,null,null,null,null,null,null,null,null,null,null,null,null,null,null,null,null,null,null,null,null,null,70,0,0.14939874050289315,9.0333191854752082E-2,null,0.14939874050289315,1,1,1]
[null,null,null,null,null,null,null,null,null,null,null,null,null,null,null,null,null,null,null,null,null,null,null,null,null,null,null,null,null,null,null,null,null,null,null,null,71,0,3.154210928822887E-2,0.13774046975108267,null,0.13774046975108267,1,1,1]
[null,null,null,null,null,null,null,null,null,null,null,null,null,null,null,null,null,null,null,null,null,null,null,null,null,null,null,null,null,null,null,null,null,null,null,null,72,0,1.626124858644129E-2,0.10095242480562439,null,0.10095242480562439,1,1,1]
[null,null,null,null,null,null,null,null,null,null,null,null,null,null,null,null,null,null,null,null,null,null,null,null,null,null,null,null,null,null,null,null,null,null,null,null,73,1,0.12056344216009252,2.2527598299749485E-2,null,0.12056344216009252,1,1,1]
[null,null,null,null,null,null,null,null,null,null,null,null,null,null,null,null,null,null,null,null,null,null,null,null,null,null,null,null,null,null,null,null,null,null,null,null,74,1,0.12062210745021074,4.4400770071874707E-2,null,0.12062210745021074,1,1,1]
[null,null,null,null,null,null,null,null,null,null,null,null,null,null,null,null,null,null,null,null,null,null,null,null,null,null,null,null,null,null,null,null,null,null,null,null,75,1,0.11327375751432522,0.1424495484882875,null,0.1424495484882875,1,1,1]
[null,null,null,null,null,null,null,null,null,null,null,null,null,null,null,null,null,null,null,null,null,null,null,null,null,null,null,null,null,null,null,null,null,null,null,null,76,1,0.10430396044296431,2.5597905068970084E-2,null,0.10430396044296431,1,1,1]
[null,null,null,null,null,null,null,null,null,null,null,null,null,null,null,null,null,null,null,null,null,null,null,null,null,null,null,null,null,null,null,null,null,null,null,null,77,1,3.0724597333213755E-2,1.7509824278843844E-2,null,3.0724597333213755E-2,0,0,0]
[null,null,null,null,null,null,null,null,null,null,null,null,null,null,null,null,null,null,null,null,null,null,null,null,null,null,null,null,null,null,null,null,null,null,null,null,78,0,6.8483569514408593E-2,2.475847668276443E-2,null,6.8483569514408593E-2,1,1,1]
[null,null,null,null,null,null,null,null,null,null,null,null,null,null,null,null,null,null,null,null,null,null,null,null,null,null,null,null,null,null,null,null,null,null,null,null,79,1,0.13126759775711982,5.5179176356173532E-2,null,0.13126759775711982,1,1,1]
[null,null,null,null,null,null,null,null,null,null,null,null,null,null,null,null,null,null,null,null,null,null,null,null,null,null,null,null,null,null,null,null,null,null,null,null,80,0,4.6994705092613165E-2,-2.6737981982465686E-2,null,{"$f":"MAX(AM81:AN81)","v":4.6994705092613165E-2},0,0,0]
[null,null,null,null,null,null,null,null,null,null,null,null,null,null,null,null,null,null,null,null,null,null,null,null,null,null,null,null,null,null,null,null,null,null,null,null,81,0,2.1493623965481268E-2,-3.3431583965047862E-2,null,2.1493623965481268E-2,0,0,0]
[null,null,null,null,null,null,null,null,null,null,null,null,null,null,null,null,null,null,null,null,null,null,null,null,null,null,null,null,null,null,null,null,null,null,null,null,82,0,0.12969915739101689,0.13463183486556596,null,0.13463183486556596,1,1,1]
[null,null,null,null,null,null,null,null,null,null,null,null,null,null,null,null,null,null,null,null,null,null,null,null,null,null,null,null,null,null,null,null,null,null,null,null,83,1,7.1800276982400213E-2,0.10877930490522014,null,0.10877930490522014,1,1,1]
[null,null,null,null,null,null,null,null,null,null,null,null,null,null,null,null,null,null,null,null,null,null,null,null,null,null,null,null,null,null,null,null,null,null,null,null,84,0,0.13338171526762577,1.246161582777372E-2,null,0.13338171526762577,1,1,1]
[null,null,null,null,null,null,null,null,null,null,null,null,null,null,null,null,null,null,null,null,null,null,null,null,null,null,null,null,null,null,null,null,null,null,null,null,85,1,-4.1316081736864407E-2,1.3529385098675073E-2,null,1.3529385098675073E-2,0,0,0]
[null,null,null,null,null,null,null,null,null,null,null,null,null,null,null,null,null,null,null,null,null,null,null,null,null,null,null,null,null,null,null,null,null,null,null,null,86,1,-2.7387552567262996E-2,3.5472116836591239E-2,null,3.5472116836591239E-2,0,0,0]
[null,null,null,null,null,null,null,null,null,null,null,null,null,null,null,null,null,null,null,null,null,null,null,null,null,null,null,null,null,null,null,null,null,null,null,null,87,1,9.2434004477733644E-2,4.0650555715582071E-2,null,9.2434004477733644E-2,1,1,1]
[null,null,null,null,null,null,null,null,null,null,null,null,null,null,null,null,null,null,null,null,null,null,null,null,null,null,null,null,null,null,null,null,null,null,null,null,88,1,4.0719369577902009E-2,7.0494263099264876E-2,null,7.0494263099264876E-2,1,1,1]
[null,null,null,null,null,null,null,null,null,null,null,null,null,null,null,null,null,null,null,null,null,null,null,null,null,null,null,null,null,null,null,null,null,null,null,null,89,0,5.7579707216533382E-2,-6.8757363433851193E-3,null,5.7579707216533382E-2,1,0,0]
[null,null,null,null,null,null,null,null,null,null,null,null,null,null,null,null,null,null,null,null,null,null,null,null,null,null,null,null,null,null,null,null,null,null,null,null,90,0,0.11097526694060122,7.7995951144938847E-2,null,0.11097526694060122,1,1,1]
[null,null,null,null,null,null,null,null,null,null,null,null,null,null,null,null,null,null,null,null,null,null,null,null,null,null,null,null,null,null,null,null,null,null,null,null,91,1,8.8263692169077146E-4,9.8819339992370248E-2,null,9.8819339992370248E-2,1,1,1]
[null,null,null,null,null,null,null,null,null,null,null,null,null,null,null,null,null,null,null,null,null,null,null,null,null,null,null,null,null,null,null,null,null,null,null,null,92,1,9.6702332856008155E-2,5.9560907971124566E-2,null,9.6702332856008155E-2,1,1,1]
[null,null,null,null,null,null,null,null,null,null,null,null,null,null,null,null,null,null,null,null,null,null,null,null,null,null,null,null,null,null,null,null,null,null,null,null,93,0,7.7374521399927731E-2,0.10480018585674022,null,0.10480018585674022,1,1,1]
[null,null,null,null,null,null,null,null,null,null,null,null,null,null,null,null,null,null,null,null,null,null,null,null,null,null,null,null,null,null,null,null,null,null,null,null,94,1,1.106126649729422E-2,0.11188002066426073,null,0.11188002066426073,1,1,1]
[null,null,null,null,null,null,null,null,null,null,null,null,null,null,null,null,null,null,null,null,null,null,null,null,null,null,null,null,null,null,null,null,null,null,null,null,95,1,7.5146024382036991E-2,0.14051170566644466,null,0.14051170566644466,1,1,1]
[null,null,null,null,null,null,null,null,null,null,null,null,null,null,null,null,null,null,null,null,null,null,null,null,null,null,null,null,null,null,null,null,null,null,null,null,96,0,6.9146440385646768E-2,-2.0109243797527765E-2,null,6.9146440385646768E-2,1,1,1]
[null,null,null,null,null,null,null,null,null,null,null,null,null,null,null,null,null,null,null,null,null,null,null,null,null,null,null,null,null,null,null,null,null,null,null,null,97,1,0.15281460035198502,7.4109597211338141E-2,null,0.15281460035198502,1,1,1]
[null,null,null,null,null,null,null,null,null,null,null,null,null,null,null,null,null,null,null,null,null,null,null,null,null,null,null,null,null,null,null,null,null,null,null,null,98,0,0.12453391089021237,6.6755271971169483E-2,null,0.12453391089021237,1,1,1]
[null,null,null,null,null,null,null,null,null,null,null,null,null,null,null,null,null,null,null,null,null,null,null,null,null,null,null,null,null,null,null,null,null,null,null,null,99,0,0.15643085469879114,3.0039854843116665E-2,null,0.15643085469879114,1,1,1]
[null,null,null,null,null,null,null,null,null,null,null,null,null,null,null,null,null,null,null,null,null,null,null,null,null,null,null,null,null,null,null,null,null,null,null,null,100,1,8.1949093894578162E-2,5.53078492555239E-2,null,8.1949093894578162E-2,1,1,1]
[null,null,null,null,null,null,null,null,null,null,null,null,null,null,null,null,null,null,null,null,null,null,null,null,null,null,null,null,null,null,null,null,null,null,null,null,101,0,3.3590464533502784E-2,-2.0820286707902591E-2,null,3.3590464533502784E-2,0,0,0]
[null,null,null,null,null,null,null,null,null,null,null,null,null,null,null,null,null,null,null,null,null,null,null,null,null,null,null,null,null,null,null,null,null,null,null,null,102,0,6.3359798585795435E-2,0.16819837486839928,null,0.16819837486839928,1,1,1]
[null,null,null,null,null,null,null,null,null,null,null,null,null,null,null,null,null,null,null,null,null,null,null,null,null,null,null,null,null,null,null,null,null,null,null,null,103,0,0.12022146667128131,4.4804414522466196E-2,null,0.12022146667128131,1,1,1]
[null,null,null,null,null,null,null,null,null,null,null,null,null,null,null,null,null,null,null,null,null,null,null,null,null,null,null,null,null,null,null,null,null,null,null,null,104,1,-1.8298036917829053E-2,6.6378976452974525E-2,null,6.6378976452974525E-2,1,1,1]
[null,null,null,null,null,null,null,null,null,null,null,null,null,null,null,null,null,null,null,null,null,null,null,null,null,null,null,null,null,null,null,null,null,null,null,null,105,0,0.12827659675905201,2.9528333366567461E-2,null,0.12827659675905201,1,1,1]
[null,null,null,null,null,null,null,null,null,null,null,null,null,null,null,null,null,null,null,null,null,null,null,null,null,null,null,null,null,null,null,null,null,null,null,null,106,0,0.15585091696275377,4.4409205494337689E-2,null,0.15585091696275377,1,1,1]
[null,null,null,null,null,null,null,null,null,null,null,null,null,null,null,null,null,null,null,null,null,null,null,null,null,null,null,null,null,null,null,null,null,null,null,null,107,0,0.11988266143494997,2.3222611709735164E-2,null,0.11988266143494997,1,1,1]
[null,null,null,null,null,null,null,null,null,null,null,null,null,null,null,null,null,null,null,null,null,null,null,null,null,null,null,null,null,null,null,null,null,null,null,null,108,2,-6.1665696371235756E-2,0.12812075709434301,null,0.12812075709434301,1,1,1]
[null,null,null,null,null,null,null,null,null,null,null,null,null,null,null,null,null,null,null,null,null,null,null,null,null,null,null,null,null,null,null,null,null,null,null,null,109,1,3.8200032103803849E-2,3.2156375120558023E-2,null,3.8200032103803849E-2,0,0,0]
[null,null,null,null,null,null,null,null,null,null,null,null,null,null,null,null,null,null,null,null,null,null,null,null,null,null,null,null,null,null,null,null,null,null,null,null,110,1,3.3772634087216868E-3,0.12263666817333507,null,0.12263666817333507,1,1,1]
[null,null,null,null,null,null,null,null,null,null,null,null,null,null,null,null,null,null,null,null,null,null,null,null,null,null,null,null,null,null,null,null,null,null,null,null,111,0,8.6447990856935553E-2,0.14168425160762399,null,0.14168425160762399,1,1,1]
[null,null,null,null,null,null,null,null,null,null,null,null,null,null,null,null,null,null,null,null,null,null,null,null,null,null,null,null,null,null,null,null,null,null,null,null,112,1,-2.5456946944395931E-2,1.1100389703456726E-2,null,1.1100389703456726E-2,0,0,0]
[null,null,null,null,null,null,null,null,null,null,null,null,null,null,null,null,null,null,null,null,null,null,null,null,null,null,null,null,null,null,null,null,null,null,null,null,113,1,4.1342543291213563E-2,9.1256592555195581E-3,null,4.1342543291213563E-2,0,0,0]
[null,null,null,null,null,null,null,null,null,null,null,null,null,null,null,null,null,null,null,null,null,null,null,null,null,null,null,null,null,null,null,null,null,null,null,null,114,1,3.3047303330202338E-2,-9.465445369794101E-3,null,3.3047303330202338E-2,0,0,0]
[null,null,null,null,null,null,null,null,null,null,null,null,null,null,null,null,null,null,null,null,null,null,null,null,null,null,null,null,null,null,null,null,null,null,null,null,115,0,-8.1207633242852739E-2,1.0079882105574978E-2,null,1.0079882105574978E-2,0,0,0]
[null,null,null,null,null,null,null,null,null,null,null,null,null,null,null,null,null,null,null,null,null,null,null,null,null,null,null,null,null,null,null,null,null,null,null,null,116,1,5.0585460098741875E-2,8.7500968428363413E-2,null,8.7500968428363413E-2,1,1,1]
[null,null,null,null,null,null,null,null,null,null,null,null,null,null,null,null,null,null,null,null,null,null,null,null,null,null,null,null,null,null,null,null,null,null,null,null,117,2,-2.7796409959909174E-2,3.7266295038794528E-2,null,3.7266295038794528E-2,0,0,0]
[null,null,null,null,null,null,null,null,null,null,null,null,null,null,null,null,null,null,null,null,null,null,null,null,null,null,null,null,null,null,null,null,null,null,null,null,118,2,8.487955217728782E-2,1.331311215550901E-2,null,8.487955217728782E-2,1,1,1]
[null,null,null,null,null,null,null,null,null,null,null,null,null,null,null,null,null,null,null,null,null,null,null,null,null,null,null,null,null,null,null,null,null,null,null,null,119,2,5.9580202060891985E-2,3.1061830985548156E-3,null,5.9580202060891985E-2,1,0,0]
[null,null,null,null,null,null,null,null,null,null,null,null,null,null,null,null,null,null,null,null,null,null,null,null,null,null,null,null,null,null,null,null,null,null,null,null,120,1,9.1337543386383224E-2,1.1636216181399872E-2,null,9.1337543386383224E-2,1,1,1]
[null,null,null,null,null,null,null,null,null,null,null,null,null,null,null,null,null,null,null,null,null,null,null,null,null,null,null,null,null,null,null,null,null,null,null,null,121,1,5.382021126709291E-2,9.7563644896022428E-2,null,9.7563644896022428E-2,1,1,1]
[null,null,null,null,null,null,null,null,null,null,null,null,null,null,null,null,null,null,null,null,null,null,null,null,null,null,null,null,null,null,null,null,null,null,null,null,122,1,4.0389384374686532E-2,0.11054046173141874,null,0.11054046173141874,1,1,1]
[null,null,null,null,null,null,null,null,null,null,null,null,null,null,null,null,null,null,null,null,null,null,null,null,null,null,null,null,null,null,null,null,null,null,null,null,123,1,4.2035038985585693E-2,1.1550878304087631E-2,null,4.2035038985585693E-2,0,0,0]
[null,null,null,null,null,null,null,null,null,null,null,null,null,null,null,null,null,null,null,null,null,null,null,null,null,null,null,null,null,null,null,null,null,null,null,null,124,0,3.3849637820588807E-3,-1.9472046440676238E-2,null,3.3849637820588807E-3,0,0,0]
[null,null,null,null,null,null,null,null,null,null,null,null,null,null,null,null,null,null,null,null,null,null,null,null,null,null,null,null,null,null,null,null,null,null,null,null,125,0,0.11861718792964404,1.4728297291342951E-2,null,0.11861718792964404,1,1,1]
[null,null,null,null,null,null,null,null,null,null,null,null,null,null,null,null,null,null,null,null,null,null,null,null,null,null,null,null,null,null,null,null,null,null,null,null,126,2,-1.3215470125372164E-2,6.4672300817218309E-2,null,6.4672300817218309E-2,1,1,1]
[null,null,null,null,null,null,null,null,null,null,null,null,null,null,null,null,null,null,null,null,null,null,null,null,null,null,null,null,null,null,null,null,null,null,null,null,127,0,3.864205864126613E-2,-9.5167054246216853E-3,null,3.864205864126613E-2,0,0,0]
[null,null,null,null,null,null,null,null,null,null,null,null,null,null,null,null,null,null,null,null,null,null,null,null,null,null,null,null,null,null,null,null,null,null,null,null,128,0,4.3715805199038948E-2,3.7315342159171205E-2,null,4.3715805199038948E-2,0,0,0]
[null,null,null,null,null,null,null,null,null,null,null,null,null,null,null,null,null,null,null,null,null,null,null,null,null,null,null,null,null,null,null,null,null,null,null,null,129,1,3.3801691658160715E-2,-2.6938150311573761E-2,null,3.3801691658160715E-2,{"$f":"IF(MAX(AM130:AN130)>fdfy,1,0)","v":0},{"$f":"IF(MAX(AM130:AN130)>fdcash,1,0)","v":0},0]
[null,null,null,null,null,null,null,null,null,null,null,null,null,null,null,null,null,null,null,null,null,null,null,null,null,null,null,null,null,null,null,null,null,null,null,null,130,1,9.6278081821366657E-2,9.8615754396653044E-2,null,9.8615754396653044E-2,1,1,{"$f":"IF(AQ131+AR131=2,1,0)","v":1}]
[null,null,null,null,null,null,null,null,null,null,null,null,null,null,null,null,null,null,null,null,null,null,null,null,null,null,null,null,null,null,null,null,null,null,null,null,131,1,0.14201512105755865,0.19313734044120801,null,0.19313734044120801,1,1,1]
[null,null,null,null,null,null,null,null,null,null,null,null,null,null,null,null,null,null,null,null,null,null,null,null,null,null,null,null,null,null,null,null,null,null,null,null,132,1,8.7707489045360854E-2,0.11333193196064562,null,0.11333193196064562,1,1,1]
[null,null,null,null,null,null,null,null,null,null,null,null,null,null,null,null,null,null,null,null,null,null,null,null,null,null,null,null,null,null,null,null,null,null,null,null,133,1,1.9528221174515359E-2,9.8299829370154912E-2,null,9.8299829370154912E-2,1,1,1]
[null,null,null,null,null,null,null,null,null,null,null,null,null,null,null,null,null,null,null,null,null,null,null,null,null,null,null,null,null,null,null,null,null,null,null,null,134,0,0.11803053713487599,0.11813425646301945,null,0.11813425646301945,1,1,1]
[null,null,null,null,null,null,null,null,null,null,null,null,null,null,null,null,null,null,null,null,null,null,null,null,null,null,null,null,null,null,null,null,null,null,null,null,135,1,0.11205517087755856,0.11800639956536552,null,0.11800639956536552,1,1,1]
[null,null,null,null,null,null,null,null,null,null,null,null,null,null,null,null,null,null,null,null,null,null,null,null,null,null,null,null,null,null,null,null,null,null,null,null,136,1,8.1524126234398198E-2,1.3837200466537247E-2,null,8.1524126234398198E-2,1,1,1]
[null,null,null,null,null,null,null,null,null,null,null,null,null,null,null,null,null,null,null,null,null,null,null,null,null,null,null,null,null,null,null,null,null,null,null,null,137,1,5.5518741426125118E-2,-3.5547231423167513E-3,null,5.5518741426125118E-2,1,0,0]
[null,null,null,null,null,null,null,null,null,null,null,null,null,null,null,null,null,null,null,null,null,null,null,null,null,null,null,null,null,null,null,null,null,null,null,null,138,1,2.2091472572415949E-2,9.6566527701439586E-2,null,9.6566527701439586E-2,1,1,1]
[null,null,null,null,null,null,null,null,null,null,null,null,null,null,null,null,null,null,null,null,null,null,null,null,null,null,null,null,null,null,null,null,null,null,null,null,139,0,-5.1594220544616265E-3,1.6164368917854333E-2,null,1.6164368917854333E-2,0,0,0]
[null,null,null,null,null,null,null,null,null,null,null,null,null,null,null,null,null,null,null,null,null,null,null,null,null,null,null,null,null,null,null,null,null,null,null,null,140,0,6.1640993047831216E-3,3.3269910420369531E-2,null,3.3269910420369531E-2,0,0,0]
[null,null,null,null,null,null,null,null,null,null,null,null,null,null,null,null,null,null,null,null,null,null,null,null,null,null,null,null,null,null,null,null,null,null,null,null,141,0,0.1343183593647721,9.6301958021008049E-2,null,0.1343183593647721,1,1,1]
[null,null,null,null,null,null,null,null,null,null,null,null,null,null,null,null,null,null,null,null,null,null,null,null,null,null,null,null,null,null,null,null,null,null,null,null,142,0,2.9998255010839081E-2,-1.6435310282115756E-3,null,2.9998255010839081E-2,0,0,0]
[null,null,null,null,null,null,null,null,null,null,null,null,null,null,null,null,null,null,null,null,null,null,null,null,null,null,null,null,null,null,null,null,null,null,null,null,143,2,2.2521667362602527E-2,8.2336498347996168E-2,null,8.2336498347996168E-2,1,1,1]
[null,null,null,null,null,null,null,null,null,null,null,null,null,null,null,null,null,null,null,null,null,null,null,null,null,null,null,null,null,null,null,null,null,null,null,null,144,0,-7.0593923721381069E-2,8.1465037931916617E-2,null,{"$f":"MAX(AM145:AN145)","v":8.1465037931916617E-2},1,1,1]
[null,null,null,null,null,null,null,null,null,null,null,null,null,null,null,null,null,null,null,null,null,null,null,null,null,null,null,null,null,null,null,null,null,null,null,null,145,1,9.7635867004354449E-2,6.897073964466216E-2,null,9.7635867004354449E-2,1,1,1]
[null,null,null,null,null,null,null,null,null,null,null,null,null,null,null,null,null,null,null,null,null,null,null,null,null,null,null,null,null,null,null,null,null,null,null,null,146,1,0.15660696779380134,3.949183063954198E-3,null,0.15660696779380134,1,1,1]
[null,null,null,null,null,null,null,null,null,null,null,null,null,null,null,null,null,null,null,null,null,null,null,null,null,null,null,null,null,null,null,null,null,null,null,null,147,1,4.0355963584434607E-2,0.10298871560643552,null,0.10298871560643552,1,1,1]
[null,null,null,null,null,null,null,null,null,null,null,null,null,null,null,null,null,null,null,null,null,null,null,null,null,null,null,null,null,null,null,null,null,null,null,null,148,0,7.7420954087666694E-2,2.5037930023578348E-2,null,7.7420954087666694E-2,1,1,1]
[null,null,null,null,null,null,null,null,null,null,null,null,null,null,null,null,null,null,null,null,null,null,null,null,null,null,null,null,null,null,null,null,null,null,null,null,149,1,5.756469839573719E-2,6.7428011985473102E-2,null,6.7428011985473102E-2,1,1,1]
[null,null,null,null,null,null,null,null,null,null,null,null,null,null,null,null,null,null,null,null,null,null,null,null,null,null,null,null,null,null,null,null,null,null,null,null,150,0,0.10696239248309114,4.8609106198312491E-2,null,0.10696239248309114,1,1,1]
[null,null,null,null,null,null,null,null,null,null,null,null,null,null,null,null,null,null,null,null,null,null,null,null,null,null,null,null,null,null,null,null,null,null,null,null,151,1,7.2360536495509997E-2,0.1408689018793976,null,0.1408689018793976,1,1,1]
[null,null,null,null,null,null,null,null,null,null,null,null,null,null,null,null,null,null,null,null,null,null,null,null,null,null,null,null,null,null,null,null,null,null,null,null,152,0,0.16881386547679123,6.3005549380984682E-2,null,0.16881386547679123,1,1,1]
[null,null,null,null,null,null,null,null,null,null,null,null,null,null,null,null,null,null,null,null,null,null,null,null,null,null,null,null,null,null,null,null,null,null,null,null,153,1,0.13650405624953499,0.10769677056304316,null,0.13650405624953499,1,1,1]
[null,null,null,null,null,null,null,null,null,null,null,null,null,null,null,null,null,null,null,null,null,null,null,null,null,null,null,null,null,null,null,null,null,null,null,null,154,1,7.1339470081312362E-2,3.0541583725135713E-2,null,7.1339470081312362E-2,1,1,1]
[null,null,null,null,null,null,null,null,null,null,null,null,null,null,null,null,null,null,null,null,null,null,null,null,null,null,null,null,null,null,null,null,null,null,null,null,155,0,7.2116024696760928E-2,7.4494178922203558E-2,null,7.4494178922203558E-2,1,1,1]
[null,null,null,null,null,null,null,null,null,null,null,null,null,null,null,null,null,null,null,null,null,null,null,null,null,null,null,null,null,null,null,null,null,null,null,null,156,0,1.31374226273413E-2,5.6472824876413252E-2,null,5.6472824876413252E-2,1,0,0]
[null,null,null,null,null,null,null,null,null,null,null,null,null,null,null,null,null,null,null,null,null,null,null,null,null,null,null,null,null,null,null,null,null,null,null,null,157,1,0.15054261152151915,7.911269822425071E-2,null,0.15054261152151915,1,1,1]
[null,null,null,null,null,null,null,null,null,null,null,null,null,null,null,null,null,null,null,null,null,null,null,null,null,null,null,null,null,null,null,null,null,null,null,null,158,0,0.14886958673976469,7.2596717127970667E-3,null,0.14886958673976469,1,1,1]
[null,null,null,null,null,null,null,null,null,null,null,null,null,null,null,null,null,null,null,null,null,null,null,null,null,null,null,null,null,null,null,null,null,null,null,null,159,1,6.1454567702499574E-2,8.2412279932155164E-2,null,8.2412279932155164E-2,1,1,1]
[null,null,null,null,null,null,null,null,null,null,null,null,null,null,null,null,null,null,null,null,null,null,null,null,null,null,null,null,null,null,null,null,null,null,null,null,160,0,4.7207174853645562E-2,6.6034791694479233E-2,null,6.6034791694479233E-2,1,1,1]
[null,null,null,null,null,null,null,null,null,null,null,null,null,null,null,null,null,null,null,null,null,null,null,null,null,null,null,null,null,null,null,null,null,null,null,null,161,0,5.0285209098561934E-2,1.8275732654842169E-3,null,5.0285209098561934E-2,0,0,0]
[null,null,null,null,null,null,null,null,null,null,null,null,null,null,null,null,null,null,null,null,null,null,null,null,null,null,null,null,null,null,null,null,null,null,null,null,162,1,0.13975648214774261,0.13812146348044818,null,0.13975648214774261,1,1,1]
[null,null,null,null,null,null,null,null,null,null,null,null,null,null,null,null,null,null,null,null,null,null,null,null,null,null,null,null,null,null,null,null,null,null,null,null,163,2,-6.8522194251433577E-3,5.8872839892529782E-2,null,5.8872839892529782E-2,1,0,0]
[null,null,null,null,null,null,null,null,null,null,null,null,null,null,null,null,null,null,null,null,null,null,null,null,null,null,null,null,null,null,null,null,null,null,null,null,164,1,0.15109384293990491,0.10080636703941015,null,0.15109384293990491,1,1,1]
[null,null,null,null,null,null,null,null,null,null,null,null,null,null,null,null,null,null,null,null,null,null,null,null,null,null,null,null,null,null,null,null,null,null,null,null,165,1,5.6576449743868773E-2,0.1345754805930528,null,0.1345754805930528,1,1,1]
[null,null,null,null,null,null,null,null,null,null,null,null,null,null,null,null,null,null,null,null,null,null,null,null,null,null,null,null,null,null,null,null,null,null,null,null,166,0,-5.9735167958868463E-2,8.6267164231701665E-2,null,8.6267164231701665E-2,1,1,1]
[null,null,null,null,null,null,null,null,null,null,null,null,null,null,null,null,null,null,null,null,null,null,null,null,null,null,null,null,null,null,null,null,null,null,null,null,167,0,5.0584052696986959E-2,4.7150301937703532E-2,null,5.0584052696986959E-2,0,0,0]
[null,null,null,null,null,null,null,null,null,null,null,null,null,null,null,null,null,null,null,null,null,null,null,null,null,null,null,null,null,null,null,null,null,null,null,null,168,0,0.1157310917937755,6.1340503947415526E-2,null,0.1157310917937755,1,1,1]
[null,null,null,null,null,null,null,null,null,null,null,null,null,null,null,null,null,null,null,null,null,null,null,null,null,null,null,null,null,null,null,null,null,null,null,null,169,1,0.16675084386080519,7.0306144491899536E-2,null,0.16675084386080519,1,1,1]
[null,null,null,null,null,null,null,null,null,null,null,null,null,null,null,null,null,null,null,null,null,null,null,null,null,null,null,null,null,null,null,null,null,null,null,null,170,1,-4.6657440889643298E-2,7.9032209282258625E-2,null,7.9032209282258625E-2,1,1,1]
[null,null,null,null,null,null,null,null,null,null,null,null,null,null,null,null,null,null,null,null,null,null,null,null,null,null,null,null,null,null,null,null,null,null,null,null,171,1,5.2140887378229417E-2,8.6367958349617968E-2,null,8.6367958349617968E-2,1,1,1]
[null,null,null,null,null,null,null,null,null,null,null,null,null,null,null,null,null,null,null,null,null,null,null,null,null,null,null,null,null,null,null,null,null,null,null,null,172,0,7.7254063259516448E-2,5.2389464451566781E-2,null,7.7254063259516448E-2,1,1,1]
[null,null,null,null,null,null,null,null,null,null,null,null,null,null,null,null,null,null,null,null,null,null,null,null,null,null,null,null,null,null,null,null,null,null,null,null,173,2,0.17477820169301572,5.3720471327910246E-2,null,0.17477820169301572,1,1,1]
[null,null,null,null,null,null,null,null,null,null,null,null,null,null,null,null,null,null,null,null,null,null,null,null,null,null,null,null,null,null,null,null,null,null,null,null,174,0,-4.8832971472800857E-3,5.3589426424906383E-2,null,5.3589426424906383E-2,0,0,0]
[null,null,null,null,null,null,null,null,null,null,null,null,null,null,null,null,null,null,null,null,null,null,null,null,null,null,null,null,null,null,null,null,null,null,null,null,175,1,0.14595186630719748,-7.2132536024546168E-3,null,0.14595186630719748,1,1,1]
[null,null,null,null,null,null,null,null,null,null,null,null,null,null,null,null,null,null,null,null,null,null,null,null,null,null,null,null,null,null,null,null,null,null,null,null,176,1,0.14152828471352619,2.2108215131618536E-2,null,0.14152828471352619,1,1,1]
[null,null,null,null,null,null,null,null,null,null,null,null,null,null,null,null,null,null,null,null,null,null,null,null,null,null,null,null,null,null,null,null,null,null,null,null,177,0,6.9348801881640165E-2,5.8019529723791763E-2,null,6.9348801881640165E-2,1,1,1]
[null,null,null,null,null,null,null,null,null,null,null,null,null,null,null,null,null,null,null,null,null,null,null,null,null,null,null,null,null,null,null,null,null,null,null,null,178,1,0.13524710676497964,7.1787695801807772E-2,null,0.13524710676497964,1,1,1]
[null,null,null,null,null,null,null,null,null,null,null,null,null,null,null,null,null,null,null,null,null,null,null,null,null,null,null,null,null,null,null,null,null,null,null,null,179,1,0.19611577361257226,6.2846679161540964E-2,null,0.19611577361257226,1,1,1]
[null,null,null,null,null,null,null,null,null,null,null,null,null,null,null,null,null,null,null,null,null,null,null,null,null,null,null,null,null,null,null,null,null,null,null,null,180,1,7.237436089676641E-2,7.519932431121612E-2,null,7.519932431121612E-2,1,1,1]
[null,null,null,null,null,null,null,null,null,null,null,null,null,null,null,null,null,null,null,null,null,null,null,null,null,null,null,null,null,null,null,null,null,null,null,null,181,0,5.7168350447024174E-2,-0.12244223932197895,null,5.7168350447024174E-2,1,0,0]
[null,null,null,null,null,null,null,null,null,null,null,null,null,null,null,null,null,null,null,null,null,null,null,null,null,null,null,null,null,null,null,null,null,null,null,null,182,2,-3.6036329970471126E-2,5.9730672360650994E-2,null,5.9730672360650994E-2,1,0,0]
[null,null,null,null,null,null,null,null,null,null,null,null,null,null,null,null,null,null,null,null,null,null,null,null,null,null,null,null,null,null,null,null,null,null,null,null,183,2,-2.3708183133677174E-3,0.11065589364171635,null,0.11065589364171635,1,1,1]
[null,null,null,null,null,null,null,null,null,null,null,null,null,null,null,null,null,null,null,null,null,null,null,null,null,null,null,null,null,null,null,null,null,null,null,null,184,1,0.12149392872593601,-3.8258319587552658E-2,null,0.12149392872593601,1,1,1]
[null,null,null,null,null,null,null,null,null,null,null,null,null,null,null,null,null,null,null,null,null,null,null,null,null,null,null,null,null,null,null,null,null,null,null,null,185,0,2.0209475959747536E-2,2.1733047096706537E-2,null,2.1733047096706537E-2,0,0,0]
[null,null,null,null,null,null,null,null,null,null,null,null,null,null,null,null,null,null,null,null,null,null,null,null,null,null,null,null,null,null,null,null,null,null,null,null,186,1,5.575447958879387E-2,8.8334136060429058E-2,null,8.8334136060429058E-2,1,1,1]
[null,null,null,null,null,null,null,null,null,null,null,null,null,null,null,null,null,null,null,null,null,null,null,null,null,null,null,null,null,null,null,null,null,null,null,null,187,1,-4.8915906672728493E-3,9.6263920615444754E-2,null,9.6263920615444754E-2,1,1,1]
[null,null,null,null,null,null,null,null,null,null,null,null,null,null,null,null,null,null,null,null,null,null,null,null,null,null,null,null,null,null,null,null,null,null,null,null,188,1,-1.3375960656289321E-2,6.5098370235207925E-2,null,6.5098370235207925E-2,1,1,1]
[null,null,null,null,null,null,null,null,null,null,null,null,null,null,null,null,null,null,null,null,null,null,null,null,null,null,null,null,null,null,null,null,null,null,null,null,189,1,5.7012785934178467E-2,-1.6233421073686305E-2,null,5.7012785934178467E-2,1,0,0]
[null,null,null,null,null,null,null,null,null,null,null,null,null,null,null,null,null,null,null,null,null,null,null,null,null,null,null,null,null,null,null,null,null,null,null,null,190,1,-1.9765970676227318E-2,3.9064678736338454E-2,null,3.9064678736338454E-2,0,0,0]
[null,null,null,null,null,null,null,null,null,null,null,null,null,null,null,null,null,null,null,null,null,null,null,null,null,null,null,null,null,null,null,null,null,null,null,null,191,1,0.12822560799670035,0.20738738253029232,null,0.20738738253029232,1,1,1]
[null,null,null,null,null,null,null,null,null,null,null,null,null,null,null,null,null,null,null,null,null,null,null,null,null,null,null,null,null,null,null,null,null,null,null,null,192,0,4.710796977881837E-2,9.6031273651327798E-2,null,9.6031273651327798E-2,1,1,1]
[null,null,null,null,null,null,null,null,null,null,null,null,null,null,null,null,null,null,null,null,null,null,null,null,null,null,null,null,null,null,null,null,null,null,null,null,193,0,-9.2006301979062899E-3,0.10350544320657495,null,0.10350544320657495,{"$f":"IF(MAX(AM194:AN194)>fdfy,1,0)","v":1},{"$f":"IF(MAX(AM194:AN194)>fdcash,1,0)","v":1},1]
[null,null,null,null,null,null,null,null,null,null,null,null,null,null,null,null,null,null,null,null,null,null,null,null,null,null,null,null,null,null,null,null,null,null,null,null,194,0,-3.0334420108516169E-2,2.4341118555033958E-2,null,2.4341118555033958E-2,0,0,{"$f":"IF(AQ195+AR195=2,1,0)","v":0}]
[null,null,null,null,null,null,null,null,null,null,null,null,null,null,null,null,null,null,null,null,null,null,null,null,null,null,null,null,null,null,null,null,null,null,null,null,195,0,-3.3466760952638452E-2,7.0206044471249784E-2,null,7.0206044471249784E-2,1,1,1]
[null,null,null,null,null,null,null,null,null,null,null,null,null,null,null,null,null,null,null,null,null,null,null,null,null,null,null,null,null,null,null,null,null,null,null,null,196,0,-4.4369812936374542E-3,4.1084914619770485E-2,null,4.1084914619770485E-2,0,0,0]
[null,null,null,null,null,null,null,null,null,null,null,null,null,null,null,null,null,null,null,null,null,null,null,null,null,null,null,null,null,null,null,null,null,null,null,null,197,1,0.12087005066106737,1.9619974861329936E-2,null,0.12087005066106737,1,1,1]
[null,null,null,null,null,null,null,null,null,null,null,null,null,null,null,null,null,null,null,null,null,null,null,null,null,null,null,null,null,null,null,null,null,null,null,null,198,1,0.15944645336941909,-3.6395693272385565E-2,null,0.15944645336941909,1,1,1]
[null,null,null,null,null,null,null,null,null,null,null,null,null,null,null,null,null,null,null,null,null,null,null,null,null,null,null,null,null,null,null,null,null,null,null,null,199,1,2.5555692145803111E-2,9.0790049734445377E-2,null,9.0790049734445377E-2,1,1,1]
[null,null,null,null,null,null,null,null,null,null,null,null,null,null,null,null,null,null,null,null,null,null,null,null,null,null,null,null,null,null,null,null,null,null,null,null,200,2,3.9218748921727498E-2,0.11265298603865848,null,0.11265298603865848,1,1,1]
[null,null,null,null,null,null,null,null,null,null,null,null,null,null,null,null,null,null,null,null,null,null,null,null,null,null,null,null,null,null,null,null,null,null,null,null,201,2,7.0209199912158793E-2,-2.4732564904848209E-2,null,7.0209199912158793E-2,1,1,1]
[null,null,null,null,null,null,null,null,null,null,null,null,null,null,null,null,null,null,null,null,null,null,null,null,null,null,null,null,null,null,null,null,null,null,null,null,202,1,1.3572326923420475E-2,7.5753614810987191E-3,null,1.3572326923420475E-2,0,0,0]
[null,null,null,null,null,null,null,null,null,null,null,null,null,null,null,null,null,null,null,null,null,null,null,null,null,null,null,null,null,null,null,null,null,null,null,null,203,2,2.1180567307902853E-2,1.506561069812995E-2,null,2.1180567307902853E-2,0,0,0]
[null,null,null,null,null,null,null,null,null,null,null,null,null,null,null,null,null,null,null,null,null,null,null,null,null,null,null,null,null,null,null,null,null,null,null,null,204,1,7.6529907064767366E-2,-2.0171724779201705E-2,null,7.6529907064767366E-2,1,1,1]
[null,null,null,null,null,null,null,null,null,null,null,null,null,null,null,null,null,null,null,null,null,null,null,null,null,null,null,null,null,null,null,null,null,null,null,null,205,0,0.10410742893641545,0.10094825134289787,null,0.10410742893641545,1,1,1]
[null,null,null,null,null,null,null,null,null,null,null,null,null,null,null,null,null,null,null,null,null,null,null,null,null,null,null,null,null,null,null,null,null,null,null,null,206,1,1.5280401450832981E-2,2.3417030726381238E-2,null,2.3417030726381238E-2,0,0,0]
[null,null,null,null,null,null,null,null,null,null,null,null,null,null,null,null,null,null,null,null,null,null,null,null,null,null,null,null,null,null,null,null,null,null,null,null,207,0,8.1162914622816551E-2,2.6622043673043549E-3,null,8.1162914622816551E-2,1,1,1]
[null,null,null,null,null,null,null,null,null,null,null,null,null,null,null,null,null,null,null,null,null,null,null,null,null,null,null,null,null,null,null,null,null,null,null,null,208,0,3.385438806276353E-2,0.12545328113166776,null,{"$f":"MAX(AM209:AN209)","v":0.12545328113166776},1,1,1]
[null,null,null,null,null,null,null,null,null,null,null,null,null,null,null,null,null,null,null,null,null,null,null,null,null,null,null,null,null,null,null,null,null,null,null,null,209,1,4.2990426515865376E-2,4.612734071741631E-2,null,4.612734071741631E-2,0,0,0]
[null,null,null,null,null,null,null,null,null,null,null,null,null,null,null,null,null,null,null,null,null,null,null,null,null,null,null,null,null,null,null,null,null,null,null,null,210,1,7.0610539324359234E-2,7.6634933254899229E-2,null,7.6634933254899229E-2,1,1,1]
[null,null,null,null,null,null,null,null,null,null,null,null,null,null,null,null,null,null,null,null,null,null,null,null,null,null,null,null,null,null,null,null,null,null,null,null,211,1,3.8114187704796132E-2,8.0410967671261435E-2,null,8.0410967671261435E-2,1,1,1]
[null,null,null,null,null,null,null,null,null,null,null,null,null,null,null,null,null,null,null,null,null,null,null,null,null,null,null,null,null,null,null,null,null,null,null,null,212,1,1.0104901749930617E-2,7.7723929219206234E-2,null,7.7723929219206234E-2,1,1,1]
[null,null,null,null,null,null,null,null,null,null,null,null,null,null,null,null,null,null,null,null,null,null,null,null,null,null,null,null,null,null,null,null,null,null,null,null,213,2,0.15306476419576143,0.1398704084945408,null,0.15306476419576143,1,1,1]
[null,null,null,null,null,null,null,null,null,null,null,null,null,null,null,null,null,null,null,null,null,null,null,null,null,null,null,null,null,null,null,null,null,null,null,null,214,1,0.10694457511119349,0.18385417887533917,null,0.18385417887533917,1,1,1]
[null,null,null,null,null,null,null,null,null,null,null,null,null,null,null,null,null,null,null,null,null,null,null,null,null,null,null,null,null,null,null,null,null,null,null,null,215,1,1.1611583492001198E-2,0.14826678262757853,null,0.14826678262757853,1,1,1]
[null,null,null,null,null,null,null,null,null,null,null,null,null,null,null,null,null,null,null,null,null,null,null,null,null,null,null,null,null,null,null,null,null,null,null,null,216,1,0.13398898247267366,6.4246499609800223E-2,null,0.13398898247267366,1,1,1]
[null,null,null,null,null,null,null,null,null,null,null,null,null,null,null,null,null,null,null,null,null,null,null,null,null,null,null,null,null,null,null,null,null,null,null,null,217,0,5.312208761173709E-2,0.10520351455406529,null,0.10520351455406529,1,1,1]
[null,null,null,null,null,null,null,null,null,null,null,null,null,null,null,null,null,null,null,null,null,null,null,null,null,null,null,null,null,null,null,null,null,null,null,null,218,1,0.10245182647972673,2.472725961220279E-2,null,0.10245182647972673,1,1,1]
[null,null,null,null,null,null,null,null,null,null,null,null,null,null,null,null,null,null,null,null,null,null,null,null,null,null,null,null,null,null,null,null,null,null,null,null,219,1,6.5206321968843906E-2,7.4750838708113054E-3,null,6.5206321968843906E-2,1,1,1]
[null,null,null,null,null,null,null,null,null,null,null,null,null,null,null,null,null,null,null,null,null,null,null,null,null,null,null,null,null,null,null,null,null,null,null,null,220,0,5.1830099729744505E-2,2.3606516628997376E-2,null,5.1830099729744505E-2,0,0,0]
[null,null,null,null,null,null,null,null,null,null,null,null,null,null,null,null,null,null,null,null,null,null,null,null,null,null,null,null,null,null,null,null,null,null,null,null,221,1,0.12023702356212729,5.2027567105958905E-2,null,0.12023702356212729,1,1,1]
[null,null,null,null,null,null,null,null,null,null,null,null,null,null,null,null,null,null,null,null,null,null,null,null,null,null,null,null,null,null,null,null,null,null,null,null,222,0,-3.9470779048141891E-3,-5.3464436758372536E-3,null,-3.9470779048141891E-3,0,0,0]
[null,null,null,null,null,null,null,null,null,null,null,null,null,null,null,null,null,null,null,null,null,null,null,null,null,null,null,null,null,null,null,null,null,null,null,null,223,1,3.5613206905778405E-2,8.5547805058376891E-2,null,8.5547805058376891E-2,1,1,1]
[null,null,null,null,null,null,null,null,null,null,null,null,null,null,null,null,null,null,null,null,null,null,null,null,null,null,null,null,null,null,null,null,null,null,null,null,224,1,0.10038492196877469,7.821281697301985E-2,null,0.10038492196877469,1,1,1]
[null,null,null,null,null,null,null,null,null,null,null,null,null,null,null,null,null,null,null,null,null,null,null,null,null,null,null,null,null,null,null,null,null,null,null,null,225,1,0.10163963458691905,3.3229423440510608E-3,null,0.10163963458691905,1,1,1]
[null,null,null,null,null,null,null,null,null,null,null,null,null,null,null,null,null,null,null,null,null,null,null,null,null,null,null,null,null,null,null,null,null,null,null,null,226,0,0.12767179809573115,0.11100422451293768,null,0.12767179809573115,1,1,1]
[null,null,null,null,null,null,null,null,null,null,null,null,null,null,null,null,null,null,null,null,null,null,null,null,null,null,null,null,null,null,null,null,null,null,null,null,227,2,0.13629293853481572,8.1442414160854959E-3,null,0.13629293853481572,1,1,1]
[null,null,null,null,null,null,null,null,null,null,null,null,null,null,null,null,null,null,null,null,null,null,null,null,null,null,null,null,null,null,null,null,null,null,null,null,228,1,-2.6531822679456418E-2,6.0821864023761218E-2,null,6.0821864023761218E-2,1,1,1]
[null,null,null,null,null,null,null,null,null,null,null,null,null,null,null,null,null,null,null,null,null,null,null,null,null,null,null,null,null,null,null,null,null,null,null,null,229,1,-3.0049512105038922E-2,-1.4281933185742113E-2,null,-1.4281933185742113E-2,0,0,0]
[null,null,null,null,null,null,null,null,null,null,null,null,null,null,null,null,null,null,null,null,null,null,null,null,null,null,null,null,null,null,null,null,null,null,null,null,230,1,3.3355712067562271E-2,5.4906941828575695E-2,null,5.4906941828575695E-2,0,0,0]
[null,null,null,null,null,null,null,null,null,null,null,null,null,null,null,null,null,null,null,null,null,null,null,null,null,null,null,null,null,null,null,null,null,null,null,null,231,0,0.10864285291478537,5.7576809516946881E-2,null,0.10864285291478537,1,1,1]
[null,null,null,null,null,null,null,null,null,null,null,null,null,null,null,null,null,null,null,null,null,null,null,null,null,null,null,null,null,null,null,null,null,null,null,null,232,0,5.173142640774242E-2,1.8592212733314684E-2,null,5.173142640774242E-2,0,0,0]
[null,null,null,null,null,null,null,null,null,null,null,null,null,null,null,null,null,null,null,null,null,null,null,null,null,null,null,null,null,null,null,null,null,null,null,null,233,2,4.3458854111039225E-2,8.9021146340863666E-2,null,8.9021146340863666E-2,1,1,1]
[null,null,null,null,null,null,null,null,null,null,null,null,null,null,null,null,null,null,null,null,null,null,null,null,null,null,null,null,null,null,null,null,null,null,null,null,234,0,5.7009088561106314E-2,4.7421896439379108E-2,null,5.7009088561106314E-2,1,0,0]
[null,null,null,null,null,null,null,null,null,null,null,null,null,null,null,null,null,null,null,null,null,null,null,null,null,null,null,null,null,null,null,null,null,null,null,null,235,1,5.0579082591546198E-2,4.0935833099581487E-2,null,5.0579082591546198E-2,0,0,0]
[null,null,null,null,null,null,null,null,null,null,null,null,null,null,null,null,null,null,null,null,null,null,null,null,null,null,null,null,null,null,null,null,null,null,null,null,236,0,-3.2667856815619456E-2,-1.944129715135845E-2,null,-1.944129715135845E-2,0,0,0]
[null,null,null,null,null,null,null,null,null,null,null,null,null,null,null,null,null,null,null,null,null,null,null,null,null,null,null,null,null,null,null,null,null,null,null,null,237,1,1.835830821784068E-3,0.11245754150207987,null,0.11245754150207987,1,1,1]
[null,null,null,null,null,null,null,null,null,null,null,null,null,null,null,null,null,null,null,null,null,null,null,null,null,null,null,null,null,null,null,null,null,null,null,null,238,1,-2.010126306401816E-2,4.6068745960762714E-2,null,4.6068745960762714E-2,0,0,0]
[null,null,null,null,null,null,null,null,null,null,null,null,null,null,null,null,null,null,null,null,null,null,null,null,null,null,null,null,null,null,null,null,null,null,null,null,239,0,0.10974129730907034,0.11296581281137175,null,0.11296581281137175,1,1,1]
[null,null,null,null,null,null,null,null,null,null,null,null,null,null,null,null,null,null,null,null,null,null,null,null,null,null,null,null,null,null,null,null,null,null,null,null,240,1,1.0970343955915673E-2,7.320399605845318E-2,null,7.320399605845318E-2,1,1,1]
[null,null,null,null,null,null,null,null,null,null,null,null,null,null,null,null,null,null,null,null,null,null,null,null,null,null,null,null,null,null,null,null,null,null,null,null,241,0,0.14852612852843339,8.6268609820168596E-2,null,0.14852612852843339,1,1,1]
[null,null,null,null,null,null,null,null,null,null,null,null,null,null,null,null,null,null,null,null,null,null,null,null,null,null,null,null,null,null,null,null,null,null,null,null,242,0,8.7996307187000689E-2,-7.7552101667014428E-3,null,8.7996307187000689E-2,1,1,1]
[null,null,null,null,null,null,null,null,null,null,null,null,null,null,null,null,null,null,null,null,null,null,null,null,null,null,null,null,null,null,null,null,null,null,null,null,243,1,2.3596970138788809E-2,8.7298146082434247E-2,null,8.7298146082434247E-2,1,1,1]
[null,null,null,null,null,null,null,null,null,null,null,null,null,null,null,null,null,null,null,null,null,null,null,null,null,null,null,null,null,null,null,null,null,null,null,null,244,0,0.10189277395107665,-3.3504460528653413E-2,null,0.10189277395107665,1,1,1]
[null,null,null,null,null,null,null,null,null,null,null,null,null,null,null,null,null,null,null,null,null,null,null,null,null,null,null,null,null,null,null,null,null,null,null,null,245,1,4.7295476530614833E-2,8.5657361416584976E-2,null,8.5657361416584976E-2,1,1,1]
[null,null,null,null,null,null,null,null,null,null,null,null,null,null,null,null,null,null,null,null,null,null,null,null,null,null,null,null,null,null,null,null,null,null,null,null,246,0,-1.7669463775125127E-3,9.9852968553839627E-2,null,9.9852968553839627E-2,1,1,1]
[null,null,null,null,null,null,null,null,null,null,null,null,null,null,null,null,null,null,null,null,null,null,null,null,null,null,null,null,null,null,null,null,null,null,null,null,247,0,-2.249383976053998E-2,5.8857221494162726E-2,null,5.8857221494162726E-2,1,0,0]
[null,null,null,null,null,null,null,null,null,null,null,null,null,null,null,null,null,null,null,null,null,null,null,null,null,null,null,null,null,null,null,null,null,null,null,null,248,0,9.5347740757867339E-3,-4.1638392925256396E-2,null,9.5347740757867339E-3,0,0,0]
[null,null,null,null,null,null,null,null,null,null,null,null,null,null,null,null,null,null,null,null,null,null,null,null,null,null,null,null,null,null,null,null,null,null,null,null,249,1,0.10124801591626142,2.9285336431907005E-2,null,0.10124801591626142,1,1,1]
[null,null,null,null,null,null,null,null,null,null,null,null,null,null,null,null,null,null,null,null,null,null,null,null,null,null,null,null,null,null,null,null,null,null,null,null,250,1,0.10047686029143854,5.748564257011135E-2,null,0.10047686029143854,1,1,1]
[null,null,null,null,null,null,null,null,null,null,null,null,null,null,null,null,null,null,null,null,null,null,null,null,null,null,null,null,null,null,null,null,null,null,null,null,251,1,-4.5656382250101823E-2,8.6894203017915395E-2,null,8.6894203017915395E-2,1,1,1]
[null,null,null,null,null,null,null,null,null,null,null,null,null,null,null,null,null,null,null,null,null,null,null,null,null,null,null,null,null,null,null,null,null,null,null,null,252,1,5.3196977198884943E-2,0.13921248993010105,null,0.13921248993010105,1,1,1]
[null,null,null,null,null,null,null,null,null,null,null,null,null,null,null,null,null,null,null,null,null,null,null,null,null,null,null,null,null,null,null,null,null,null,null,null,253,1,0.13279594290436902,6.0700672155741264E-2,null,0.13279594290436902,1,1,1]
[null,null,null,null,null,null,null,null,null,null,null,null,null,null,null,null,null,null,null,null,null,null,null,null,null,null,null,null,null,null,null,null,null,null,null,null,254,1,4.6718370698126011E-2,3.6933131093397353E-2,null,4.6718370698126011E-2,0,0,0]
[null,null,null,null,null,null,null,null,null,null,null,null,null,null,null,null,null,null,null,null,null,null,null,null,null,null,null,null,null,null,null,null,null,null,null,null,255,0,5.8864910845371377E-2,5.4844929465027281E-2,null,5.8864910845371377E-2,1,0,0]
[null,null,null,null,null,null,null,null,null,null,null,null,null,null,null,null,null,null,null,null,null,null,null,null,null,null,null,null,null,null,null,null,null,null,null,null,256,1,7.6618818042353709E-2,7.0099467577727337E-2,null,7.6618818042353709E-2,1,1,1]
[null,null,null,null,null,null,null,null,null,null,null,null,null,null,null,null,null,null,null,null,null,null,null,null,null,null,null,null,null,null,null,null,null,null,null,null,257,0,1.0373080630223575E-2,6.4170671011174907E-2,null,6.4170671011174907E-2,{"$f":"IF(MAX(AM258:AN258)>fdfy,1,0)","v":1},{"$f":"IF(MAX(AM258:AN258)>fdcash,1,0)","v":1},1]
[null,null,null,null,null,null,null,null,null,null,null,null,null,null,null,null,null,null,null,null,null,null,null,null,null,null,null,null,null,null,null,null,null,null,null,null,258,1,3.4553458948693327E-2,5.3831974519818138E-2,null,5.3831974519818138E-2,0,0,{"$f":"IF(AQ259+AR259=2,1,0)","v":0}]
[null,null,null,null,null,null,null,null,null,null,null,null,null,null,null,null,null,null,null,null,null,null,null,null,null,null,null,null,null,null,null,null,null,null,null,null,259,1,0.11600285591177095,6.7898567609584459E-2,null,0.11600285591177095,1,1,1]
[null,null,null,null,null,null,null,null,null,null,null,null,null,null,null,null,null,null,null,null,null,null,null,null,null,null,null,null,null,null,null,null,null,null,null,null,260,0,5.6809246813272374E-2,4.7204402060965212E-3,null,5.6809246813272374E-2,1,0,0]
[null,null,null,null,null,null,null,null,null,null,null,null,null,null,null,null,null,null,null,null,null,null,null,null,null,null,null,null,null,null,null,null,null,null,null,null,261,1,4.4642666149877552E-2,1.0751379192356358E-2,null,4.4642666149877552E-2,0,0,0]
[null,null,null,null,null,null,null,null,null,null,null,null,null,null,null,null,null,null,null,null,null,null,null,null,null,null,null,null,null,null,null,null,null,null,null,null,262,2,0.11915896628631684,0.10441198289214171,null,0.11915896628631684,1,1,1]
[null,null,null,null,null,null,null,null,null,null,null,null,null,null,null,null,null,null,null,null,null,null,null,null,null,null,null,null,null,null,null,null,null,null,null,null,263,1,7.6189187862128138E-2,6.935264449269507E-2,null,7.6189187862128138E-2,1,1,1]
[null,null,null,null,null,null,null,null,null,null,null,null,null,null,null,null,null,null,null,null,null,null,null,null,null,null,null,null,null,null,null,null,null,null,null,null,264,1,0.11221421914930496,2.096789971008417E-2,null,0.11221421914930496,1,1,1]
[null,null,null,null,null,null,null,null,null,null,null,null,null,null,null,null,null,null,null,null,null,null,null,null,null,null,null,null,null,null,null,null,null,null,null,null,265,0,8.3621633745098123E-2,0.10283037990429844,null,0.10283037990429844,1,1,1]
[null,null,null,null,null,null,null,null,null,null,null,null,null,null,null,null,null,null,null,null,null,null,null,null,null,null,null,null,null,null,null,null,null,null,null,null,266,1,3.1800426854359021E-2,4.4541530036916077E-2,null,4.4541530036916077E-2,0,0,0]
[null,null,null,null,null,null,null,null,null,null,null,null,null,null,null,null,null,null,null,null,null,null,null,null,null,null,null,null,null,null,null,null,null,null,null,null,267,1,5.3781359983584798E-2,6.6786580688413588E-2,null,6.6786580688413588E-2,1,1,1]
[null,null,null,null,null,null,null,null,null,null,null,null,null,null,null,null,null,null,null,null,null,null,null,null,null,null,null,null,null,null,null,null,null,null,null,null,268,1,5.3348123984647833E-2,0.11490274342783757,null,0.11490274342783757,1,1,1]
[null,null,null,null,null,null,null,null,null,null,null,null,null,null,null,null,null,null,null,null,null,null,null,null,null,null,null,null,null,null,null,null,null,null,null,null,269,1,-5.9214927612069923E-2,0.10227655203254749,null,0.10227655203254749,1,1,1]
[null,null,null,null,null,null,null,null,null,null,null,null,null,null,null,null,null,null,null,null,null,null,null,null,null,null,null,null,null,null,null,null,null,null,null,null,270,1,5.2559766106428096E-3,0.14814165296432158,null,0.14814165296432158,1,1,1]
[null,null,null,null,null,null,null,null,null,null,null,null,null,null,null,null,null,null,null,null,null,null,null,null,null,null,null,null,null,null,null,null,null,null,null,null,271,0,5.3674119116272401E-2,5.1915949142509188E-2,null,5.3674119116272401E-2,0,0,0]
[null,null,null,null,null,null,null,null,null,null,null,null,null,null,null,null,null,null,null,null,null,null,null,null,null,null,null,null,null,null,null,null,null,null,null,null,272,1,8.7470843311487245E-2,0.10157729514849545,null,{"$f":"MAX(AM273:AN273)","v":0.10157729514849545},1,1,1]
[null,null,null,null,null,null,null,null,null,null,null,null,null,null,null,null,null,null,null,null,null,null,null,null,null,null,null,null,null,null,null,null,null,null,null,null,273,0,9.3396058967841533E-2,3.9780131106413652E-2,null,9.3396058967841533E-2,1,1,1]
[null,null,null,null,null,null,null,null,null,null,null,null,null,null,null,null,null,null,null,null,null,null,null,null,null,null,null,null,null,null,null,null,null,null,null,null,274,1,4.5693205833321704E-2,6.7338814052697149E-2,null,6.7338814052697149E-2,1,1,1]
[null,null,null,null,null,null,null,null,null,null,null,null,null,null,null,null,null,null,null,null,null,null,null,null,null,null,null,null,null,null,null,null,null,null,null,null,275,1,8.8854803527505188E-2,2.0138609606557889E-2,null,8.8854803527505188E-2,1,1,1]
[null,null,null,null,null,null,null,null,null,null,null,null,null,null,null,null,null,null,null,null,null,null,null,null,null,null,null,null,null,null,null,null,null,null,null,null,276,1,-1.8081785481556367E-2,2.5388371731197568E-2,null,2.5388371731197568E-2,0,0,0]
[null,null,null,null,null,null,null,null,null,null,null,null,null,null,null,null,null,null,null,null,null,null,null,null,null,null,null,null,null,null,null,null,null,null,null,null,277,1,4.1526283525972651E-2,-3.4744267273844387E-2,null,4.1526283525972651E-2,0,0,0]
[null,null,null,null,null,null,null,null,null,null,null,null,null,null,null,null,null,null,null,null,null,null,null,null,null,null,null,null,null,null,null,null,null,null,null,null,278,0,0.13124474298126909,0.12602892857006465,null,0.13124474298126909,1,1,1]
[null,null,null,null,null,null,null,null,null,null,null,null,null,null,null,null,null,null,null,null,null,null,null,null,null,null,null,null,null,null,null,null,null,null,null,null,279,2,5.9696967317596439E-2,5.4563306846198367E-2,null,5.9696967317596439E-2,1,0,0]
[null,null,null,null,null,null,null,null,null,null,null,null,null,null,null,null,null,null,null,null,null,null,null,null,null,null,null,null,null,null,null,null,null,null,null,null,280,1,9.1714418765171946E-2,1.2513326102083111E-2,null,9.1714418765171946E-2,1,1,1]
[null,null,null,null,null,null,null,null,null,null,null,null,null,null,null,null,null,null,null,null,null,null,null,null,null,null,null,null,null,null,null,null,null,null,null,null,281,1,0.13468879769032194,-1.3323571270899559E-2,null,0.13468879769032194,1,1,1]
[null,null,null,null,null,null,null,null,null,null,null,null,null,null,null,null,null,null,null,null,null,null,null,null,null,null,null,null,null,null,null,null,null,null,null,null,282,0,-2.6363274411336679E-2,7.6427470740416226E-2,null,7.6427470740416226E-2,1,1,1]
[null,null,null,null,null,null,null,null,null,null,null,null,null,null,null,null,null,null,null,null,null,null,null,null,null,null,null,null,null,null,null,null,null,null,null,null,283,1,3.7875338315843221E-2,1.9248385110936406E-2,null,3.7875338315843221E-2,0,0,0]
[null,null,null,null,null,null,null,null,null,null,null,null,null,null,null,null,null,null,null,null,null,null,null,null,null,null,null,null,null,null,null,null,null,null,null,null,284,0,0.12040351396166638,-7.4321826473122687E-3,null,0.12040351396166638,1,1,1]
[null,null,null,null,null,null,null,null,null,null,null,null,null,null,null,null,null,null,null,null,null,null,null,null,null,null,null,null,null,null,null,null,null,null,null,null,285,1,0.10683194718550193,0.10906369506770996,null,0.10906369506770996,1,1,1]
[null,null,null,null,null,null,null,null,null,null,null,null,null,null,null,null,null,null,null,null,null,null,null,null,null,null,null,null,null,null,null,null,null,null,null,null,286,1,6.2488609845859466E-2,7.444739719785165E-2,null,7.444739719785165E-2,1,1,1]
[null,null,null,null,null,null,null,null,null,null,null,null,null,null,null,null,null,null,null,null,null,null,null,null,null,null,null,null,null,null,null,null,null,null,null,null,287,1,2.5139974590706604E-3,6.0560259876230482E-2,null,6.0560259876230482E-2,1,1,1]
[null,null,null,null,null,null,null,null,null,null,null,null,null,null,null,null,null,null,null,null,null,null,null,null,null,null,null,null,null,null,null,null,null,null,null,null,288,1,6.1489768522815069E-2,0.14480460264538531,null,0.14480460264538531,1,1,1]
[null,null,null,null,null,null,null,null,null,null,null,null,null,null,null,null,null,null,null,null,null,null,null,null,null,null,null,null,null,null,null,null,null,null,null,null,289,1,0.10289571065020242,0.14547691869028601,null,0.14547691869028601,1,1,1]
[null,null,null,null,null,null,null,null,null,null,null,null,null,null,null,null,null,null,null,null,null,null,null,null,null,null,null,null,null,null,null,null,null,null,null,null,290,0,5.6951089383756814E-2,7.9009396947358201E-2,null,7.9009396947358201E-2,1,1,1]
[null,null,null,null,null,null,null,null,null,null,null,null,null,null,null,null,null,null,null,null,null,null,null,null,null,null,null,null,null,null,null,null,null,null,null,null,291,1,0.11046673367337823,8.9040676339917635E-2,null,0.11046673367337823,1,1,1]
[null,null,null,null,null,null,null,null,null,null,null,null,null,null,null,null,null,null,null,null,null,null,null,null,null,null,null,null,null,null,null,null,null,null,null,null,292,1,9.1939885683812284E-2,4.7333185160892466E-2,null,9.1939885683812284E-2,1,1,1]
[null,null,null,null,null,null,null,null,null,null,null,null,null,null,null,null,null,null,null,null,null,null,null,null,null,null,null,null,null,null,null,null,null,null,null,null,293,1,0.14209975364903982,-1.8059872455731818E-2,null,0.14209975364903982,1,1,1]
[null,null,null,null,null,null,null,null,null,null,null,null,null,null,null,null,null,null,null,null,null,null,null,null,null,null,null,null,null,null,null,null,null,null,null,null,294,1,3.2503923802357448E-2,-3.3813352824608289E-2,null,3.2503923802357448E-2,0,0,0]
[null,null,null,null,null,null,null,null,null,null,null,null,null,null,null,null,null,null,null,null,null,null,null,null,null,null,null,null,null,null,null,null,null,null,null,null,295,1,2.3047181631014269E-2,-2.5355831054870714E-2,null,2.3047181631014269E-2,0,0,0]
[null,null,null,null,null,null,null,null,null,null,null,null,null,null,null,null,null,null,null,null,null,null,null,null,null,null,null,null,null,null,null,null,null,null,null,null,296,0,3.0384298635803164E-2,6.5307738923404024E-2,null,6.5307738923404024E-2,1,1,1]
[null,null,null,null,null,null,null,null,null,null,null,null,null,null,null,null,null,null,null,null,null,null,null,null,null,null,null,null,null,null,null,null,null,null,null,null,297,0,4.0809768878550257E-2,5.4873110230608368E-2,null,5.4873110230608368E-2,0,0,0]
[null,null,null,null,null,null,null,null,null,null,null,null,null,null,null,null,null,null,null,null,null,null,null,null,null,null,null,null,null,null,null,null,null,null,null,null,298,2,9.7282684150987064E-2,7.4912619719301077E-2,null,9.7282684150987064E-2,1,1,1]
[null,null,null,null,null,null,null,null,null,null,null,null,null,null,null,null,null,null,null,null,null,null,null,null,null,null,null,null,null,null,null,null,null,null,null,null,299,1,0.14457871886044482,0.10822851567710634,null,0.14457871886044482,1,1,1]
[null,null,null,null,null,null,null,null,null,null,null,null,null,null,null,null,null,null,null,null,null,null,null,null,null,null,null,null,null,null,null,null,null,null,null,null,300,1,0.11027804642111194,-1.8810346514963272E-2,null,0.11027804642111194,1,1,1]
[null,null,null,null,null,null,null,null,null,null,null,null,null,null,null,null,null,null,null,null,null,null,null,null,null,null,null,null,null,null,null,null,null,null,null,null,301,0,7.2390726399153227E-2,7.2117153251876509E-2,null,7.2390726399153227E-2,1,1,1]
[null,null,null,null,null,null,null,null,null,null,null,null,null,null,null,null,null,null,null,null,null,null,null,null,null,null,null,null,null,null,null,null,null,null,null,null,302,0,2.1894815830519665E-2,2.0457735119992382E-2,null,2.1894815830519665E-2,0,0,0]
[null,null,null,null,null,null,null,null,null,null,null,null,null,null,null,null,null,null,null,null,null,null,null,null,null,null,null,null,null,null,null,null,null,null,null,null,303,0,7.9042991597442214E-2,3.7743939698332118E-2,null,7.9042991597442214E-2,1,1,1]
[null,null,null,null,null,null,null,null,null,null,null,null,null,null,null,null,null,null,null,null,null,null,null,null,null,null,null,null,null,null,null,null,null,null,null,null,304,1,4.611098002034808E-2,-3.2279669950165624E-2,null,4.611098002034808E-2,0,0,0]
[null,null,null,null,null,null,null,null,null,null,null,null,null,null,null,null,null,null,null,null,null,null,null,null,null,null,null,null,null,null,null,null,null,null,null,null,305,0,0.15111143470940558,0.1230697797045317,null,0.15111143470940558,1,1,1]
[null,null,null,null,null,null,null,null,null,null,null,null,null,null,null,null,null,null,null,null,null,null,null,null,null,null,null,null,null,null,null,null,null,null,null,null,306,0,8.5178770289230377E-2,-2.6415356631409703E-2,null,8.5178770289230377E-2,1,1,1]
[null,null,null,null,null,null,null,null,null,null,null,null,null,null,null,null,null,null,null,null,null,null,null,null,null,null,null,null,null,null,null,null,null,null,null,null,307,0,0.11951446844818592,0.13662585014069251,null,0.13662585014069251,1,1,1]
[null,null,null,null,null,null,null,null,null,null,null,null,null,null,null,null,null,null,null,null,null,null,null,null,null,null,null,null,null,null,null,null,null,null,null,null,308,0,1.1758337113111361E-2,0.10751699973523143,null,0.10751699973523143,1,1,1]
[null,null,null,null,null,null,null,null,null,null,null,null,null,null,null,null,null,null,null,null,null,null,null,null,null,null,null,null,null,null,null,null,null,null,null,null,309,0,1.068941064276685E-2,-2.2677429688346962E-2,null,1.068941064276685E-2,0,0,0]
[null,null,null,null,null,null,null,null,null,null,null,null,null,null,null,null,null,null,null,null,null,null,null,null,null,null,null,null,null,null,null,null,null,null,null,null,310,1,4.9321861098370778E-2,7.045767087562016E-2,null,7.045767087562016E-2,1,1,1]
[null,null,null,null,null,null,null,null,null,null,null,null,null,null,null,null,null,null,null,null,null,null,null,null,null,null,null,null,null,null,null,null,null,null,null,null,311,1,4.4370188785381348E-2,0.1276734093783698,null,0.1276734093783698,1,1,1]
[null,null,null,null,null,null,null,null,null,null,null,null,null,null,null,null,null,null,null,null,null,null,null,null,null,null,null,null,null,null,null,null,null,null,null,null,312,1,8.2202734515192999E-2,8.8138105305058945E-2,null,8.8138105305058945E-2,1,1,1]
[null,null,null,null,null,null,null,null,null,null,null,null,null,null,null,null,null,null,null,null,null,null,null,null,null,null,null,null,null,null,null,null,null,null,null,null,313,0,0.16225294677131874,-0.12432502697786185,null,0.16225294677131874,1,1,1]
[null,null,null,null,null,null,null,null,null,null,null,null,null,null,null,null,null,null,null,null,null,null,null,null,null,null,null,null,null,null,null,null,null,null,null,null,314,0,0.14198532850704915,6.1475512991697734E-2,null,0.14198532850704915,1,1,1]
[null,null,null,null,null,null,null,null,null,null,null,null,null,null,null,null,null,null,null,null,null,null,null,null,null,null,null,null,null,null,null,null,null,null,null,null,315,1,0.12818772612795426,-4.5667592204943208E-3,null,0.12818772612795426,1,1,1]
[null,null,null,null,null,null,null,null,null,null,null,null,null,null,null,null,null,null,null,null,null,null,null,null,null,null,null,null,null,null,null,null,null,null,null,null,316,0,7.9304008859089059E-2,6.5465619021634058E-3,null,7.9304008859089059E-2,1,1,1]
[null,null,null,null,null,null,null,null,null,null,null,null,null,null,null,null,null,null,null,null,null,null,null,null,null,null,null,null,null,null,null,null,null,null,null,null,317,1,1.7465724989348397E-2,0.11839450891729997,null,0.11839450891729997,1,1,1]
[null,null,null,null,null,null,null,null,null,null,null,null,null,null,null,null,null,null,null,null,null,null,null,null,null,null,null,null,null,null,null,null,null,null,null,null,318,2,1.5214574735683772E-2,7.6603851411001234E-2,null,7.6603851411001234E-2,1,1,1]
[null,null,null,null,null,null,null,null,null,null,null,null,null,null,null,null,null,null,null,null,null,null,null,null,null,null,null,null,null,null,null,null,null,null,null,null,319,1,0.11529454004698225,0.11682860214218094,null,0.11682860214218094,1,1,1]
[null,null,null,null,null,null,null,null,null,null,null,null,null,null,null,null,null,null,null,null,null,null,null,null,null,null,null,null,null,null,null,null,null,null,null,null,320,1,2.8129152199041441E-2,6.9764945712825543E-2,null,6.9764945712825543E-2,1,1,1]
[null,null,null,null,null,null,null,null,null,null,null,null,null,null,null,null,null,null,null,null,null,null,null,null,null,null,null,null,null,null,null,null,null,null,null,null,321,1,3.6657357452690942E-2,0.1020415449191836,null,0.1020415449191836,{"$f":"IF(MAX(AM322:AN322)>fdfy,1,0)","v":1},{"$f":"IF(MAX(AM322:AN322)>fdcash,1,0)","v":1},1]
[null,null,null,null,null,null,null,null,null,null,null,null,null,null,null,null,null,null,null,null,null,null,null,null,null,null,null,null,null,null,null,null,null,null,null,null,322,2,0.10327642515081847,3.6686479493006408E-2,null,0.10327642515081847,1,1,{"$f":"IF(AQ323+AR323=2,1,0)","v":1}]
[null,null,null,null,null,null,null,null,null,null,null,null,null,null,null,null,null,null,null,null,null,null,null,null,null,null,null,null,null,null,null,null,null,null,null,null,323,1,1.5529459102333165E-2,5.8517865088306253E-2,null,5.8517865088306253E-2,1,0,0]
[null,null,null,null,null,null,null,null,null,null,null,null,null,null,null,null,null,null,null,null,null,null,null,null,null,null,null,null,null,null,null,null,null,null,null,null,324,1,0.14423411879870351,-2.5591071888111161E-2,null,0.14423411879870351,1,1,1]
[null,null,null,null,null,null,null,null,null,null,null,null,null,null,null,null,null,null,null,null,null,null,null,null,null,null,null,null,null,null,null,null,null,null,null,null,325,1,5.9393461600327102E-2,0.13221969086227237,null,0.13221969086227237,1,1,1]
[null,null,null,null,null,null,null,null,null,null,null,null,null,null,null,null,null,null,null,null,null,null,null,null,null,null,null,null,null,null,null,null,null,null,null,null,326,0,8.1455605594890512E-2,8.6404002748267983E-2,null,8.6404002748267983E-2,1,1,1]
[null,null,null,null,null,null,null,null,null,null,null,null,null,null,null,null,null,null,null,null,null,null,null,null,null,null,null,null,null,null,null,null,null,null,null,null,327,1,3.912561453740282E-2,9.347486425991125E-2,null,9.347486425991125E-2,1,1,1]
[null,null,null,null,null,null,null,null,null,null,null,null,null,null,null,null,null,null,null,null,null,null,null,null,null,null,null,null,null,null,null,null,null,null,null,null,328,1,-3.551352494488158E-2,7.1839443792403035E-2,null,7.1839443792403035E-2,1,1,1]
[null,null,null,null,null,null,null,null,null,null,null,null,null,null,null,null,null,null,null,null,null,null,null,null,null,null,null,null,null,null,null,null,null,null,null,null,329,0,1.2618513261339226E-2,7.4778551453309694E-2,null,7.4778551453309694E-2,1,1,1]
[null,null,null,null,null,null,null,null,null,null,null,null,null,null,null,null,null,null,null,null,null,null,null,null,null,null,null,null,null,null,null,null,null,null,null,null,330,2,8.4239904959148681E-2,5.7349998493184007E-2,null,8.4239904959148681E-2,1,1,1]
[null,null,null,null,null,null,null,null,null,null,null,null,null,null,null,null,null,null,null,null,null,null,null,null,null,null,null,null,null,null,null,null,null,null,null,null,331,1,8.8999898234840558E-2,9.0233384862096644E-2,null,9.0233384862096644E-2,1,1,1]
[null,null,null,null,null,null,null,null,null,null,null,null,null,null,null,null,null,null,null,null,null,null,null,null,null,null,null,null,null,null,null,null,null,null,null,null,332,1,3.0208721776508796E-2,1.2174039478656917E-2,null,3.0208721776508796E-2,0,0,0]
[null,null,null,null,null,null,null,null,null,null,null,null,null,null,null,null,null,null,null,null,null,null,null,null,null,null,null,null,null,null,null,null,null,null,null,null,333,0,1.4336164691541642E-2,9.9471529884323839E-2,null,9.9471529884323839E-2,1,1,1]
[null,null,null,null,null,null,null,null,null,null,null,null,null,null,null,null,null,null,null,null,null,null,null,null,null,null,null,null,null,null,null,null,null,null,null,null,334,0,4.0756503203198235E-2,5.9762714311224041E-2,null,5.9762714311224041E-2,1,0,0]
[null,null,null,null,null,null,null,null,null,null,null,null,null,null,null,null,null,null,null,null,null,null,null,null,null,null,null,null,null,null,null,null,null,null,null,null,335,1,6.4188365962601912E-2,6.5371219771870104E-2,null,6.5371219771870104E-2,1,1,1]
[null,null,null,null,null,null,null,null,null,null,null,null,null,null,null,null,null,null,null,null,null,null,null,null,null,null,null,null,null,null,null,null,null,null,null,null,336,1,8.0187132359294644E-2,6.9344812856450444E-2,null,{"$f":"MAX(AM337:AN337)","v":8.0187132359294644E-2},1,1,1]
[null,null,null,null,null,null,null,null,null,null,null,null,null,null,null,null,null,null,null,null,null,null,null,null,null,null,null,null,null,null,null,null,null,null,null,null,337,1,6.345678108119257E-2,-1.4248783934621811E-2,null,6.345678108119257E-2,1,1,1]
[null,null,null,null,null,null,null,null,null,null,null,null,null,null,null,null,null,null,null,null,null,null,null,null,null,null,null,null,null,null,null,null,null,null,null,null,338,2,3.7102482224060651E-2,0.11784855629628566,null,0.11784855629628566,1,1,1]
[null,null,null,null,null,null,null,null,null,null,null,null,null,null,null,null,null,null,null,null,null,null,null,null,null,null,null,null,null,null,null,null,null,null,null,null,339,1,8.5358548056183592E-2,8.8794475841020626E-2,null,8.8794475841020626E-2,1,1,1]
[null,null,null,null,null,null,null,null,null,null,null,null,null,null,null,null,null,null,null,null,null,null,null,null,null,null,null,null,null,null,null,null,null,null,null,null,340,1,-2.4975001056373847E-2,0.10347673751963438,null,0.10347673751963438,1,1,1]
[null,null,null,null,null,null,null,null,null,null,null,null,null,null,null,null,null,null,null,null,null,null,null,null,null,null,null,null,null,null,null,null,null,null,null,null,341,1,0.15878113360220403,8.7455053267021521E-2,null,0.15878113360220403,1,1,1]
[null,null,null,null,null,null,null,null,null,null,null,null,null,null,null,null,null,null,null,null,null,null,null,null,null,null,null,null,null,null,null,null,null,null,null,null,342,1,8.1275510676759311E-4,0.10543201372831956,null,0.10543201372831956,1,1,1]
[null,null,null,null,null,null,null,null,null,null,null,null,null,null,null,null,null,null,null,null,null,null,null,null,null,null,null,null,null,null,null,null,null,null,null,null,343,1,4.0786024199527926E-2,0.10233595461419687,null,0.10233595461419687,1,1,1]
[null,null,null,null,null,null,null,null,null,null,null,null,null,null,null,null,null,null,null,null,null,null,null,null,null,null,null,null,null,null,null,null,null,null,null,null,344,1,8.2936122779463606E-2,6.4572516970563543E-2,null,8.2936122779463606E-2,1,1,1]
[null,null,null,null,null,null,null,null,null,null,null,null,null,null,null,null,null,null,null,null,null,null,null,null,null,null,null,null,null,null,null,null,null,null,null,null,345,1,8.9727150552700641E-2,0.10398241872196468,null,0.10398241872196468,1,1,1]
[null,null,null,null,null,null,null,null,null,null,null,null,null,null,null,null,null,null,null,null,null,null,null,null,null,null,null,null,null,null,null,null,null,null,null,null,346,1,6.0783900078544395E-2,0.11072910004723191,null,0.11072910004723191,1,1,1]
[null,null,null,null,null,null,null,null,null,null,null,null,null,null,null,null,null,null,null,null,null,null,null,null,null,null,null,null,null,null,null,null,null,null,null,null,347,1,6.8291107778408966E-2,8.926711406683574E-2,null,8.926711406683574E-2,1,1,1]
[null,null,null,null,null,null,null,null,null,null,null,null,null,null,null,null,null,null,null,null,null,null,null,null,null,null,null,null,null,null,null,null,null,null,null,null,348,2,6.8776492073343798E-2,5.7259312391879869E-2,null,6.8776492073343798E-2,1,1,1]
[null,null,null,null,null,null,null,null,null,null,null,null,null,null,null,null,null,null,null,null,null,null,null,null,null,null,null,null,null,null,null,null,null,null,null,null,349,1,2.3645139564869799E-2,5.6235063136790053E-2,null,5.6235063136790053E-2,1,0,0]
[null,null,null,null,null,null,null,null,null,null,null,null,null,null,null,null,null,null,null,null,null,null,null,null,null,null,null,null,null,null,null,null,null,null,null,null,350,1,8.0327440068856726E-2,6.8976522842246979E-2,null,8.0327440068856726E-2,1,1,1]
[null,null,null,null,null,null,null,null,null,null,null,null,null,null,null,null,null,null,null,null,null,null,null,null,null,null,null,null,null,null,null,null,null,null,null,null,351,1,7.6786516376371239E-2,6.2895095718991767E-2,null,7.6786516376371239E-2,1,1,1]
[null,null,null,null,null,null,null,null,null,null,null,null,null,null,null,null,null,null,null,null,null,null,null,null,null,null,null,null,null,null,null,null,null,null,null,null,352,1,5.5364022649134981E-2,8.3577788194193703E-2,null,8.3577788194193703E-2,1,1,1]
[null,null,null,null,null,null,null,null,null,null,null,null,null,null,null,null,null,null,null,null,null,null,null,null,null,null,null,null,null,null,null,null,null,null,null,null,353,0,0.15179488672014885,-2.4904537364473733E-2,null,0.15179488672014885,1,1,1]
[null,null,null,null,null,null,null,null,null,null,null,null,null,null,null,null,null,null,null,null,null,null,null,null,null,null,null,null,null,null,null,null,null,null,null,null,354,0,2.8480795458774466E-2,5.7442322375931054E-2,null,5.7442322375931054E-2,1,0,0]
[null,null,null,null,null,null,null,null,null,null,null,null,null,null,null,null,null,null,null,null,null,null,null,null,null,null,null,null,null,null,null,null,null,null,null,null,355,0,4.9502352191686638E-2,-0.11228498892735173,null,4.9502352191686638E-2,0,0,0]
[null,null,null,null,null,null,null,null,null,null,null,null,null,null,null,null,null,null,null,null,null,null,null,null,null,null,null,null,null,null,null,null,null,null,null,null,356,1,0.11095226277487558,0.13347977276497902,null,0.13347977276497902,1,1,1]
[null,null,null,null,null,null,null,null,null,null,null,null,null,null,null,null,null,null,null,null,null,null,null,null,null,null,null,null,null,null,null,null,null,null,null,null,357,1,0.12456876182450261,1.3686022532430897E-2,null,0.12456876182450261,1,1,1]
[null,null,null,null,null,null,null,null,null,null,null,null,null,null,null,null,null,null,null,null,null,null,null,null,null,null,null,null,null,null,null,null,null,null,null,null,358,1,-6.8605323117624684E-2,4.4651841345573873E-2,null,4.4651841345573873E-2,0,0,0]
[null,null,null,null,null,null,null,null,null,null,null,null,null,null,null,null,null,null,null,null,null,null,null,null,null,null,null,null,null,null,null,null,null,null,null,null,359,0,7.8376778842980777E-2,0.10507281306285732,null,0.10507281306285732,1,1,1]
[null,null,null,null,null,null,null,null,null,null,null,null,null,null,null,null,null,null,null,null,null,null,null,null,null,null,null,null,null,null,null,null,null,null,null,null,360,0,8.0474748843656352E-2,2.7018486498744831E-2,null,8.0474748843656352E-2,1,1,1]
[null,null,null,null,null,null,null,null,null,null,null,null,null,null,null,null,null,null,null,null,null,null,null,null,null,null,null,null,null,null,null,null,null,null,null,null,361,0,0.19148593104739264,1.8598917364923251E-2,null,0.19148593104739264,1,1,1]
[null,null,null,null,null,null,null,null,null,null,null,null,null,null,null,null,null,null,null,null,null,null,null,null,null,null,null,null,null,null,null,null,null,null,null,null,362,1,4.8933465114347152E-2,0.1217529375035582,null,0.1217529375035582,1,1,1]
[null,null,null,null,null,null,null,null,null,null,null,null,null,null,null,null,null,null,null,null,null,null,null,null,null,null,null,null,null,null,null,null,null,null,null,null,363,0,3.7562107745969575E-2,3.3170849933888302E-2,null,3.7562107745969575E-2,0,0,0]
[null,null,null,null,null,null,null,null,null,null,null,null,null,null,null,null,null,null,null,null,null,null,null,null,null,null,null,null,null,null,null,null,null,null,null,null,364,1,0.1257906969333118,0.10936814901627212,null,0.1257906969333118,1,1,1]
[null,null,null,null,null,null,null,null,null,null,null,null,null,null,null,null,null,null,null,null,null,null,null,null,null,null,null,null,null,null,null,null,null,null,null,null,365,0,-3.3662628223121382E-2,8.3094877046026028E-3,null,8.3094877046026028E-3,0,0,0]
[null,null,null,null,null,null,null,null,null,null,null,null,null,null,null,null,null,null,null,null,null,null,null,null,null,null,null,null,null,null,null,null,null,null,null,null,366,1,9.3769205897015873E-2,6.0024932598724101E-2,null,9.3769205897015873E-2,1,1,1]
[null,null,null,null,null,null,null,null,null,null,null,null,null,null,null,null,null,null,null,null,null,null,null,null,null,null,null,null,null,null,null,null,null,null,null,null,367,1,-2.9647266013238083E-2,0.1233164284910222,null,0.1233164284910222,1,1,1]
[null,null,null,null,null,null,null,null,null,null,null,null,null,null,null,null,null,null,null,null,null,null,null,null,null,null,null,null,null,null,null,null,null,null,null,null,368,1,8.0555535163322478E-2,0.17712780598391054,null,0.17712780598391054,1,1,1]
[null,null,null,null,null,null,null,null,null,null,null,null,null,null,null,null,null,null,null,null,null,null,null,null,null,null,null,null,null,null,null,null,null,null,null,null,369,0,0.17564900272407757,0.11725311345168943,null,0.17564900272407757,1,1,1]
[null,null,null,null,null,null,null,null,null,null,null,null,null,null,null,null,null,null,null,null,null,null,null,null,null,null,null,null,null,null,null,null,null,null,null,null,370,2,-4.8518364332902908E-2,9.2513049790184043E-2,null,9.2513049790184043E-2,1,1,1]
[null,null,null,null,null,null,null,null,null,null,null,null,null,null,null,null,null,null,null,null,null,null,null,null,null,null,null,null,null,null,null,null,null,null,null,null,371,1,0.13221124811121521,3.8478225138807387E-2,null,0.13221124811121521,1,1,1]
[null,null,null,null,null,null,null,null,null,null,null,null,null,null,null,null,null,null,null,null,null,null,null,null,null,null,null,null,null,null,null,null,null,null,null,null,372,0,9.5104845144360795E-2,1.7732735452364645E-2,null,9.5104845144360795E-2,1,1,1]
[null,null,null,null,null,null,null,null,null,null,null,null,null,null,null,null,null,null,null,null,null,null,null,null,null,null,null,null,null,null,null,null,null,null,null,null,373,1,-3.0696621746986175E-2,0.11506889025185085,null,0.11506889025185085,1,1,1]
[null,null,null,null,null,null,null,null,null,null,null,null,null,null,null,null,null,null,null,null,null,null,null,null,null,null,null,null,null,null,null,null,null,null,null,null,374,1,-2.0009161590428981E-2,3.6676683136548593E-2,null,3.6676683136548593E-2,0,0,0]
[null,null,null,null,null,null,null,null,null,null,null,null,null,null,null,null,null,null,null,null,null,null,null,null,null,null,null,null,null,null,null,null,null,null,null,null,375,0,6.7412346527065736E-2,5.7709493026776748E-2,null,6.7412346527065736E-2,1,1,1]
[null,null,null,null,null,null,null,null,null,null,null,null,null,null,null,null,null,null,null,null,null,null,null,null,null,null,null,null,null,null,null,null,null,null,null,null,376,0,6.4275576007167823E-2,1.72649818294488E-2,null,6.4275576007167823E-2,1,1,1]
[null,null,null,null,null,null,null,null,null,null,null,null,null,null,null,null,null,null,null,null,null,null,null,null,null,null,null,null,null,null,null,null,null,null,null,null,377,0,0.12419161194972483,0.12783142104932077,null,0.12783142104932077,1,1,1]
[null,null,null,null,null,null,null,null,null,null,null,null,null,null,null,null,null,null,null,null,null,null,null,null,null,null,null,null,null,null,null,null,null,null,null,null,378,0,6.5105221170201233E-2,-1.8971620212258067E-3,null,6.5105221170201233E-2,1,1,1]
[null,null,null,null,null,null,null,null,null,null,null,null,null,null,null,null,null,null,null,null,null,null,null,null,null,null,null,null,null,null,null,null,null,null,null,null,379,1,-6.4936835150228855E-3,9.4149028294064463E-2,null,9.4149028294064463E-2,1,1,1]
[null,null,null,null,null,null,null,null,null,null,null,null,null,null,null,null,null,null,null,null,null,null,null,null,null,null,null,null,null,null,null,null,null,null,null,null,380,1,1.7091651225400684E-2,0.15778586698328212,null,0.15778586698328212,1,1,1]
[null,null,null,null,null,null,null,null,null,null,null,null,null,null,null,null,null,null,null,null,null,null,null,null,null,null,null,null,null,null,null,null,null,null,null,null,381,1,9.375936902726556E-2,0.12141980176151557,null,0.12141980176151557,1,1,1]
[null,null,null,null,null,null,null,null,null,null,null,null,null,null,null,null,null,null,null,null,null,null,null,null,null,null,null,null,null,null,null,null,null,null,null,null,382,1,2.0906098492804226E-2,8.8332212036086544E-2,null,8.8332212036086544E-2,1,1,1]
[null,null,null,null,null,null,null,null,null,null,null,null,null,null,null,null,null,null,null,null,null,null,null,null,null,null,null,null,null,null,null,null,null,null,null,null,383,0,-2.3612891129085489E-2,6.5773947676370792E-3,null,6.5773947676370792E-3,0,0,0]
[null,null,null,null,null,null,null,null,null,null,null,null,null,null,null,null,null,null,null,null,null,null,null,null,null,null,null,null,null,null,null,null,null,null,null,null,384,2,0.11031479452103898,6.3910942541067106E-2,null,0.11031479452103898,1,1,1]
[null,null,null,null,null,null,null,null,null,null,null,null,null,null,null,null,null,null,null,null,null,null,null,null,null,null,null,null,null,null,null,null,null,null,null,null,385,0,0.13083057537939102,-4.5402743974810922E-2,null,0.13083057537939102,{"$f":"IF(MAX(AM386:AN386)>fdfy,1,0)","v":1},{"$f":"IF(MAX(AM386:AN386)>fdcash,1,0)","v":1},1]
[null,null,null,null,null,null,null,null,null,null,null,null,null,null,null,null,null,null,null,null,null,null,null,null,null,null,null,null,null,null,null,null,null,null,null,null,386,2,-1.3254442906052599E-2,-4.3093437944923263E-3,null,-4.3093437944923263E-3,0,0,{"$f":"IF(AQ387+AR387=2,1,0)","v":0}]
[null,null,null,null,null,null,null,null,null,null,null,null,null,null,null,null,null,null,null,null,null,null,null,null,null,null,null,null,null,null,null,null,null,null,null,null,387,0,7.3894499351297327E-2,5.8419051563739277E-2,null,7.3894499351297327E-2,1,1,1]
[null,null,null,null,null,null,null,null,null,null,null,null,null,null,null,null,null,null,null,null,null,null,null,null,null,null,null,null,null,null,null,null,null,null,null,null,388,0,0.15352879959030297,6.4285933530583428E-2,null,0.15352879959030297,1,1,1]
[null,null,null,null,null,null,null,null,null,null,null,null,null,null,null,null,null,null,null,null,null,null,null,null,null,null,null,null,null,null,null,null,null,null,null,null,389,1,7.7691697665736248E-2,-3.4888297834508641E-2,null,7.7691697665736248E-2,1,1,1]
[null,null,null,null,null,null,null,null,null,null,null,null,null,null,null,null,null,null,null,null,null,null,null,null,null,null,null,null,null,null,null,null,null,null,null,null,390,0,8.921109401069538E-2,0.18408723805906746,null,0.18408723805906746,1,1,1]
[null,null,null,null,null,null,null,null,null,null,null,null,null,null,null,null,null,null,null,null,null,null,null,null,null,null,null,null,null,null,null,null,null,null,null,null,391,1,0.14655192409128093,3.9283297397480155E-2,null,0.14655192409128093,1,1,1]
[null,null,null,null,null,null,null,null,null,null,null,null,null,null,null,null,null,null,null,null,null,null,null,null,null,null,null,null,null,null,null,null,null,null,null,null,392,2,5.7116819604791758E-2,0.10462975000527175,null,0.10462975000527175,1,1,1]
[null,null,null,null,null,null,null,null,null,null,null,null,null,null,null,null,null,null,null,null,null,null,null,null,null,null,null,null,null,null,null,null,null,null,null,null,393,2,6.348457065157298E-4,6.8014850298069529E-2,null,6.8014850298069529E-2,1,1,1]
[null,null,null,null,null,null,null,null,null,null,null,null,null,null,null,null,null,null,null,null,null,null,null,null,null,null,null,null,null,null,null,null,null,null,null,null,394,0,3.1404867939781367E-2,0.12978630606369168,null,0.12978630606369168,1,1,1]
[null,null,null,null,null,null,null,null,null,null,null,null,null,null,null,null,null,null,null,null,null,null,null,null,null,null,null,null,null,null,null,null,null,null,null,null,395,1,5.5087013006782426E-2,6.3982405964467581E-2,null,6.3982405964467581E-2,1,1,1]
[null,null,null,null,null,null,null,null,null,null,null,null,null,null,null,null,null,null,null,null,null,null,null,null,null,null,null,null,null,null,null,null,null,null,null,null,396,2,8.0130000949603097E-3,-1.0970017101414542E-2,null,8.0130000949603097E-3,0,0,0]
[null,null,null,null,null,null,null,null,null,null,null,null,null,null,null,null,null,null,null,null,null,null,null,null,null,null,null,null,null,null,null,null,null,null,null,null,397,1,-1.4880023882218985E-2,3.0775882492353412E-2,null,3.0775882492353412E-2,0,0,0]
[null,null,null,null,null,null,null,null,null,null,null,null,null,null,null,null,null,null,null,null,null,null,null,null,null,null,null,null,null,null,null,null,null,null,null,null,398,0,2.6188971454943255E-2,5.3892252562181886E-2,null,5.3892252562181886E-2,0,0,0]
[null,null,null,null,null,null,null,null,null,null,null,null,null,null,null,null,null,null,null,null,null,null,null,null,null,null,null,null,null,null,null,null,null,null,null,null,399,1,4.7270637878708222E-2,7.6322322721235514E-2,null,7.6322322721235514E-2,1,1,1]
[null,null,null,null,null,null,null,null,null,null,null,null,null,null,null,null,null,null,null,null,null,null,null,null,null,null,null,null,null,null,null,null,null,null,null,null,400,1,3.5323980073957539E-2,2.607836468293212E-2,null,{"$f":"MAX(AM401:AN401)","v":3.5323980073957539E-2},0,0,0]
[null,null,null,null,null,null,null,null,null,null,null,null,null,null,null,null,null,null,null,null,null,null,null,null,null,null,null,null,null,null,null,null,null,null,null,null,401,0,4.7475798942862024E-3,1.7716425255164703E-2,null,1.7716425255164703E-2,0,0,0]
[null,null,null,null,null,null,null,null,null,null,null,null,null,null,null,null,null,null,null,null,null,null,null,null,null,null,null,null,null,null,null,null,null,null,null,null,402,0,0.16314935140705078,-1.3176563447697687E-3,null,0.16314935140705078,1,1,1]
[null,null,null,null,null,null,null,null,null,null,null,null,null,null,null,null,null,null,null,null,null,null,null,null,null,null,null,null,null,null,null,null,null,null,null,null,403,0,2.2098373976767505E-2,5.8336736783943133E-2,null,5.8336736783943133E-2,1,0,0]
[null,null,null,null,null,null,null,null,null,null,null,null,null,null,null,null,null,null,null,null,null,null,null,null,null,null,null,null,null,null,null,null,null,null,null,null,404,0,-1.3885608871170629E-2,7.6717935662495185E-2,null,7.6717935662495185E-2,1,1,1]
[null,null,null,null,null,null,null,null,null,null,null,null,null,null,null,null,null,null,null,null,null,null,null,null,null,null,null,null,null,null,null,null,null,null,null,null,405,0,1.0829497892760331E-2,5.4178989851126458E-2,null,5.4178989851126458E-2,0,0,0]
[null,null,null,null,null,null,null,null,null,null,null,null,null,null,null,null,null,null,null,null,null,null,null,null,null,null,null,null,null,null,null,null,null,null,null,null,406,0,0.16969514249974016,1.6778746625116803E-2,null,0.16969514249974016,1,1,1]
[null,null,null,null,null,null,null,null,null,null,null,null,null,null,null,null,null,null,null,null,null,null,null,null,null,null,null,null,null,null,null,null,null,null,null,null,407,1,0.11454968596688064,0.15612742997476015,null,0.15612742997476015,1,1,1]
[null,null,null,null,null,null,null,null,null,null,null,null,null,null,null,null,null,null,null,null,null,null,null,null,null,null,null,null,null,null,null,null,null,null,null,null,408,1,0.1502588998742449,-0.10469236091036771,null,0.1502588998742449,1,1,1]
[null,null,null,null,null,null,null,null,null,null,null,null,null,null,null,null,null,null,null,null,null,null,null,null,null,null,null,null,null,null,null,null,null,null,null,null,409,0,0.14577941362824487,0.11663471317034868,null,0.14577941362824487,1,1,1]
[null,null,null,null,null,null,null,null,null,null,null,null,null,null,null,null,null,null,null,null,null,null,null,null,null,null,null,null,null,null,null,null,null,null,null,null,410,1,5.0563149416297026E-2,0.10998914931952264,null,0.10998914931952264,1,1,1]
[null,null,null,null,null,null,null,null,null,null,null,null,null,null,null,null,null,null,null,null,null,null,null,null,null,null,null,null,null,null,null,null,null,null,null,null,411,1,7.6622059354479299E-2,2.4890648381567182E-2,null,7.6622059354479299E-2,1,1,1]
[null,null,null,null,null,null,null,null,null,null,null,null,null,null,null,null,null,null,null,null,null,null,null,null,null,null,null,null,null,null,null,null,null,null,null,null,412,1,3.9889407245035313E-2,-4.4341409851381131E-2,null,3.9889407245035313E-2,0,0,0]
[null,null,null,null,null,null,null,null,null,null,null,null,null,null,null,null,null,null,null,null,null,null,null,null,null,null,null,null,null,null,null,null,null,null,null,null,413,1,3.4089365079667644E-2,5.9611887617156079E-2,null,5.9611887617156079E-2,1,0,0]
[null,null,null,null,null,null,null,null,null,null,null,null,null,null,null,null,null,null,null,null,null,null,null,null,null,null,null,null,null,null,null,null,null,null,null,null,414,1,4.5288594486127876E-2,4.1890577980505661E-2,null,4.5288594486127876E-2,0,0,0]
[null,null,null,null,null,null,null,null,null,null,null,null,null,null,null,null,null,null,null,null,null,null,null,null,null,null,null,null,null,null,null,null,null,null,null,null,415,1,0.1069572637696834,1.9289448107125073E-2,null,0.1069572637696834,1,1,1]
[null,null,null,null,null,null,null,null,null,null,null,null,null,null,null,null,null,null,null,null,null,null,null,null,null,null,null,null,null,null,null,null,null,null,null,null,416,0,0.13687164507407767,0.11853072755288707,null,0.13687164507407767,1,1,1]
[null,null,null,null,null,null,null,null,null,null,null,null,null,null,null,null,null,null,null,null,null,null,null,null,null,null,null,null,null,null,null,null,null,null,null,null,417,1,4.0378001848251355E-2,7.9159300321534065E-3,null,4.0378001848251355E-2,0,0,0]
[null,null,null,null,null,null,null,null,null,null,null,null,null,null,null,null,null,null,null,null,null,null,null,null,null,null,null,null,null,null,null,null,null,null,null,null,418,1,6.350604799195203E-2,5.6556334761885596E-2,null,6.350604799195203E-2,1,1,1]
[null,null,null,null,null,null,null,null,null,null,null,null,null,null,null,null,null,null,null,null,null,null,null,null,null,null,null,null,null,null,null,null,null,null,null,null,419,1,0.10423990165638997,9.0194060149580979E-2,null,0.10423990165638997,1,1,1]
[null,null,null,null,null,null,null,null,null,null,null,null,null,null,null,null,null,null,null,null,null,null,null,null,null,null,null,null,null,null,null,null,null,null,null,null,420,1,6.4107936724787651E-2,0.12575483577592594,null,0.12575483577592594,1,1,1]
[null,null,null,null,null,null,null,null,null,null,null,null,null,null,null,null,null,null,null,null,null,null,null,null,null,null,null,null,null,null,null,null,null,null,null,null,421,0,9.4538900436827333E-2,9.2202207366611555E-2,null,9.4538900436827333E-2,1,1,1]
[null,null,null,null,null,null,null,null,null,null,null,null,null,null,null,null,null,null,null,null,null,null,null,null,null,null,null,null,null,null,null,null,null,null,null,null,422,0,0.13054515986623683,7.6597711343735941E-2,null,0.13054515986623683,1,1,1]
[null,null,null,null,null,null,null,null,null,null,null,null,null,null,null,null,null,null,null,null,null,null,null,null,null,null,null,null,null,null,null,null,null,null,null,null,423,1,4.9615118301354011E-2,6.2155854111319631E-2,null,6.2155854111319631E-2,1,1,1]
[null,null,null,null,null,null,null,null,null,null,null,null,null,null,null,null,null,null,null,null,null,null,null,null,null,null,null,null,null,null,null,null,null,null,null,null,424,1,4.7340174450688499E-2,2.8738584475223927E-2,null,4.7340174450688499E-2,0,0,0]
[null,null,null,null,null,null,null,null,null,null,null,null,null,null,null,null,null,null,null,null,null,null,null,null,null,null,null,null,null,null,null,null,null,null,null,null,425,0,4.5463177150353085E-2,4.1004575185320302E-2,null,4.5463177150353085E-2,0,0,0]
[null,null,null,null,null,null,null,null,null,null,null,null,null,null,null,null,null,null,null,null,null,null,null,null,null,null,null,null,null,null,null,null,null,null,null,null,426,0,-1.7085004898551581E-3,-1.5067853105039664E-2,null,-1.7085004898551581E-3,0,0,0]
[null,null,null,null,null,null,null,null,null,null,null,null,null,null,null,null,null,null,null,null,null,null,null,null,null,null,null,null,null,null,null,null,null,null,null,null,427,1,-5.4568900885408889E-3,2.8356040229288837E-2,null,2.8356040229288837E-2,0,0,0]
[null,null,null,null,null,null,null,null,null,null,null,null,null,null,null,null,null,null,null,null,null,null,null,null,null,null,null,null,null,null,null,null,null,null,null,null,428,0,6.0756766267648254E-2,0.18410806690104797,null,0.18410806690104797,1,1,1]
[null,null,null,null,null,null,null,null,null,null,null,null,null,null,null,null,null,null,null,null,null,null,null,null,null,null,null,null,null,null,null,null,null,null,null,null,429,0,8.5293108023892783E-2,7.1544935436566259E-2,null,8.5293108023892783E-2,1,1,1]
[null,null,null,null,null,null,null,null,null,null,null,null,null,null,null,null,null,null,null,null,null,null,null,null,null,null,null,null,null,null,null,null,null,null,null,null,430,0,-2.580057907149369E-2,0.11913181857418076,null,0.11913181857418076,1,1,1]
[null,null,null,null,null,null,null,null,null,null,null,null,null,null,null,null,null,null,null,null,null,null,null,null,null,null,null,null,null,null,null,null,null,null,null,null,431,1,0.14208901287603148,9.7106151150685216E-2,null,0.14208901287603148,1,1,1]
[null,null,null,null,null,null,null,null,null,null,null,null,null,null,null,null,null,null,null,null,null,null,null,null,null,null,null,null,null,null,null,null,null,null,null,null,432,1,-5.1311706094455456E-2,9.9125819397087866E-2,null,9.9125819397087866E-2,1,1,1]
[null,null,null,null,null,null,null,null,null,null,null,null,null,null,null,null,null,null,null,null,null,null,null,null,null,null,null,null,null,null,null,null,null,null,null,null,433,1,6.632047320058776E-2,3.4519374650156198E-2,null,6.632047320058776E-2,1,1,1]
[null,null,null,null,null,null,null,null,null,null,null,null,null,null,null,null,null,null,null,null,null,null,null,null,null,null,null,null,null,null,null,null,null,null,null,null,434,0,8.3239394331160454E-2,3.1332781792207109E-2,null,8.3239394331160454E-2,1,1,1]
[null,null,null,null,null,null,null,null,null,null,null,null,null,null,null,null,null,null,null,null,null,null,null,null,null,null,null,null,null,null,null,null,null,null,null,null,435,1,0.1400078370769402,6.5881401653014926E-2,null,0.1400078370769402,1,1,1]
[null,null,null,null,null,null,null,null,null,null,null,null,null,null,null,null,null,null,null,null,null,null,null,null,null,null,null,null,null,null,null,null,null,null,null,null,436,0,1.8957667197143646E-2,6.8315357898070639E-2,null,6.8315357898070639E-2,1,1,1]
[null,null,null,null,null,null,null,null,null,null,null,null,null,null,null,null,null,null,null,null,null,null,null,null,null,null,null,null,null,null,null,null,null,null,null,null,437,0,-6.0964077816887174E-2,8.3072310231051549E-2,null,8.3072310231051549E-2,1,1,1]
[null,null,null,null,null,null,null,null,null,null,null,null,null,null,null,null,null,null,null,null,null,null,null,null,null,null,null,null,null,null,null,null,null,null,null,null,438,1,-2.9273482273312834E-2,5.8877294524599666E-2,null,5.8877294524599666E-2,1,0,0]
[null,null,null,null,null,null,null,null,null,null,null,null,null,null,null,null,null,null,null,null,null,null,null,null,null,null,null,null,null,null,null,null,null,null,null,null,439,0,-3.322467052786493E-3,5.2613044128128283E-2,null,5.2613044128128283E-2,0,0,0]
[null,null,null,null,null,null,null,null,null,null,null,null,null,null,null,null,null,null,null,null,null,null,null,null,null,null,null,null,null,null,null,null,null,null,null,null,440,1,-9.5837369072470757E-2,0.12501977775516093,null,0.12501977775516093,1,1,1]
[null,null,null,null,null,null,null,null,null,null,null,null,null,null,null,null,null,null,null,null,null,null,null,null,null,null,null,null,null,null,null,null,null,null,null,null,441,0,0.11626166116153946,4.9925117416709019E-2,null,0.11626166116153946,1,1,1]
[null,null,null,null,null,null,null,null,null,null,null,null,null,null,null,null,null,null,null,null,null,null,null,null,null,null,null,null,null,null,null,null,null,null,null,null,442,0,7.6256657697504338E-5,8.6964040157931244E-2,null,8.6964040157931244E-2,1,1,1]
[null,null,null,null,null,null,null,null,null,null,null,null,null,null,null,null,null,null,null,null,null,null,null,null,null,null,null,null,null,null,null,null,null,null,null,null,443,1,-2.2557662272551515E-2,1.3554261104543386E-2,null,1.3554261104543386E-2,0,0,0]
[null,null,null,null,null,null,null,null,null,null,null,null,null,null,null,null,null,null,null,null,null,null,null,null,null,null,null,null,null,null,null,null,null,null,null,null,444,2,6.3845816109583398E-2,2.2572609972934199E-2,null,6.3845816109583398E-2,1,1,1]
[null,null,null,null,null,null,null,null,null,null,null,null,null,null,null,null,null,null,null,null,null,null,null,null,null,null,null,null,null,null,null,null,null,null,null,null,445,1,0.10485552011763266,0.20259239102497228,null,0.20259239102497228,1,1,1]
[null,null,null,null,null,null,null,null,null,null,null,null,null,null,null,null,null,null,null,null,null,null,null,null,null,null,null,null,null,null,null,null,null,null,null,null,446,0,9.5922083924126156E-2,0.10124124358815401,null,0.10124124358815401,1,1,1]
[null,null,null,null,null,null,null,null,null,null,null,null,null,null,null,null,null,null,null,null,null,null,null,null,null,null,null,null,null,null,null,null,null,null,null,null,447,0,5.8247406095541798E-3,-2.5032190024027678E-2,null,5.8247406095541798E-3,0,0,0]
[null,null,null,null,null,null,null,null,null,null,null,null,null,null,null,null,null,null,null,null,null,null,null,null,null,null,null,null,null,null,null,null,null,null,null,null,448,1,8.9863679883015912E-2,6.7650744286989806E-2,null,8.9863679883015912E-2,1,1,1]
[null,null,null,null,null,null,null,null,null,null,null,null,null,null,null,null,null,null,null,null,null,null,null,null,null,null,null,null,null,null,null,null,null,null,null,null,449,1,7.2328336766461998E-2,0.13988701578052365,null,0.13988701578052365,{"$f":"IF(MAX(AM450:AN450)>fdfy,1,0)","v":1},{"$f":"IF(MAX(AM450:AN450)>fdcash,1,0)","v":1},1]
[null,null,null,null,null,null,null,null,null,null,null,null,null,null,null,null,null,null,null,null,null,null,null,null,null,null,null,null,null,null,null,null,null,null,null,null,450,1,0.10111398798153348,4.448279288743584E-2,null,0.10111398798153348,1,1,{"$f":"IF(AQ451+AR451=2,1,0)","v":1}]
[null,null,null,null,null,null,null,null,null,null,null,null,null,null,null,null,null,null,null,null,null,null,null,null,null,null,null,null,null,null,null,null,null,null,null,null,451,0,0.13551180976452915,5.5876279252656591E-2,null,0.13551180976452915,1,1,1]
[null,null,null,null,null,null,null,null,null,null,null,null,null,null,null,null,null,null,null,null,null,null,null,null,null,null,null,null,null,null,null,null,null,null,null,null,452,0,0.13694074802124523,1.6007702127157408E-2,null,0.13694074802124523,1,1,1]
[null,null,null,null,null,null,null,null,null,null,null,null,null,null,null,null,null,null,null,null,null,null,null,null,null,null,null,null,null,null,null,null,null,null,null,null,453,1,8.731794841138818E-2,4.1126407134611576E-2,null,8.731794841138818E-2,1,1,1]
[null,null,null,null,null,null,null,null,null,null,null,null,null,null,null,null,null,null,null,null,null,null,null,null,null,null,null,null,null,null,null,null,null,null,null,null,454,1,0.14188476627381874,0.13358249820476176,null,0.14188476627381874,1,1,1]
[null,null,null,null,null,null,null,null,null,null,null,null,null,null,null,null,null,null,null,null,null,null,null,null,null,null,null,null,null,null,null,null,null,null,null,null,455,1,8.8294432013759083E-2,-2.3149302619143275E-2,null,8.8294432013759083E-2,1,1,1]
[null,null,null,null,null,null,null,null,null,null,null,null,null,null,null,null,null,null,null,null,null,null,null,null,null,null,null,null,null,null,null,null,null,null,null,null,456,1,0.11321428127813093,4.9633698172464324E-3,null,0.11321428127813093,1,1,1]
[null,null,null,null,null,null,null,null,null,null,null,null,null,null,null,null,null,null,null,null,null,null,null,null,null,null,null,null,null,null,null,null,null,null,null,null,457,1,3.6291276610796119E-2,6.6015912753961681E-2,null,6.6015912753961681E-2,1,1,1]
[null,null,null,null,null,null,null,null,null,null,null,null,null,null,null,null,null,null,null,null,null,null,null,null,null,null,null,null,null,null,null,null,null,null,null,null,458,1,-3.1159722309552995E-2,-5.0154078078212816E-4,null,-5.0154078078212816E-4,0,0,0]
[null,null,null,null,null,null,null,null,null,null,null,null,null,null,null,null,null,null,null,null,null,null,null,null,null,null,null,null,null,null,null,null,null,null,null,null,459,2,-8.2965667143838351E-3,5.4492282688170857E-2,null,5.4492282688170857E-2,0,0,0]
[null,null,null,null,null,null,null,null,null,null,null,null,null,null,null,null,null,null,null,null,null,null,null,null,null,null,null,null,null,null,null,null,null,null,null,null,460,1,-2.1133305938432989E-2,9.4762006120721276E-2,null,9.4762006120721276E-2,1,1,1]
[null,null,null,null,null,null,null,null,null,null,null,null,null,null,null,null,null,null,null,null,null,null,null,null,null,null,null,null,null,null,null,null,null,null,null,null,461,0,-1.1596260655904467E-2,0.19103490231855358,null,0.19103490231855358,1,1,1]
[null,null,null,null,null,null,null,null,null,null,null,null,null,null,null,null,null,null,null,null,null,null,null,null,null,null,null,null,null,null,null,null,null,null,null,null,462,1,3.0843395259686934E-2,2.7289941941690987E-2,null,3.0843395259686934E-2,0,0,0]
[null,null,null,null,null,null,null,null,null,null,null,null,null,null,null,null,null,null,null,null,null,null,null,null,null,null,null,null,null,null,null,null,null,null,null,null,463,1,5.2991643297590318E-2,0.12614784882911034,null,0.12614784882911034,1,1,1]
[null,null,null,null,null,null,null,null,null,null,null,null,null,null,null,null,null,null,null,null,null,null,null,null,null,null,null,null,null,null,null,null,null,null,null,null,464,0,5.7813247132048051E-2,-2.2805562922008082E-2,null,{"$f":"MAX(AM465:AN465)","v":5.7813247132048051E-2},1,0,0]
[null,null,null,null,null,null,null,null,null,null,null,null,null,null,null,null,null,null,null,null,null,null,null,null,null,null,null,null,null,null,null,null,null,null,null,null,465,0,-6.3344932498317075E-3,-1.6795081808511414E-2,null,-6.3344932498317075E-3,0,0,0]
[null,null,null,null,null,null,null,null,null,null,null,null,null,null,null,null,null,null,null,null,null,null,null,null,null,null,null,null,null,null,null,null,null,null,null,null,466,0,2.7833451260409703E-2,3.0196978112956741E-2,null,3.0196978112956741E-2,0,0,0]
[null,null,null,null,null,null,null,null,null,null,null,null,null,null,null,null,null,null,null,null,null,null,null,null,null,null,null,null,null,null,null,null,null,null,null,null,467,1,0.10573117488648243,0.12520003881901309,null,0.12520003881901309,1,1,1]
[null,null,null,null,null,null,null,null,null,null,null,null,null,null,null,null,null,null,null,null,null,null,null,null,null,null,null,null,null,null,null,null,null,null,null,null,468,1,8.871849932507847E-2,0.1319683691061917,null,0.1319683691061917,1,1,1]
[null,null,null,null,null,null,null,null,null,null,null,null,null,null,null,null,null,null,null,null,null,null,null,null,null,null,null,null,null,null,null,null,null,null,null,null,469,1,3.8090299605016753E-2,-4.2761905571082393E-2,null,3.8090299605016753E-2,0,0,0]
[null,null,null,null,null,null,null,null,null,null,null,null,null,null,null,null,null,null,null,null,null,null,null,null,null,null,null,null,null,null,null,null,null,null,null,null,470,1,0.18821695460565091,2.6571881784994922E-2,null,0.18821695460565091,1,1,1]
[null,null,null,null,null,null,null,null,null,null,null,null,null,null,null,null,null,null,null,null,null,null,null,null,null,null,null,null,null,null,null,null,null,null,null,null,471,1,3.6712186541683067E-2,-1.0112321343138553E-2,null,3.6712186541683067E-2,0,0,0]
[null,null,null,null,null,null,null,null,null,null,null,null,null,null,null,null,null,null,null,null,null,null,null,null,null,null,null,null,null,null,null,null,null,null,null,null,472,2,0.18150444093457474,8.5365920844514109E-2,null,0.18150444093457474,1,1,1]
[null,null,null,null,null,null,null,null,null,null,null,null,null,null,null,null,null,null,null,null,null,null,null,null,null,null,null,null,null,null,null,null,null,null,null,null,473,1,5.5524378032696609E-2,6.3057231692036142E-2,null,6.3057231692036142E-2,1,1,1]
[null,null,null,null,null,null,null,null,null,null,null,null,null,null,null,null,null,null,null,null,null,null,null,null,null,null,null,null,null,null,null,null,null,null,null,null,474,1,0.13732325584371274,4.0458686982252745E-2,null,0.13732325584371274,1,1,1]
[null,null,null,null,null,null,null,null,null,null,null,null,null,null,null,null,null,null,null,null,null,null,null,null,null,null,null,null,null,null,null,null,null,null,null,null,475,1,4.6805333642512714E-2,0.12456940551219686,null,0.12456940551219686,1,1,1]
[null,null,null,null,null,null,null,null,null,null,null,null,null,null,null,null,null,null,null,null,null,null,null,null,null,null,null,null,null,null,null,null,null,null,null,null,476,1,-4.5346053785158436E-2,0.16071099446138359,null,0.16071099446138359,1,1,1]
[null,null,null,null,null,null,null,null,null,null,null,null,null,null,null,null,null,null,null,null,null,null,null,null,null,null,null,null,null,null,null,null,null,null,null,null,477,0,7.0022134885990184E-2,4.2742843295501265E-2,null,7.0022134885990184E-2,1,1,1]
[null,null,null,null,null,null,null,null,null,null,null,null,null,null,null,null,null,null,null,null,null,null,null,null,null,null,null,null,null,null,null,null,null,null,null,null,478,1,4.9824400452510798E-2,0.19386789739948984,null,0.19386789739948984,1,1,1]
[null,null,null,null,null,null,null,null,null,null,null,null,null,null,null,null,null,null,null,null,null,null,null,null,null,null,null,null,null,null,null,null,null,null,null,null,479,1,2.0719879758038573E-2,8.8415494599787703E-2,null,8.8415494599787703E-2,1,1,1]
[null,null,null,null,null,null,null,null,null,null,null,null,null,null,null,null,null,null,null,null,null,null,null,null,null,null,null,null,null,null,null,null,null,null,null,null,480,0,4.1514475336286605E-2,5.3891606917256585E-2,null,5.3891606917256585E-2,0,0,0]
[null,null,null,null,null,null,null,null,null,null,null,null,null,null,null,null,null,null,null,null,null,null,null,null,null,null,null,null,null,null,null,null,null,null,null,null,481,0,0.11256683537923151,1.3841110069571005E-2,null,0.11256683537923151,1,1,1]
[null,null,null,null,null,null,null,null,null,null,null,null,null,null,null,null,null,null,null,null,null,null,null,null,null,null,null,null,null,null,null,null,null,null,null,null,482,1,7.551445986608285E-2,8.3623958114078967E-2,null,8.3623958114078967E-2,1,1,1]
[null,null,null,null,null,null,null,null,null,null,null,null,null,null,null,null,null,null,null,null,null,null,null,null,null,null,null,null,null,null,null,null,null,null,null,null,483,1,6.6720785089018575E-2,-3.9838487934867883E-2,null,6.6720785089018575E-2,1,1,1]
[null,null,null,null,null,null,null,null,null,null,null,null,null,null,null,null,null,null,null,null,null,null,null,null,null,null,null,null,null,null,null,null,null,null,null,null,484,1,4.1883217161301722E-2,6.2854280992158396E-2,null,6.2854280992158396E-2,1,1,1]
[null,null,null,null,null,null,null,null,null,null,null,null,null,null,null,null,null,null,null,null,null,null,null,null,null,null,null,null,null,null,null,null,null,null,null,null,485,1,0.17995490735855046,6.1687549023188515E-2,null,0.17995490735855046,1,1,1]
[null,null,null,null,null,null,null,null,null,null,null,null,null,null,null,null,null,null,null,null,null,null,null,null,null,null,null,null,null,null,null,null,null,null,null,null,486,1,9.1069305129751532E-2,-0.11591554339590382,null,9.1069305129751532E-2,1,1,1]
[null,null,null,null,null,null,null,null,null,null,null,null,null,null,null,null,null,null,null,null,null,null,null,null,null,null,null,null,null,null,null,null,null,null,null,null,487,1,-2.2062446607547082E-2,7.5524629966691625E-2,null,7.5524629966691625E-2,1,1,1]
[null,null,null,null,null,null,null,null,null,null,null,null,null,null,null,null,null,null,null,null,null,null,null,null,null,null,null,null,null,null,null,null,null,null,null,null,488,1,8.1254054287231092E-2,4.0474209198995581E-2,null,8.1254054287231092E-2,1,1,1]
[null,null,null,null,null,null,null,null,null,null,null,null,null,null,null,null,null,null,null,null,null,null,null,null,null,null,null,null,null,null,null,null,null,null,null,null,489,1,0.10535351764804401,0.15304640670491509,null,0.15304640670491509,1,1,1]
[null,null,null,null,null,null,null,null,null,null,null,null,null,null,null,null,null,null,null,null,null,null,null,null,null,null,null,null,null,null,null,null,null,null,null,null,490,1,6.0075697613942491E-2,5.108691978756319E-2,null,6.0075697613942491E-2,1,0,0]
[null,null,null,null,null,null,null,null,null,null,null,null,null,null,null,null,null,null,null,null,null,null,null,null,null,null,null,null,null,null,null,null,null,null,null,null,491,1,2.4011301948084096E-2,0.18053128769083204,null,0.18053128769083204,1,1,1]
[null,null,null,null,null,null,null,null,null,null,null,null,null,null,null,null,null,null,null,null,null,null,null,null,null,null,null,null,null,null,null,null,null,null,null,null,492,0,4.3591056734568756E-3,-0.1121180339841108,null,4.3591056734568756E-3,0,0,0]
[null,null,null,null,null,null,null,null,null,null,null,null,null,null,null,null,null,null,null,null,null,null,null,null,null,null,null,null,null,null,null,null,null,null,null,null,493,1,2.7411826083548974E-2,4.9162248946239329E-2,null,4.9162248946239329E-2,0,0,0]
[null,null,null,null,null,null,null,null,null,null,null,null,null,null,null,null,null,null,null,null,null,null,null,null,null,null,null,null,null,null,null,null,null,null,null,null,494,1,8.3711427496246271E-2,8.5080098024542528E-2,null,8.5080098024542528E-2,1,1,1]
[null,null,null,null,null,null,null,null,null,null,null,null,null,null,null,null,null,null,null,null,null,null,null,null,null,null,null,null,null,null,null,null,null,null,null,null,495,1,9.2249279823429342E-2,0.11507459340169279,null,0.11507459340169279,1,1,1]
[null,null,null,null,null,null,null,null,null,null,null,null,null,null,null,null,null,null,null,null,null,null,null,null,null,null,null,null,null,null,null,null,null,null,null,null,496,1,7.9384831100060449E-2,-3.5675678952945766E-2,null,7.9384831100060449E-2,1,1,1]
[null,null,null,null,null,null,null,null,null,null,null,null,null,null,null,null,null,null,null,null,null,null,null,null,null,null,null,null,null,null,null,null,null,null,null,null,497,1,6.1160194841325177E-2,-4.2213577304601735E-3,null,6.1160194841325177E-2,1,1,1]
[null,null,null,null,null,null,null,null,null,null,null,null,null,null,null,null,null,null,null,null,null,null,null,null,null,null,null,null,null,null,null,null,null,null,null,null,498,1,8.7246846010081258E-2,3.5272661436015706E-2,null,8.7246846010081258E-2,1,1,1]
[null,null,null,null,null,null,null,null,null,null,null,null,null,null,null,null,null,null,null,null,null,null,null,null,null,null,null,null,null,null,null,null,null,null,null,null,499,0,-6.4989832513287493E-2,-9.3487208205378369E-4,null,-9.3487208205378369E-4,0,0,0]
[null,null,null,null,null,null,null,null,null,null,null,null,null,null,null,null,null,null,null,null,null,null,null,null,null,null,null,null,null,null,null,null,null,null,null,null,500,1,6.4702354843262366E-2,-2.0905842000127128E-2,null,6.4702354843262366E-2,1,1,1]
[null,null,null,null,null,null,null,null,null,null,null,null,null,null,null,null,null,null,null,null,null,null,null,null,null,null,null,null,null,null,null,null,null,null,null,null,null,null,null,null,null,0,0,0,0]
[null,null,null,null,null,null,null,null,null,null,null,null,null,null,null,null,null,null,null,null,null,null,null,null,null,null,null,null,null,null,null,null,null,null,null,null,null,null,null,null,null,0,0,0,0]
[null,null,null,null,null,null,null,null,null,null,null,null,null,null,null,null,null,null,null,null,null,null,null,null,null,null,null,null,null,null,null,null,null,null,null,null,null,null,null,null,null,0,0,0,0]
[]
[]
[]
[]
[]
[]
[]
[]
[]
[]
[]
[]
[]
[]
[]
[]
[]
[]
[]
[]
[]
[]
[]
[]
[]
[]
[]
[]
[]
[]
[]
[]
[]
[]
[]
[]
[]
[]
[]
[]
[]
[]
[]
[]
[]
[]
[]
[]
[]
[]
[]
[]
[]
[]
[]
[]
[]
[]
[]
[]
[]
[]
[]
[]
[]
[]
[]
[]
[]
[]
[]
[]
[]
[]
[]
[]
[]
[]
[]
[]
[]
[]
[]
[]
[]
[]
[]
[]
[]
[]
[]
[]
[]
[]
[]
[]
[]
[]
[]
[]
[]
[]
[]
[]
[]
[]
[]
[]
[]
[]
[]
[]
[]
[]
[]
[]
[]
[]
[]
[]
[]
[]
[]
[]
[]
[]
[]
[]
[]
[]
[]
[]
[]
[]
[]
[]
[]
[]
[]
[]
[]
[]
[]
[]
[]
[]
[]
[]
[]
[]
[]
[]
[]
[]
[]
[]
[]
[]
[]
[]
[]
[]
[]
[]
[]
[]
[]
[]
[]
[]
[]
[]
[]
[]
[]
[]
[]
[]
[]
[]
[]
[]
[]
[]
[]
[]
[]
[]
[]
[]
[]
[]
[]
[]
[]
[]
[]
[]
[]
[]
[]
[]
[]
[]
[]
[]
[]
[]
[]
[]
[]
[]
[]
[]
[]
[]
[]
[]
[]
[]
[]
[]
[]
[]
[]
[]
[]
[]
[]
[]
[]
[]
[]
[]
[]
[]
[]
[]
[]
[]
[]
[]
[]
[]
[]
[]
[]
[]
[]
[]
[]
[]
[]
[]
[]
[]
[]
[]
[]
[]
[]
[]
[]
[]
[]
[]
[]
[]
[]
[]
[]
[]
[]
[]
[]
[]
[]
[]
[]
[]
[]
[]
[]
[]
[]
[]
[]
[]
[]
[]
[]
[]
[]
[]
[]
[]
[]
[]
[]
[]
[]
[]
[]
[]
[]
[]
[]
[]
[]
[]
[]
[]
[]
[]
[]
[]
[]
[]
[]
[]
[]
[]
[]
[]
[]
[]
[]
[]
[]
[]
[]
[]
[]
[]
[]
[]
[]
[]
[]
[]
[]
[]
[]
[]
[]
[]
[]
[]
[]
[]
[]
[]
[]
[]
[]
[]
[]
[]
[]
[]
[]
[]
[]
[]
[]
[]
[]
[]
[]
[]
[]
[]
[]
[]
[]
[]
[]
[]
[]
[]
[]
[]
[]
[]
[]
[]
[]
[]
[]
[]
[]
[]
[]
[]
[]
[]
[]
[]
[]
[]
[]
[]
[]
[]
[]
[]
[]
[]
[]
[]
[]
[]
[]
[]
[]
[]
[]
[]
[]
[]
[]
[]
[]
[]
[]
[]
[]
[]
[]
[]
[]
[]
[]
[]
[]
[]
[]
[]
[]
[]
[]
[]
[]
[]
[]
[]
[]
[]
[]
[]
[]
[]
[]
[]
[]
[]
[]
[]
[]
[]
[]
[]
[]
[]
[]
[]
[]
[]
[]
[]
[]
[]
[]
[]
[]
[]
[]
[]
[]
[]
[]
[]
[]
[]
[]
[]
[]
[]
[]
[]
[]
[]
[]
[]
[]
[]
[null,null,null,null,null,null,null,null,null,null,null,null,null,null,null,null,null,null,null,null,null,null,null,null,null,null,null,null,null,null,null,null,null,null,null,null,1000,5.5279999999999996E-2,5.4085596830613758E-2,5.7708867067234326E-2,6.0174648965376498E-2]
[null,null,null,null,null,null,null,null,null,null,null,null,null,null,null,null,null,null,null,null,null,null,null,null,null,null,null,null,null,null,null,null,null,null,null,null,null,5.5279999999999996E-2,5.1481943682531339E-2,5.8997955328055518E-2,6.0174648965376498E-2]
[null,null,null,null,null,null,null,null,null,null,null,null,null,null,null,null,null,null,null,null,null,null,null,null,null,null,null,null,null,null,null,null,null,null,null,null,null,5.5279999999999996E-2,5.1996580460689223E-2,5.5776867723446033E-2,6.0174648965376498E-2]